Workbook

Sheet Instructions
A1: Instructions for DEED Allowable Space Calculation Workbook
A2: This workbook uses macros, for full functionality ensure that macros are enabled.
A3: TAB: ADM
A4: 0 | B4: The "ADM" tab is used to select the school name and school type for a proposed project that is adding or replacing space in a district attendance area. Once the school is selected, the historical average daily membership (ADM) of the school's associated attendance area is displayed and an average annual ADM change is calculated. This percent change is used to forecast the school ADM to a date "five-years post-occupancy" of a proposed project. The projected ADM enrollment is the basis of the eligible/allowable gross square footage (GSF). Alternative ADM projection methods besides this straight-line method are available, and may be preferable in cases of small enrollment numbers.
A5: 1 | B5: Select the desired School name from the pull down menu in cell C7;
A6: 2 | B6: Select the School Type from the pull down menu in cell C9 Definitions: "Elementary" schools with a combination of grades K through 6 "Secondary" schools with a combination of grades 7 through 12 "Secondary+6" schools with grades 6 through 8 or higher "Mixed Grade" schools with combination of elementary and secondary (typically K-8) "K-12" schools with all grades K through 12
A7: 3 | B7: If desired, enter the district’s student population projections in cells C13 to J13 (elementary K-6) and/or C14 to J14 (secondary 7-12).
A8: 4 | B8: For districts with more than one High School in an attendance area, the number of students in cells C13 and C14 must be entered manually from Columns C (K-6) and D (7-12) in the “Current ADM” worksheet, and the existing square footage entered on the “Allow SF” worksheet in cell B9 must include all square footage for the appropriate School Type in the attendance area. For additional information contact DEED staff.
A9: TAB: Allow SF
A10: 0 | B10: The "Allow SF" tab is used to document the existing gross square footage (GSF) associated with the school or the school type in an attendance area as denoted in the DEED School Facility Database: https://education.alaska.gov/facilities/SchoolFacilityReport/SearchforSchoolFac.cfm If the district believes there to be an error in the data, please contact Facilities staff. The tab compares the eligible GSF, based upon projected ADM, to the existing GSF, and calculates whether additional GSF is allowable. Available allowances for water treatment/storage and exterior covered spaces are aso provided.
A11: 1 | B11: Enter the appropriate existing square footage into cell B9 on sheet “Allow SF”. Square footage will be for the entire attendance area in the School Type identified in cell B5, including support facilities.
A12: 2 | B12: Enter additional GSF data based on the proposed project: what existing GSF will remain; how much GSF is proposed to be added.
A13: TAB: Current Capacity
A14: 0 | B14: The "Current Capacity" tab compares the existing DEED-designated GSF from "Allow SF" tab to the current ADM.
A15: 1 | B15: Run the macro "Module2.ELEM", or press the "Calculate Capacity" button, to see capacity and percentages. If any numbers change in the "ADM" or "Allow SF" tabs, this macro must be re-run.
A16: TAB: Projected Capacity
A17: 0 | B17: The "Projected Capacity" tab compares the existing DEED-designated GSF from "Allow SF" tab to the projected ADM.
A18: 1 | B18: Run the macro "Module2.ELEM", or press the "Calculate Capacity" button, to see capacity and percentages. If any numbers change in the "ADM" or "Allow SF" tabs, this macro must be re-run.
A19: TAB: Current ADM
A20: 0 | B20: The "Current ADM" tab provides ADM data by school, and lists each school's attendance area. This information may be used for manually updating the "ADM" cells B13 and/or B14 for attendance areas with more than one school in a school type.
A21: TAB: Historical ADM by Area
A22: 0 | B22: The "Historical ADM by Area" provides data used to calculate the average annual ADM change of an attendance area in the "ADM" tab.
A23: end of instructions

Sheet ADM
A1: ADM Projection Comparison To start: select School in cell B4, then select School Enrollment Type in B6 District can provide alternative ADM projections in B13 to J14
A2: ADM Year: | B2: 2025
A3: School District: | B3: =VLOOKUP(NAME,'Current ADM'!$B$3:$L$574,11,FALSE) -> 
A4: School Name:
A5: Project Number: | B5: 27-xxx
A6: School Type: | B6: K-12
A7: Attendance Area: | B7: =VLOOKUP(NAME,'Current ADM'!$B$3:$F$574,5,FALSE) -> 
A8: Historical Attendance Area ADM by Fiscal Year
A9: Fiscal Year | B9: =B2-8 -> 2017 | C9: =B9+1 -> 2018 | D9: =C9+1 -> 2019 | E9: 2020 | F9: 2021 | G9: 2022 | H9: 2023 | I9: 2024 | J9: =I9+1 -> 2025 | K9: Average Annual ADM Change | L9: Overall ADM Growth
A10: Attendance Area Total ADM | B10: =IF($B$7="community"," ",VLOOKUP($B$7,'Historical ADM by Area'!$C$3:$AS$366,28,FALSE)) ->  | C10: =IF($B$7="community"," ",VLOOKUP($B$7,'Historical ADM by Area'!$C$3:$AS$366,29,FALSE)) ->  | D10: =IF($B$7="community"," ",VLOOKUP($B$7,'Historical ADM by Area'!$C$3:$AS$366,30,FALSE)) ->  | E10: =IF($B$7="community"," ",VLOOKUP($B$7,'Historical ADM by Area'!$C$3:$AS$366,31,FALSE)) ->  | F10: =IF($B$7="community"," ",VLOOKUP($B$7,'Historical ADM by Area'!$C$3:$AS$366,32,FALSE)) ->  | G10: =IF($B$7="community"," ",VLOOKUP($B$7,'Historical ADM by Area'!$C$3:$AS$366,33,FALSE)) ->  | H10: =IF($B$7="community"," ",VLOOKUP($B$7,'Historical ADM by Area'!$C$3:$AS$366,34,FALSE)) ->  | I10: =IF($B$7="community"," ",VLOOKUP($B$7,'Historical ADM by Area'!$C$3:$AS$366,35,FALSE)) ->  | J10: =IF($B$7="community"," ",VLOOKUP($B$7,'Historical ADM by Area'!$C$3:$AS$366,36,FALSE)) ->  | K10: =IF(B7="community"," ",(((C10-B10)/B10+(D10-C10)/C10+(E10-D10)/D10+(F10-E10)/E10+(G10-F10)/F10+(H10-G10)/G10+(I10-H10)/H10+(J10-I10)/I10))/8) ->  | L10: =IF(B7="community"," ",(J10-B10)/B10) -> 
A11: Future School ADM Projections by School Year
A12: Projection Type | B12: Current School Year ADM | C12: =VLOOKUP(J9,$O$23:$P$116,2) -> 2025-2026 | D12: =VLOOKUP(J9+1,$O$23:$P$116,2) -> 2026-2027 | E12: =VLOOKUP(J9+2,$O$23:$P$116,2) -> 2027-2028 | F12: =VLOOKUP(J9+3,$O$23:$P$116,2) -> 2028-2029 | G12: =VLOOKUP(J9+4,$O$23:$P$116,2) -> 2029-2030 | H12: =VLOOKUP(J9+5,$O$23:$P$116,2) -> 2030-2031 | I12: =VLOOKUP(J9+6,$O$23:$P$116,2) -> 2031-2032 | J12: =VLOOKUP(J9+7,$O$23:$P$116,2) -> 2032-2033 | K12: Average Annual ADM Change | L12: Overall ADM Growth
A13: District's K-6 Projection | B13: =ELEM ->  | C13: =IF(FCrate>0,ELEM+(ELEM*FCrate),ELEM) ->  | D13: =IF(FCrate>0,C13+C13*FCrate,C13) ->  | E13: =IF(FCrate>0,D13+D13*FCrate,D13) ->  | G13: =IF(FCrate>0,F13+F13*FCrate,F13) ->  | J13: =IF(FCrate>0,I13+I13*FCrate,I13) ->  | K13: =IF(ELEM=0, " ",(((C13-ELEM)/ELEM+(D13-C13)/C13+(E13-D13)/D13+(F13-E13)/E13+(G13-F13)/F13+(H13-G13)/G13+(I13-H13)/H13+(J13-I13)/I13))/8) ->  | L13: =IF(ELEM=0, " ", (J13-ELEM)/ELEM) -> 
A14: District's 7-12 Projection | B14: =SEC ->  | C14: =IF(FCrate>0,SEC+(SEC*FCrate),SEC) ->  | K14: =IF(SEC=0, " ",(((C14-SEC)/SEC+(D14-C14)/C14+(E14-D14)/D14+(F14-E14)/E14+(G14-F14)/F14+(H14-G14)/G14+(I14-H14)/H14+(J14-I14)/I14))/8) ->  | L14: =IF(SEC=0, " ",(J14-SEC)/SEC) -> 
A15: DEED's K-6 Projection | B15: =VLOOKUP(NAME,'Current ADM'!$B$3:$F$574,2,FALSE) ->  | C15: =IF(ELEM=0, " ", ELEM*(1+doek6)) ->  | D15: =IF(ELEM=0, " ", C15*(1+doek6)) ->  | F15: =IF(ELEM=0, " ", E15*(1+doek6)) ->  | K15: =IF(ELEM=0, " ", IF(_sdk6>=FCrate, IF(AVERAGE(_sdk6,FCrate)<0,0,AVERAGE(_sdk6,FCrate)), IF(FCrate<0, 0, _sdk6))) ->  | L15: =IF(ELEM=0, " ", (J15-ELEM)/ELEM) -> 
A16: DEED's 7-12 Projection | B16: =VLOOKUP(NAME,'Current ADM'!$B$3:$F$574,3,FALSE) ->  | C16: =IF(SEC=0," ", SEC*(1+_doe712)) ->  | D16: =IF(SEC=0," ", C16*(1+_doe712)) ->  | K16: =IF(SEC=0, " ",IF(_sd712>=FCrate, IF(AVERAGE(_sd712,FCrate)<0,0,AVERAGE(_sd712,FCrate)), IF(FCrate<0, 0, _sd712))) ->  | L16: =IF(SEC=0, " ", (J16-SEC)/SEC) -> 
A17: Note: If District projection numbers match DEED projection, numbers were not provided by the school district. | L17: end of sheet
N23: Academy Charter School | O23: 2006 | P23: 2006-2007 | R23: Elementary
N24: Adak School | O24: 2007 | P24: 2007-2008 | R24: Secondary
N25: Akhiok School | O25: 2008 | P25: 2008-2009 | R25: Secondary+6
N26: Akiachak School | O26: 2009 | P26: 2009-2010 | R26: Mixed Grade
N27: Akiak School | O27: 2010 | P27: 2010-2011 | R27: K-12
N28: Akiuk Memorial School (Kasigluk) | O28: 2011 | P28: 2011-2012
N29: Akula Elitnauvik School (Kasigluk) | O29: 2012 | P29: 2012-2013
N30: Akutan School | O30: 2013 | P30: 2013-2014
N31: Alak School | O31: 2014 | P31: 2014-2015
N32: Alakanuk School | O32: 2015 | P32: 2015-2016
N33: Alaska Native Cultural Charter School
N34: Aleknagik North School | O34: 2016 | P34: 2016-2017
N35: Allakaket School | O35: 2017 | P35: 2017-2018
N36: Ambler School | O36: 2018 | P36: 2018-2019
N37: Anderson Crawford Elementary School | O37: 2019 | P37: 2019-2020
N38: Andrew K. Demoski School (Nulato) | O38: 2020 | P38: 2020-2021
N39: Angoon School | O39: 2021 | P39: 2021-2022
N40: Aniak Jr/Sr High School | O40: 2022 | P40: 2022-2023
N41: Aniguiin School (Elim) | O41: 2023 | P41: 2023-2024
N42: Anna Tobeluk Memorial School (Nunapitchuk) | O42: 2024 | P42: 2024-2025
N43: Anne Wien Elementary School | O43: 2025 | P43: 2025-2026
N44: Anthony A. Andrews School (St. Michael) | O44: 2026 | P44: 2026-2027
N45: Anvil City Science Academy | O45: 2027 | P45: 2027-2028
N46: Aqqaluk School | O46: 2028 | P46: 2028-2029
N47: Aquarian Charter (K-6) | O47: 2029 | P47: 2029-2030
N48: Arctic Light Elementary School | O48: 2030 | P48: 2030-2031
N49: Arctic Village School | O49: 2031 | P49: 2031-2032
N50: Auke Bay Elementary School | O50: 2032 | P50: 2032-2033
N51: Auntie Mary Nicoli Elementary (Aniak) | O51: 2033 | P51: 2033-2034
N52: Aurora Borealis Charter (Soldotna) | O52: 2034 | P52: 2034-2035
N53: Ayagina'ar Elitnaurvik School (Kongiganak) | O53: 2035 | P53: 2035-2036
O54: 2036 | P54: 2036-2037
O55: 2037 | P55: 2037-2038
N56: Barnette Elementary School | O56: 2038 | P56: 2038-2039
N57: Barrow High School (Barrow) | O57: 2039 | P57: 2039-2040
N58: Barry Craig Stewart Kasaan School | O58: 2040 | P58: 2040-2041
N59: Beaver "Cruikshank" School | O59: 2041 | P59: 2041-2042
N60: Benny Benson Alternative High School (7-12) | O60: 2042 | P60: 2042-2043
N61: Beryozova School | O61: 2043 | P61: 2043-2044
N62: Bethel Regional High School | O62: 2044 | P62: 2044-2045
N63: Big Lake Elementary | O63: 2045 | P63: 2045-2046
N64: Blackwell School (Anvik) | O64: 2046 | P64: 2046-2047
N65: Blatchely Middle School | O65: 2047 | P65: 2047-2048
N66: Brevig Mission School | O66: 2048 | P66: 2048-2049
N67: Bristol Bay School | O67: 2049 | P67: 2049-2050
N68: Buckland School | O68: 2050 | P68: 2050-2051
N69: Burchell Alternative High School | O69: 2051 | P69: 2051-2052
N70: Butte School | O70: 2052 | P70: 2052-2053
O71: 2053 | P71: 2053-2054
N72: Cantwell School | O72: 2054 | P72: 2054-2055
N73: Chapman School (Anchor Point) | O73: 2055 | P73: 2055-2056
N74: Chaputnguak School (Chefornak) | O74: 2056 | P74: 2056-2057
N75: Chenega Bay School | O75: 2057 | P75: 2057-2058
N76: Chevak School | O76: 2058 | P76: 2058-2059
N77: Chief Ivan Blunka (New Stuyahok) | O77: 2059 | P77: 2059-2060
N78: Chief Paul Memorial (Kipnuk) | O78: 2060 | P78: 2060-2061
N79: Chignik Lagoon School | O79: 2061 | P79: 2061-2062
N80: Chignik Lake School | O80: 2062 | P80: 2062-2063
N81: Chiniak School | O81: 2063 | P81: 2063-2064
N82: C Alaska Native Charter School (PK-8) | O82: 2065 | P82: 2065-2066
N83: Clarks Point School | O83: 2066 | P83: 2066-2067
N84: Colony High School | O84: 2067 | P84: 2067-2068
N85: Colony Middle School | O85: 2068 | P85: 2068-2069
N86: Cooper Landing School (K-12) | O86: 2069 | P86: 2069-2070
N87: Cordova High School [Jr/Sr HS] | O87: 2070 | P87: 2070-2071
N88: Cottonwood Creek | O88: 2071 | P88: 2071-2072
N89: Craig Elementary | O89: 2072 | P89: 2072-2073
N90: Craig High School | O90: 2073 | P90: 2073-2074
N91: Craig Middle School | O91: 2074 | P91: 2074-2075
N92: Crow Village Sam School (Chuathbaluk) | O92: 2075 | P92: 2075-2076
O93: 2076 | P93: 2076-2077
N94: David-Louis Memorial School (Grayling) | O94: 2077 | P94: 2077-2078
N95: Davis-Ramoth Memorial (Selawik) | O95: 2078 | P95: 2078-2079
N96: Deering School | O96: 2079 | P96: 2079-2080
N97: Delta Junction Elementary School (K-5) | O97: 2080 | P97: 2080-2081
N98: Delta Junction Jr High School (6-8) | O98: 2081 | P98: 2081-2082
N99: Delta Junction Sr High School (9-12) | O99: 2082 | P99: 2082-2083
N100: Dena'ina Elementary | O100: 2083 | P100: 2083-2084
N101: Denali Elementary School | O101: 2084 | P101: 2084-2085
N102: Dillingham Elementary | O102: 2085 | P102: 2085-2086
N103: Dillingham Middle & High School | O103: 2086 | P103: 2086-2087
N104: Diomede School | O104: 2087 | P104: 2087-2088
N105: Dot Lake School | O105: 2088 | P105: 2088-2089
O106: 2089 | P106: 2089-2090
N107: Eagle Community School | O107: 2090 | P107: 2090-2091
N108: East Elementary School (Kodiak) | O108: 2091 | P108: 2091-2092
N109: Eben Hopson Middle (Barrow) | O109: 2092 | P109: 2092-2093
N110: Eek School | O110: 2093 | P110: 2093-2094
N111: Effie Kokrine Charter School | O111: 2094 | P111: 2094-2095
N112: Ella B. Vernetti (Koyukuk) | O112: 2095 | P112: 2095-2096
N113: Emmonak School | O113: 2096 | P113: 2096-2097
N114: Earla Hutchison School | O114: 2097 | P114: 2097-2098
O115: 2098 | P115: 2098-2099
N116: False Pass School | O116: 2099 | P116: 2099-2100
N117: Fawn Mountain Elementary
N118: Finger Lake School
N119: Fireweed Academy Charter (Homer) | O119: 2068 | P119: 2068-2069
N120: Fort Yukon School
N121: Fred & Sara Machetanz Elementary [K-5]
N122: Fred Ipalook (Barrow)
N124: Galena Interior Learning Academy
N125: Gambell School
N126: George H. Gilson Jr. High
N127: George Morgan Jr/Sr. High School (Kalskag)
N128: Gerstle River School
N129: Glacier View School
N130: Gladys Dart School (Manley Hot Springs)
N131: Gladys Jung Elementary (Bethel)
N132: Glennallen School [Jr/Sr HS]
N133: Glennallen School K-6
N134: Golovin School (Martin L. Olson)
N135: Goose Bay K-2
N136: Gustavus School
N137: Gusty Michael School (Stony River)
N139: Haines Elementary School K-8
N140: Haines High School
N141: Harborview Elementary School
N142: Harold Kaveolook School (Kaktovik)
N143: Hermon Hutchens Elementary
N144: Hollis School
N145: Homer Flex
N146: Homer High School
N147: Homer Middle School
N148: Hoonah City School
N149: Hooper Bay School
N150: Hooper Bay Charter School
N151: Hope School
N152: Houghtaling Elementary School
N153: Houston High School
N154: Houston Middle School
N155: Howard Valentine Coffman Cove School
N156: Hunter Elementary School
N157: Hutchison High School
N158: Hydaburg School
N160: Iditarod School
N161: Igugig School
N162: Innoko River School (Shageluk)
N164: Jack Egnaty Sr. School (Sleetmute)
N165: James C. Isabell School (Teller)
N166: Jeffery A. Bader Memorial School (Holy Cross)
N167: Jimmy Huntington School (Huslia)
N168: Joann A. Alexie Memorial School (Atmautlak)
N169: Joe Redington Senior Jr/Sr High School
N170: John Shaw Elementary
N171: Johnnie John Sr School (Crooked Creek)
N172: Johnny Oldman School (Hughes)
N173: Joseph & Olinga Gregory School (Kalskag)
N174: June Nelson Elementary School (Kotzebue)
N175: Juneau Community Charter School
N176: Juneau Douglas High School
N178: K-6 Airport Heights Elementary
N179: K-6 Alpenglow Elementary
N180: K-6 Aurora Elementary
N181: K-6 Baxter Elementary
N182: K-6 Bayshore Elementary
N183: K-6 Bear Valley Elementary
N184: K-6 Birchwood ABC
N185: K-6 Bowman Elementary
N186: K-6 Campbell Elementary
N187: K-6 Chester Valley Elementary (K-5)
N188: K-6 Chinook Elementary
N189: K-6 Chugach Optional Elementary
N190: K-6 Chugiak Elementary (K-5)
N191: K-6 College Gate Elementary
N192: K-6 Creekside Park (K-5)
N193: K-6 Denali Elementary
N194: K-6 Dr. Etheldra Davis - Fairview Elementary
N195: K-6 Eagle River Elementary
N196: K-6 Fire Lake Elementary (K-5)
N197: K-6 Girdwood School (K-8)
N198: K-6 Gladys Wood Elementary
N199: K-6 Government Hill Elementary
N200: K-6 Homestead Elementary
N201: K-6 Huffman Elementary
N202: K-6 Inlet View Elementary
N203: K-6 Kasuun Elementary
N204: K-6 Kincaid Elementary
N205: K-6 Klatt Elementary
N206: K-6 Lake Hood Elementary
N207: K-6 Lake Otis Elementary
N208: K-6 Mountain View Elementary
N209: K-6 Muldoon Elementary (K-5)
N210: K-6 North Star Elementary
... 256 more rows

Sheet Allow SF
A1: Allowable Gross Square Footage
A2: District: | B2: =SD -> 
A3: School: | B3: =NAME -> 0
A4: Project Number: | B4: =PROJNO -> 27-xxx
A5: School Type: | B5: =ADM!B6 -> K-12
A6: Eligible Gross Square Footage (GSF) Data Type | B6: GSF Values
A7: Projected ADM (K-6): | B7: =IF(ABS(_sdk6-FCrate)>0.005,k6ADM,ADM!J13) -> 
A8: Projected ADM (7-12): | B8: =IF(ABS(_sd712-FCrate)>0.005,_ADM712,ADM!J14) -> 
A9: Existing DEED designated GSF | B9: 0
A10: Existing GSF To Remain: | B10: 0
A11: Additional GSF Requested: | B11: 0
A12: Total GSF Proposed: | B12: =B10+B11 -> 0
A13: Eligible Base GSF: | B13: =IF(ADM!$B$6="Elementary",114*B7,IF(ADM!$B$6="Secondary",B8*165,IF(ADM!$B$6="K-12",B7*114+B8*165,IF(ADM!$B$6="Mixed Grade",B7*114+B8*165,IF(ADM!$B$6="Secondary+6",(B7+B8)*165," "))))) -> 
A14: Eligible Supplemental GSF: | B14: =IF(ADM!$B$6="Elementary",B7*130*10^(-B7/250),IF(ADM!$B$6="Secondary",B8*300*10^(-B8/300),IF(ADM!$B$6="K-12",(B7+B8)*213*10^(-(B7+B8)/483),IF(ADM!$B$6="Mixed Grade",(B7+B8)*250*10^(-(B7+B8)/250),IF(ADM!$B$6="Secondary+6",(B7+B8)*250*10^(-(B7+B8)/250)," "))))) -> 
A15: Total GSF Eligible: | B15: =IF(B13=" ",0,B13+B14) -> 
A16: Additional GSF Allowable: | B16: =IF((B15-B10)<0,0,(B15-B10)) -> 
A17: Additional GSF Reduction: | B17: =IF(B16=0,"Not Eligible for Space",IF(B16>B11,"No Reduction",B16-B11)) -> 
A18: 4 AAC 31.020(e)(2) Additional GSF Allowances
A19: Allowance for Covered Exterior Areas: | B19: =IF(OR(B15<B12,B12=0),(IF((B15*0.15)<3000,3000,(IF((B15*0.15)>9000,9000,B15*0.15)))),(IF((B12*0.15)<3000,3000,(IF((B12*0.15)>9000,9000,B12*0.15))))) -> 
A20: Allowance for Water/Sewer Storage & Treatment: | B20: =IF(B12=0,B15*0.05,IF(B15<B12,B15*0.05,B12*0.05)) -> 

Sheet Current Capacity
A1: Current Capacity and Unhoused Run Macro Capacity_Calc (shortcut CTRL+e) to calculate current school capacity
A2: District: | B2: ='Allow SF'!B2 -> 
A3: School: | B3: ='Allow SF'!B3 -> 0
A4: Project Number: | B4: ='Allow SF'!B4 -> 27-xxx
A5: School Type: | B5: =ADM!B6 -> K-12
A6: Capacity Data Type | B6: Capacity Values
A7: Current ADM (K-6): | B7: =ELEM -> 
A8: Current ADM (7-12): | B8: =SEC -> 
A9: Existing GSF: | B9: ='Allow SF'!B9 -> 0
A10: Existing GSF Elementary Capacity:
A11: Existing GSF Secondary Capacity: | B11: =IF(EXSF=0," ",IF(TYPE="Elementary",0,IF(TYPE="Secondary",O19,EADM*csadm/ceadm))) -> 
A12: Existing Base GSF: | B12: =IF($B$5="Elementary",114*B10,IF($B$5="Secondary",B11*165,IF($B$5="K-12",B10*114+B11*165,IF($B$5="Mixed Grade",B10*114+B11*165,IF($B$5="Secondary+6",(B10+B11)*165," "))))) -> 
A13: Existing Supplemental GSF: | B13: =IF($B$5="Elementary",B10*130*10^(-B10/250),IF($B$5="Secondary",B11*300*10^(-B11/300),IF($B$5="K-12",(B10+B11)*213*10^(-(B10+B11)/483),IF($B$5="Mixed Grade",(B10+B11)*250*10^(-(B10+B11)/250),IF($B$5="Secondary+6",(B10+B11)*250*10^(-(B10+B11)/250)," "))))) -> 
A14: Existing GSF Serving Total ADM: | B14: =IF(EXSF=0," ",B12+B13) -> 
A15: Unhoused Students: | B15: =IF(EXSF=0," ",IF(B5="Elementary",B7-B10,IF(B5="Secondary",B8-B11,(B7+B8)-(B10+B11)))) -> 
A16: Current Percent Capacity: | B16: =IF(EXSF=0," ",IF(TYPE="Elementary",ceadm/EADM,IF(TYPE="Secondary",csadm/SADM,(B7+B8)/(EADM+SADM)))) -> 

Sheet Projected Capacity
A1: Projected Capacity and Unhoused Run Macro Capacity_Calc (shortcut CTRL+e) to calculate projected school capacity
A2: District: | B2: ='Allow SF'!B2 -> 
A3: School: | B3: ='Allow SF'!B3 -> 0
A4: Project Number: | B4: ='Allow SF'!B4 -> 27-xxx
A5: School Type: | B5: =ADM!B6 -> K-12
A6: Capacity Data Type | B6: Capacity Values
A7: Projected ADM (K-6): | B7: ='Allow SF'!B7 -> 
A8: Projected ADM (7-12): | B8: ='Allow SF'!B8 -> 
A9: Existing GSF: | B9: ='Allow SF'!B9 -> 0
A10: Existing GSF Elementary Capacity:
A11: Existing GSF Secondary Capacity: | B11: =IF(EXSF=0," ",IF(TYPE="Elementary",0,IF(TYPE="Secondary",O19,EADM*csadm/ceadm))) -> 
A12: Existing Base GSF: | B12: =IF($B$5="Elementary",114*B10,IF($B$5="Secondary",B11*165,IF($B$5="K-12",B10*114+B11*165,IF($B$5="Mixed Grade",B10*114+B11*165,IF($B$5="Secondary+6",(B10+B11)*165," "))))) -> 
A13: Existing Supplemental GSF: | B13: =IF($B$5="Elementary",B10*130*10^(-B10/250),IF($B$5="Secondary",B11*300*10^(-B11/300),IF($B$5="K-12",(B10+B11)*213*10^(-(B10+B11)/483),IF($B$5="Mixed Grade",(B10+B11)*250*10^(-(B10+B11)/250),IF($B$5="Secondary+6",(B10+B11)*250*10^(-(B10+B11)/250)," "))))) -> 
A14: Existing GSF Serving Total ADM: | B14: =IF(EXSF=0," ",B12+B13) -> 
A15: Unhoused Students: | B15: =IF(EXSF=0," ",IF(B5="Elementary",B7-B10,IF(B5="Secondary",B8-B11,(B7+B8)-(B10+B11)))) -> 
A16: Projected Percent Capacity: | B16: =IF(EXSF=0," ",IF(TYPE="Elementary",ceadm/EADM,IF(TYPE="Secondary",csadm/SADM,(B7+B8)/(EADM+SADM)))) -> 

Sheet Current ADM
A1: Department of Education & Early Development Prepared by School Finance 5/8/2025 FY2025 ADM Report
A2: District | B2: School Name | C2: K-6* | D2: 7-12 | E2: Total ADM | F2: Attendance Area | H2: Attendance Area | I2: K-6 | J2: 7-12 | K2: Total | L2: District
A3: Alaska Gateway | B3: Dot Lake School | C3: 5.25 | D3: 7 | E3: =C3+D3 -> 12.25 | F3: Dot Lake | H3: Dot Lake | I3: =SUMIF($F$3:$F$509,H3,$C$3:$C$509) -> 5.25 | J3: =SUMIF($F$3:$F$509,H3,$D$3:$D$509) -> 7 | K3: =SUM(I3:J3) -> 12.25 | L3: Alaska Gateway
A4: Alaska Gateway | B4: Eagle Community School | C4: 6 | D4: 6 | E4: =C4+D4 -> 12 | F4: Eagle | H4: Eagle | I4: 6 | J4: 6 | K4: =SUM(I4:J4) -> 12 | L4: Alaska Gateway
A5: Alaska Gateway | B5: Mentasta Lake School | C5: 13 | D5: 13.25 | E5: 26.25 | F5: Mentasta Lake | H5: Mentasta Lake | I5: 13 | J5: 13.25 | K5: =SUM(I5:J5) -> 26.25 | L5: Alaska Gateway
A6: Alaska Gateway | B6: Tetlin School | C6: 13.25 | D6: 13 | E6: 26.25 | F6: Tetlin | H6: Tetlin | I6: 13.25 | J6: 13 | K6: =SUM(I6:J6) -> 26.25 | L6: Alaska Gateway
A7: Alaska Gateway | B7: Tok School | C7: 93 | D7: 79.25 | E7: 172.25 | F7: Tok | H7: Tok | I7: 93 | J7: 79.25 | K7: 172.25 | L7: Alaska Gateway
A8: Alaska Gateway | B8: Walter Northway School | C8: 27 | D8: 25 | E8: 52 | F8: Northway | H8: Northway | I8: 27 | J8: 25 | K8: 52 | L8: Alaska Gateway
A9: Alaska Gateway | B9: TOTAL | C9: =SUM(C3:C8) -> 157.5 | D9: =SUM(D3:D8) -> 143.5 | E9: =SUM(E3:E8) -> 301 | K9: =SUM(K3:K8) -> 301
A10: Aleutian Region | B10: Nikolski School | C10: 8 | D10: 2 | E10: =C10+D10 -> 10 | F10: Nikolski | H10: Nikolski | I10: =SUMIF($F$3:$F$509,H10,$C$3:$C$509) -> 8 | J10: =SUMIF($F$3:$F$509,H10,$D$3:$D$509) -> 2 | K10: 10
A11: Aleutian Region | B11: Yakov E. Netsvetov School | C11: 9 | D11: 2 | E11: =C11+D11 -> 11 | F11: Atka | H11: Atka | I11: =SUMIF($F$3:$F$509,H11,$C$3:$C$509) -> 9 | J11: =SUMIF($F$3:$F$509,H11,$D$3:$D$509) -> 2 | K11: 11 | L11: Aleutian Region
A12: Aleutian Region | B12: TOTAL | C12: =SUM(C11:C11) -> 9 | D12: =SUM(D11:D11) -> 2 | E12: =SUM(E10:E11) -> 21 | K12: =SUM(K10:K11) -> 21
A13: Aleutians East | B13: Akutan School | C13: 6.05 | D13: 9 | E13: =C13+D13 -> 15.05 | F13: Akutan | H13: Akutan | I13: =SUMIF($F$3:$F$509,H13,$C$3:$C$509) -> 6.05 | J13: =SUMIF($F$3:$F$509,H13,$D$3:$D$509) -> 9 | K13: 15.05 | L13: Aleutians East
A14: Aleutians East | B14: False Pass School | C14: 7 | D14: 3 | E14: =C14+D14 -> 10 | F14: False Pass | H14: False Pass | I14: =SUMIF($F$3:$F$509,H14,$C$3:$C$509) -> 7 | J14: =SUMIF($F$3:$F$509,H14,$D$3:$D$509) -> 3 | K14: 10 | L14: Aleutians East
A15: Aleutians East | B15: King Cove School | C15: 29 | D15: 29 | E15: =C15+D15 -> 58 | F15: King Cove | H15: King Cove | I15: =SUMIF($F$3:$F$509,H15,$C$3:$C$509) -> 29 | J15: =SUMIF($F$3:$F$509,H15,$D$3:$D$509) -> 29 | K15: 58 | L15: Aleutians East
A16: Aleutians East | B16: Sand Point School | C16: 37.1 | D16: 43 | E16: =C16+D16 -> 80.1 | F16: Sand Point | H16: Sand Point | I16: =SUMIF($F$3:$F$509,H16,$C$3:$C$509) -> 37.1 | J16: =SUMIF($F$3:$F$509,H16,$D$3:$D$509) -> 43 | K16: 80.1 | L16: Aleutians East
A17: Aleutians East | B17: TOTAL | C17: =SUM(C13:C16) -> 79.15 | D17: =SUM(D13:D16) -> 84 | E17: =SUM(E13:E16) -> 163.15 | K17: =SUM(K13:K16) -> 163.15
A18: Anchorage | B18: K-6 Airport Heights Elementary | C18: 227.65 | E18: =C18+D18 -> 227.65 | F18: Anchorage | H18: JBER | I18: =SUMIF($F$3:$F$509,H18,$C$3:$C$509) -> 1039.07 | J18: =SUMIF($F$3:$F$509,H18,$D$3:$D$509) -> 0 | K18: 1039.07 | L18: Anchorage
A19: Anchorage | B19: K-6 Alpenglow Elementary | C19: 276.1 | E19: 276.1 | F19: Anchorage | H19: Girdwood | I19: 143.8 | J19: 30.75 | K19: 174.55 | L19: Anchorage
A20: Anchorage | B20: K-6 Aurora Elementary (Mt. Spurr) | C20: 318.2 | E20: 318.2 | F20: JBER | H20: Anchorage | I20: 19477.43 | J20: 17354.9 | K20: 36832.33 | L20: Anchorage
A21: Anchorage | B21: K-6 Baxter Elementary | C21: 232.3 | E21: =C21+D21 -> 232.3 | F21: Anchorage | H21: School for the Deaf | I21: 11.3 | J21: 12 | K21: 23.3 | L21: Anchorage
A22: Anchorage | B22: K-6 Bayshore Elementary | C22: 338.15 | E22: 338.15 | F22: Anchorage | I22: 0 | J22: 0 | K22: 0 | L22: Anchorage
A23: Anchorage | B23: K-6 Bear Valley Elementary | C23: 314 | E23: 314 | F23: Anchorage | H23: *Note: King Career Center is not on this report, | I23: 0 | J23: 0 | K23: 0 | L23: Anchorage
A24: Anchorage | B24: K-6 Birchwood ABC | C24: 238.18 | E24: 238.18 | F24: Anchorage | I24: 0 | J24: 0 | K24: 0 | L24: Anchorage
A25: Anchorage | B25: K-6 Bowman Elementary | C25: 502.7 | E25: 502.7 | F25: Anchorage | I25: 0 | J25: 0 | K25: 0 | L25: Anchorage
A26: Anchorage | B26: K-6 Campbell Elementary | C26: 318.3 | E26: 318.3 | F26: Anchorage | I26: 0 | J26: 0 | K26: 0 | L26: Anchorage
A27: Anchorage | B27: K-6 Chester Valley Elementary (K-5) | C27: 180.7 | E27: 180.7 | F27: Anchorage | I27: 0 | J27: 0 | K27: 0 | L27: Anchorage
A28: Anchorage | B28: K-6 Chinook Elementary | C28: 342.9 | E28: 342.9 | F28: Anchorage | I28: 0 | J28: 0 | K28: 0 | L28: Anchorage
A29: Anchorage | B29: K-6 Chugach Optional Elementary | C29: 275 | E29: 275 | F29: Anchorage | I29: 0 | J29: 0 | K29: 0 | L29: Anchorage
A30: Anchorage | B30: K-6 Chugiak Elementary (K-5) | C30: 438.8 | E30: 438.8 | F30: Anchorage | I30: 0 | J30: 0 | K30: 0 | L30: Anchorage
A31: Anchorage | B31: K-6 College Gate Elementary | C31: 345.6 | E31: 345.6 | F31: Anchorage | I31: 0 | J31: 0 | K31: 0 | L31: Anchorage
A32: Anchorage | B32: K-6 Creekside Park (K-5) | C32: 380.23 | E32: 380.23 | F32: Anchorage | I32: 0 | J32: 0 | K32: 0 | L32: Anchorage
A33: Anchorage | B33: K-6 Denali Elementary | C33: 348.15 | E33: 348.15 | F33: Anchorage | I33: 0 | J33: 0 | K33: 0 | L33: Anchorage
A34: Anchorage | B34: K-6 Eagle River Elementary | C34: 249.2 | E34: 249.2 | F34: Anchorage | I34: 0 | J34: 0 | K34: 0 | L34: Anchorage
A35: Anchorage | B35: K-6 Dr. Etheldra Davis - Fairview Elementary | C35: 313.95 | E35: 313.95 | F35: Anchorage | I35: 0 | J35: 0 | K35: 0 | L35: Anchorage
A36: Anchorage | B36: K-6 Fire Lake Elementary (K-5) | C36: 191 | E36: 191 | F36: Anchorage | I36: 0 | J36: 0 | K36: 0 | L36: Anchorage
A37: Anchorage | B37: K-6 Girdwood School (K-8) | C37: 143.8 | D37: 30.75 | E37: 174.55 | F37: Girdwood | I37: 0 | J37: 0 | K37: 0 | L37: Anchorage
A38: Anchorage | B38: K-6 Gladys Wood Elementary | C38: 245.5 | E38: 245.5 | F38: Anchorage | I38: 0 | J38: 0 | K38: 0 | L38: Anchorage
A39: Anchorage | B39: K-6 Government Hill Elementary | C39: 417.52 | E39: 417.52 | F39: Anchorage | I39: 0 | J39: 0 | K39: 0 | L39: Anchorage
A40: Anchorage | B40: K-6 Homestead Elementary | C40: 250.05 | E40: 250.05 | F40: Anchorage | I40: 0 | J40: 0 | K40: 0 | L40: Anchorage
A41: Anchorage | B41: K-6 Huffman Elementary | C41: 268.1 | E41: 268.1 | F41: Anchorage | I41: 0 | J41: 0 | K41: 0 | L41: Anchorage
A42: Anchorage | B42: K-6 Inlet View Elementary | C42: 187.55 | E42: 187.55 | F42: Anchorage | I42: 0 | J42: 0 | K42: 0 | L42: Anchorage
A43: Anchorage | B43: K-6 Kasuun Elementary | C43: 342.63 | E43: 342.63 | F43: Anchorage | I43: 0 | J43: 0 | K43: 0 | L43: Anchorage
A44: Anchorage | B44: K-6 Kincaid Elementary | C44: 321.45 | E44: 321.45 | F44: Anchorage | I44: 0 | J44: 0 | K44: 0 | L44: Anchorage
A45: Anchorage | B45: K-6 Klatt Elementary | C45: 274.35 | E45: 274.35 | F45: Anchorage | I45: 0 | J45: 0 | K45: 0 | L45: Anchorage
A46: Anchorage | B46: K-6 Lake Hood Elementary | C46: 168.45 | E46: 168.45 | F46: Anchorage | I46: 0 | J46: 0 | K46: 0 | L46: Anchorage
A47: Anchorage | B47: K-6 Lake Otis Elementary | C47: 248.92 | E47: 248.92 | F47: Anchorage | I47: 0 | J47: 0 | K47: 0 | L47: Anchorage
A48: Anchorage | B48: K-6 Mountain View Elementary | C48: 215.35 | E48: 215.35 | F48: Anchorage | I48: 0 | J48: 0 | K48: 0 | L48: Anchorage
A49: Anchorage | B49: K-6 Muldoon Elementary (K-5) | C49: 393.74 | E49: 393.74 | F49: Anchorage | I49: 0 | J49: 0 | K49: 0 | L49: Anchorage
A50: Anchorage | B50: K-6 North Star Elementary | C50: 300.2 | E50: 300.2 | F50: Anchorage | I50: =SUMIF($F$3:$F$509,H50,$C$3:$C$509) -> 0 | J50: =SUMIF($F$3:$F$509,H50,$D$3:$D$509) -> 0 | K50: 0 | L50: Anchorage
A51: Anchorage | B51: K-6 Northwood Elementary | C51: 221.7 | E51: 221.7 | F51: Anchorage | I51: 0 | J51: 0 | K51: 0 | L51: Anchorage
A52: Anchorage | B52: K-6 Nunaka Valley Elementary | C52: 161.67 | E52: 161.67 | F52: Anchorage | I52: 0 | J52: 0 | K52: 0 | L52: Anchorage
A53: Anchorage | B53: K-6 Ocean View Elementary | C53: 265.95 | E53: 265.95 | F53: Anchorage | I53: 0 | J53: 0 | K53: 0 | L53: Anchorage
A54: Anchorage | B54: K-6 O'Malley Elementary | C54: 347.61 | E54: 347.61 | F54: Anchorage | I54: 0 | J54: 0 | K54: 0 | L54: Anchorage
A55: Anchorage | B55: K-6 Orion Elementary (Mt. Spurr) | C55: 355.62 | E55: 355.62 | F55: JBER | I55: 0 | J55: 0 | K55: 0 | L55: Anchorage
A56: Anchorage | B56: K-6 Ptarmigan Elementary | C56: 376.78 | E56: 376.78 | F56: Anchorage | I56: 0 | J56: 0 | K56: 0 | L56: Anchorage
A57: Anchorage | B57: K-6 Rabbit Creek Elementary | C57: 289.4 | E57: 289.4 | F57: Anchorage | I57: 0 | J57: 0 | K57: 0 | L57: Anchorage
A58: Anchorage | B58: K-6 Ravenwood Elementary | C58: 355.45 | E58: 355.45 | F58: Anchorage | I58: 0 | J58: 0 | K58: 0 | L58: Anchorage
A59: Anchorage | B59: K-6 Rogers Park Elementary | C59: 346.25 | E59: 346.25 | F59: Anchorage | I59: 0 | J59: 0 | K59: 0 | L59: Anchorage
A60: Anchorage | B60: K-6 Russian Jack Elementary | C60: 237.6 | E60: 237.6 | F60: Anchorage | I60: 0 | J60: 0 | K60: 0 | L60: Anchorage
A61: Anchorage | B61: K-6 Sand Lake Elementary | C61: 366.6 | E61: 366.6 | F61: Anchorage | I61: 0 | J61: 0 | K61: 0 | L61: Anchorage
A62: Anchorage | B62: K-6 Scenic Park Elementary (K-5) | C62: 388.5 | E62: 388.5 | F62: Anchorage | I62: 0 | J62: 0 | K62: 0 | L62: Anchorage
A63: Anchorage | B63: K-6 Spring Hill Elementary | C63: 269.2 | E63: 269.2 | F63: Anchorage | I63: 0 | J63: 0 | K63: 0 | L63: Anchorage
A64: Anchorage | B64: K-6 Susitna Elementary | C64: 380.8 | E64: 380.8 | F64: Anchorage | I64: 0 | J64: 0 | K64: 0 | L64: Anchorage
A65: Anchorage | B65: K-6 Taku Elementary | C65: 244.9 | E65: 244.9 | F65: Anchorage | I65: 0 | J65: 0 | K65: 0 | L65: Anchorage
A66: Anchorage | B66: K-6 Trailside Elementary | C66: 346.05 | E66: 346.05 | F66: Anchorage | I66: 0 | J66: 0 | K66: 0 | L66: Anchorage
A67: Anchorage | B67: K-6 Tudor Elementary | C67: 295.35 | E67: 295.35 | F67: Anchorage | I67: 0 | J67: 0 | K67: 0 | L67: Anchorage
A68: Anchorage | B68: K-6 Turnagain Elementary | C68: 248.1 | E68: 248.1 | F68: Anchorage | I68: 0 | J68: 0 | K68: 0 | L68: Anchorage
A69: Anchorage | B69: K-6 Ursa Major Elementary | C69: 107.5 | E69: 107.5 | F69: JBER | I69: 0 | J69: 0 | K69: 0 | L69: Anchorage
A70: Anchorage | B70: K-6 Ursa Minor Elementary | C70: 257.75 | E70: 257.75 | F70: JBER | I70: 0 | J70: 0 | K70: =SUM(I70:J70) -> 0 | L70: Anchorage
A71: Anchorage | B71: K-6 William Tyson Elementary | C71: 332.35 | E71: 332.35 | F71: Anchorage | I71: 0 | J71: 0 | K71: 0 | L71: Anchorage
A72: Anchorage | B72: K-6 Williwaw Elementary | C72: 297.1 | E72: 297.1 | F72: Anchorage | I72: 0 | J72: 0 | K72: 0 | L72: Anchorage
A73: Anchorage | B73: K-6 Willow Crest Elementary | C73: 273.8 | E73: 273.8 | F73: Anchorage | I73: 0 | J73: 0 | K73: 0 | L73: Anchorage
A74: Anchorage | B74: K-6 Wonder Park Elementary | C74: 261.54 | E74: 261.54 | F74: Anchorage | I74: 0 | J74: 0 | K74: 0 | L74: Anchorage
A75: Anchorage | B75: K-8 Northern Lights ABC Elementary | C75: 477.45 | D75: 103.95 | E75: 581.4 | F75: Anchorage | I75: 0 | J75: 0 | K75: 0 | L75: Anchorage
A76: Anchorage | B76: MS Central Middle | C76: 187.75 | D76: 356.9 | E76: 544.65 | F76: Anchorage | I76: 0 | J76: 0 | K76: 0 | L76: Anchorage
A77: Anchorage | B77: MS Clark Middle | C77: 251.55 | D77: 452.18 | E77: 703.73 | F77: Anchorage | I77: 0 | J77: 0 | K77: 0 | L77: Anchorage
A78: Anchorage | B78: MS Golden View Middle | C78: 300.8 | D78: 625.9 | E78: 926.7 | F78: Anchorage | I78: 0 | J78: 0 | K78: 0 | L78: Anchorage
A79: Anchorage | B79: MS Gruening Middle School | C79: 242.85 | D79: 547.9 | E79: 790.75 | F79: Anchorage | I79: 0 | J79: 0 | K79: 0 | L79: Anchorage
A80: Anchorage | B80: MS Hanshew Middle | C80: 261.65 | D80: 557.95 | E80: 819.6 | F80: Anchorage | I80: 0 | J80: 0 | K80: 0 | L80: Anchorage
A81: Anchorage | B81: MS Mears Middle School | C81: 334 | D81: 718.5 | E81: 1052.5 | F81: Anchorage | I81: 0 | J81: 0 | K81: 0 | L81: Anchorage
A82: Anchorage | B82: MS Mirror Lake Middle School | C82: 204.66 | D82: 368.08 | E82: =C82+D82 -> 572.74 | F82: Anchorage | I82: =SUMIF($F$3:$F$509,H82,$C$3:$C$509) -> 0 | J82: =SUMIF($F$3:$F$509,H82,$D$3:$D$509) -> 0 | K82: 0 | L82: Anchorage
A83: Anchorage | B83: MS Nicholas J. Begich Middle School | C83: 265.85 | D83: 562 | E83: 827.85 | F83: Anchorage | I83: 0 | J83: 0 | K83: 0 | L83: Anchorage
A84: Anchorage | B84: MS Romig Middle | C84: 353 | D84: 776.58 | E84: 1129.58 | F84: Anchorage | I84: 0 | J84: 0 | K84: 0 | L84: Anchorage
A85: Anchorage | B85: MS Wendler Middle | C85: 202.5 | D85: 398.85 | E85: 601.35 | F85: Anchorage | I85: 0 | J85: 0 | K85: 0 | L85: Anchorage
A86: Anchorage | B86: SH Bartlett High | C86: 14.28 | D86: 1398.66 | E86: 1412.94 | F86: Anchorage | I86: 0 | J86: 0 | K86: 0 | L86: Anchorage
A87: Anchorage | B87: SH Chugiak High | D87: 918.16 | E87: 918.16 | F87: Anchorage | I87: 0 | J87: 0 | K87: 0 | L87: Anchorage
A88: Anchorage | B88: SH Dimond High | D88: 1365.15 | E88: 1365.15 | F88: Anchorage | I88: 0 | J88: 0 | K88: 0 | L88: Anchorage
A89: Anchorage | B89: SH Eagle River High | D89: 758.99 | E89: 758.99 | F89: Anchorage | I89: 0 | J89: 0 | K89: 0 | L89: Anchorage
A90: Anchorage | B90: SH Bettye Davis East Anchorage High | D90: 1622.19 | E90: 1622.19 | F90: Anchorage | I90: 0 | J90: 0 | K90: 0 | L90: Anchorage
A91: Anchorage | B91: SH Service High | D91: 1507.14 | E91: 1507.14 | F91: Anchorage | I91: 0 | J91: 0 | K91: 0 | L91: Anchorage
A92: Anchorage | B92: SH South Anchorage High | D92: 1225.51 | E92: 1225.51 | F92: Anchorage | I92: 0 | J92: 0 | K92: 0 | L92: Anchorage
A93: Anchorage | B93: SH West High | D93: 1693.55 | E93: 1693.55 | F93: Anchorage | I93: 0 | J93: 0 | K93: 0 | L93: Anchorage
A94: Anchorage | B94: C Alaska Native Charter School (PK-8) | C94: 265.15 | D94: 74 | E94: 339.15 | F94: Anchorage | I94: 0 | J94: 0 | K94: 0 | L94: Anchorage
A95: Anchorage | B95: C Anchorage STrEaM Academy (6-8) | C95: 64.95 | D95: 118.05 | E95: 183 | F95: None | I95: 0 | J95: 0 | K95: 0 | L95: Anchorage
A96: Anchorage | B96: C Aquarian Charter (K-6) | C96: 365 | E96: 365 | F96: Anchorage | I96: 0 | J96: 0 | K96: 0 | L96: Anchorage
A97: Anchorage | B97: C Eagle Academy Charter (K-8) | C97: 168.7 | D97: 30.75 | E97: 199.45 | F97: None | I97: 0 | J97: 0 | K97: 0 | L97: Anchorage
A98: Anchorage | B98: C Highland Tech Charter (6-12) | C98: 34 | D98: 165.75 | E98: 199.75 | F98: None | I98: 0 | J98: 0 | K98: 0 | L98: Anchorage
A99: Anchorage | B99: C Rilke Schule Charter (K-8) | C99: 411.3 | D99: 73 | E99: 484.3 | F99: None | I99: 0 | J99: 0 | K99: 0 | L99: Anchorage
A100: Anchorage | B100: C Winterberry Charter (K-8) | C100: 212.75 | D100: 50 | E100: 262.75 | F100: None | I100: 0 | J100: 0 | K100: 0 | L100: Anchorage
A101: Anchorage | B101: A *Whaley Center | C101: 17.52 | D101: 278.46 | E101: 295.98 | F101: Anchorage | I101: 0 | J101: 0 | K101: 0 | L101: Anchorage
A102: Anchorage | B102: A Alaska Middle College School | D102: 269.35 | E102: 269.35 | F102: None | I102: 0 | J102: 0 | K102: =SUM(I102:J102) -> 0 | L102: Anchorage
A103: Anchorage | B103: Benny Benson Alternative High School (7-12) | D103: 261.38 | E103: 261.38 | F103: Anchorage | I103: 0 | J103: 0 | K103: 0 | L103: Anchorage
A104: Anchorage | B104: A Martin Luther King Jr. Tech High School | D104: 117.89 | E104: 117.89 | F104: Anchorage | I104: 0 | J104: 0 | K104: 0 | L104: Anchorage
A105: Anchorage | B105: A Polaris (K-12) | C105: 243 | D105: 239.75 | E105: 482.75 | F105: Anchorage | I105: 0 | J105: 0 | K105: 0 | L105: Anchorage
A106: Anchorage | B106: A S.A.V.E. (9-12) | D106: 158.03 | E106: 158.03 | F106: Anchorage | I106: 0 | J106: 0 | K106: 0 | L106: Anchorage
A107: Anchorage | B107: A Steller Secondary (7-12) | C107: 37 | D107: 267.25 | E107: 304.25 | F107: Anchorage | I107: 0 | J107: 0 | K107: 0 | L107: Anchorage
A108: Anchorage | B108: O Alaska School for Deaf & Hard of Hearing (PK-12) | C108: 11.3 | D108: 12 | E108: 23.3 | F108: School for the Deaf | H108: SH = Senior High | I108: 0 | J108: 0 | K108: 0 | L108: Anchorage
A109: Anchorage | B109: O McLaughlin Youth Center (6-12) | D109: 91 | E109: 91 | F109: None | I109: 0 | J109: 0 | K109: 0 | L109: Anchorage
A110: Anchorage | B110: TOTAL | C110: =SUM(C18:C109) -> 21563.3 | D110: =SUM(D18:D109) -> 18195.55 | E110: =SUM(E18:E109) -> 39758.85 | K110: =SUM(K18:K109) -> 38069.25
A111: Annette Island | B111: Leask Middle School | C111: 23 | D111: 50.45 | E111: =C111+D111 -> 73.45 | F111: Metlakatla | H111: Metlakatla | I111: =SUMIF($F$3:$F$509,H111,$C$3:$C$509) -> 119.8 | J111: =SUMIF($F$3:$F$509,H111,$D$3:$D$509) -> 147.95 | K111: =SUM(I111:J111) -> 267.75 | L111: Annette Island
A112: Annette Island | B112: Metlakatla High School | D112: 97.5 | E112: =C112+D112 -> 97.5 | F112: Metlakatla | I112: =SUMIF($F$3:$F$509,H112,$C$3:$C$509) -> 0 | J112: =SUMIF($F$3:$F$509,H112,$D$3:$D$509) -> 0 | K112: 0 | L112: Annette Island
A113: Annette Island | B113: R. J. Elementary | C113: 96.8 | E113: =C113+D113 -> 96.8 | F113: Metlakatla | I113: =SUMIF($F$3:$F$509,H113,$C$3:$C$509) -> 0 | J113: =SUMIF($F$3:$F$509,H113,$D$3:$D$509) -> 0 | K113: 0 | L113: Annette Island
A114: Annette Island | B114: TOTAL | C114: =SUM(C111:C113) -> 119.8 | D114: =SUM(D111:D113) -> 147.95 | E114: =SUM(E111:E113) -> 267.75 | K114: =SUM(K111:K113) -> 267.75
A115: Bering Strait | B115: Aniguin School (Elim) | C115: 40 | D115: 48.45 | E115: =C115+D115 -> 88.45 | F115: Elim | H115: Elim | I115: =SUMIF($F$3:$F$509,H115,$C$3:$C$509) -> 40 | J115: =SUMIF($F$3:$F$509,H115,$D$3:$D$509) -> 48.45 | K115: 88.45 | L115: Bering Strait
A116: Bering Strait | B116: Anthony B. Andrews School (St. Michael) | C116: 60.73 | D116: 44.75 | E116: =C116+D116 -> 105.48 | F116: St. Michael | H116: St. Michael | I116: 60.73 | J116: 44.75 | K116: 105.48 | L116: Bering Strait
A117: Bering Strait | B117: Brevig Mission School | C117: 69.75 | D117: 75.05 | E117: 144.8 | F117: Brevig Mission | H117: Brevig Mission | I117: 69.75 | J117: 75.05 | K117: 144.8 | L117: Bering Strait
A118: Bering Strait | B118: Diomede School | C118: 11 | D118: 11 | E118: 22 | F118: Diomede | H118: Diomede | I118: 11 | J118: 11 | K118: 22 | L118: Bering Strait
A119: Bering Strait | B119: Gambell School | C119: 74.4 | D119: 71.85 | E119: 146.25 | F119: Gambell | H119: Gambell | I119: 74.4 | J119: 71.85 | K119: 146.25 | L119: Bering Strait
A120: Bering Strait | B120: Martin L. Olson School | C120: 14.5 | D120: 22 | E120: 36.5 | F120: Golovin | H120: Golovin | I120: 14.5 | J120: 22 | K120: 36.5 | L120: Bering Strait
A121: Bering Strait | B121: James C. Isabell School (Teller) | C121: 33 | D121: 29.15 | E121: 62.15 | F121: Teller | H121: Teller | I121: 33 | J121: 29.15 | K121: 62.15 | L121: Bering Strait
A122: Bering Strait | B122: Koyuk Malimiut School | C122: 54 | D122: 35 | E122: 89 | F122: Koyuk | H122: Koyuk | I122: 54 | J122: 35 | K122: 89 | L122: Bering Strait
A123: Bering Strait | B123: Hogarth Kingeekuk SR. | C123: 99.15 | D123: 116.9 | E123: 216.05 | F123: Savoonga | H123: Savoonga | I123: 99.15 | J123: 116.9 | K123: 216.05 | L123: Bering Strait
A124: Bering Strait | B124: Shaktoolik School | C124: 25 | D124: 38 | E124: 63 | F124: Shaktoolik | H124: Shaktoolik | I124: 25 | J124: 38 | K124: 63 | L124: Bering Strait
A125: Bering Strait | B125: Shishmaref School | C125: 86 | D125: 83.45 | E125: 169.45 | F125: Shishmaref | H125: Shishmaref | I125: 86 | J125: 83.45 | K125: 169.45 | L125: Bering Strait
A126: Bering Strait | B126: Tukurngailnguq School (Stebbins) | C126: 134.85 | D126: 92.55 | E126: 227.4 | F126: Stebbins | H126: Stebbins | I126: 134.85 | J126: 92.55 | K126: 227.4 | L126: Bering Strait
A127: Bering Strait | B127: Unalakleet School | C127: 85.35 | D127: 69 | E127: 154.35 | F127: Unalakleet | H127: Unalakleet | I127: 85.35 | J127: 69 | K127: 154.35 | L127: Bering Strait
A128: Bering Strait | B128: Wales School (Kingikmiut) | C128: 21.9 | D128: 10 | E128: 31.9 | F128: Wales | H128: Wales | I128: 21.9 | J128: 10 | K128: 31.9 | L128: Bering Strait
A129: Bering Strait | B129: White Mountain School | C129: 28.5 | D129: 35.15 | E129: 63.65 | F129: White Mountain | H129: White Mountain | I129: 28.5 | J129: 35.15 | K129: 63.65 | L129: Bering Strait
A130: Bering Strait | B130: TOTAL | C130: =SUM(C115:C129) -> 838.13 | D130: =SUM(D115:D129) -> 782.3 | E130: =SUM(E115:E129) -> 1620.43 | K130: =SUM(K115:K129) -> 1620.43
A131: Bristol Bay | B131: Bristol Bay School | D131: 45.73 | E131: =C131+D131 -> 45.73 | F131: Naknek | H131: Naknek | I131: =SUMIF($F$3:$F$509,H131,$C$3:$C$509) -> 47.6 | J131: =SUMIF($F$3:$F$509,H131,$D$3:$D$509) -> 45.73 | K131: =SUM(I131:J131) -> 93.33 | L131: Bristol Bay
A132: Bristol Bay | B132: Naknek Elementary | C132: 47.6 | E132: =C132+D132 -> 47.6 | F132: Naknek | I132: =SUMIF($F$3:$F$509,H132,$C$3:$C$509) -> 0 | J132: =SUMIF($F$3:$F$509,H132,$D$3:$D$509) -> 0 | K132: =SUM(I132:J132) -> 0 | L132: Bristol Bay
A133: Bristol Bay | B133: TOTAL | C133: =SUM(C131:C132) -> 47.6 | D133: =SUM(D131:D132) -> 45.73 | E133: =SUM(E131:E132) -> 93.33 | K133: =SUM(K131:K132) -> 93.33
A134: Chatham | B134: Angoon School | C134: 33 | D134: 36.05 | E134: =C134+D134 -> 69.05 | F134: Angoon | H134: Angoon | I134: =SUMIF($F$3:$F$509,H134,$C$3:$C$509) -> 33 | J134: =SUMIF($F$3:$F$509,H134,$D$3:$D$509) -> 36.05 | K134: 69.05 | L134: Chatham
A135: Chatham | B135: Gustavus School | C135: 25 | D135: 25.75 | E135: =C135+D135 -> 50.75 | F135: Gustavus | H135: Gustavus | I135: =SUMIF($F$3:$F$509,H135,$C$3:$C$509) -> 25 | J135: =SUMIF($F$3:$F$509,H135,$D$3:$D$509) -> 25.75 | K135: 50.75 | L135: Chatham
A136: Chatham | B136: Klukwan School | C136: 19.5 | D136: 3 | E136: =C136+D136 -> 22.5 | F136: Klukwan | H136: Klukwan | I136: =SUMIF($F$3:$F$509,H136,$C$3:$C$509) -> 19.5 | J136: =SUMIF($F$3:$F$509,H136,$D$3:$D$509) -> 3 | K136: 22.5 | L136: Chatham
A137: Chatham | B137: TOTAL | C137: =SUM(C134:C136) -> 77.5 | D137: =SUM(D134:D136) -> 64.8 | E137: =SUM(E134:E136) -> 142.3 | K137: =SUM(K134:K136) -> 142.3
A138: Chugach | B138: Chenega Bay School | C138: 5 | D138: 4.4 | E138: =C138+D138 -> 9.4 | F138: Chenega Bay | H138: Chenega Bay | I138: =SUMIF($F$3:$F$509,H138,$C$3:$C$509) -> 5 | J138: =SUMIF($F$3:$F$509,H138,$D$3:$D$509) -> 4.4 | K138: 9.4 | L138: Chugach
A139: Chugach | B139: Tatitlek Community School | C139: 4 | D139: 6 | E139: =C139+D139 -> 10 | F139: Tatitlek | H139: Tatitlek | I139: =SUMIF($F$3:$F$509,H139,$C$3:$C$509) -> 4 | J139: =SUMIF($F$3:$F$509,H139,$D$3:$D$509) -> 6 | K139: 10 | L139: Chugach
A140: Chugach | B140: Whittier Community School | C140: 25.65 | D140: 22.7 | E140: =C140+D140 -> 48.35 | F140: Whittier | H140: Whittier | I140: =SUMIF($F$3:$F$509,H140,$C$3:$C$509) -> 25.65 | J140: =SUMIF($F$3:$F$509,H140,$D$3:$D$509) -> 22.7 | K140: 48.35 | L140: Chugach
A141: Chugach | B141: TOTAL | C141: =SUM(C138:C140) -> 34.65 | D141: =SUM(D138:D140) -> 33.1 | E141: =SUM(E138:E140) -> 67.75 | K141: =SUM(K138:K140) -> 67.75
A142: Copper River | B142: Glennallen School [Jr/Sr HS] | D142: 81.7 | E142: =C142+D142 -> 81.7 | F142: Glennallen | H142: Glennallen | I142: =SUMIF($F$3:$F$509,H142,$C$3:$C$509) -> 124.05 | J142: =SUMIF($F$3:$F$509,H142,$D$3:$D$509) -> 81.7 | K142: =SUM(I142:J142) -> 205.75 | L142: Copper River
A143: Copper River | B143: Glennallen School K-6 | C143: 124.05 | E143: =C143+D143 -> 124.05 | F143: Glennallen | H143: Kenny Lake | I143: =SUMIF($F$3:$F$509,H143,$C$3:$C$509) -> 34.4 | J143: =SUMIF($F$3:$F$509,H143,$D$3:$D$509) -> 18.15 | K143: =SUM(I143:J143) -> 52.55 | L143: Copper River
A144: Copper River | B144: Kenny Lake School | C144: 34.4 | D144: 18.15 | E144: =C144+D144 -> 52.55 | F144: Kenny Lake | H144: Slana | I144: =SUMIF($F$3:$F$509,H144,$C$3:$C$509) -> 4.75 | J144: =SUMIF($F$3:$F$509,H144,$D$3:$D$509) -> 7 | K144: =SUM(I144:J144) -> 11.75 | L144: Copper River
A145: Copper River | B145: Slana School | C145: 4.75 | D145: 7 | E145: =C145+D145 -> 11.75 | F145: Slana | I145: =SUMIF($F$3:$F$509,H145,$C$3:$C$509) -> 0 | J145: =SUMIF($F$3:$F$509,H145,$D$3:$D$509) -> 0 | K145: =SUM(I145:J145) -> 0 | L145: Copper River
A146: Copper River | B146: TOTAL | C146: =SUM(C142:C145) -> 163.2 | D146: =SUM(D142:D145) -> 106.85 | E146: =SUM(E142:E145) -> 270.05 | K146: =SUM(K142:K145) -> 270.05
A147: Cordova | B147: Cordova High School [Jr/Sr HS] | D147: 123.75 | E147: =C147+D147 -> 123.75 | F147: Cordova | H147: Cordova | I147: =SUMIF($F$3:$F$509,H147,$C$3:$C$509) -> 228.05 | J147: =SUMIF($F$3:$F$509,H147,$D$3:$D$509) -> 123.75 | K147: =SUM(I147:J147) -> 351.8 | L147: Cordova
A148: Cordova | B148: Mt. Eccles Elementary | C148: 228.05 | E148: =C148+D148 -> 228.05 | F148: Cordova | I148: =SUMIF($F$3:$F$509,H148,$C$3:$C$509) -> 0 | J148: =SUMIF($F$3:$F$509,H148,$D$3:$D$509) -> 0 | K148: =SUM(I148:J148) -> 0 | L148: Cordova
A149: Cordova | B149: TOTAL | C149: =SUM(C147:C148) -> 228.05 | D149: =SUM(D147:D148) -> 123.75 | E149: =SUM(E147:E148) -> 351.8 | K149: =SUM(K147:K148) -> 351.8
A150: Craig | B150: Craig Elementary | C150: 79.4 | E150: =C150+D150 -> 79.4 | F150: Craig | H150: Craig | I150: =SUMIF($F$3:$F$509,H150,$C$3:$C$509) -> 93.65 | J150: =SUMIF($F$3:$F$509,H150,$D$3:$D$509) -> 102.35 | K150: =SUM(I150:J150) -> 196 | L150: Craig
A151: Craig | B151: Craig Middle School | C151: 14.25 | D151: 37.15 | E151: =C151+D151 -> 51.4 | F151: Craig | I151: =SUMIF($F$3:$F$509,H151,$C$3:$C$509) -> 0 | J151: =SUMIF($F$3:$F$509,H151,$D$3:$D$509) -> 0 | K151: =SUM(I151:J151) -> 0 | L151: Craig
A152: Craig | B152: Craig High School | D152: 65.2 | E152: =C152+D152 -> 65.2 | F152: Craig | I152: =SUMIF($F$3:$F$509,H152,$C$3:$C$509) -> 0 | J152: =SUMIF($F$3:$F$509,H152,$D$3:$D$509) -> 0 | K152: =SUM(I152:J152) -> 0 | L152: Craig
A153: Craig | B153: TOTAL | C153: =SUM(C150:C152) -> 93.65 | D153: =SUM(D150:D152) -> 102.35 | E153: =SUM(E150:E152) -> 196 | K153: =SUM(K150:K152) -> 196
A154: Delta/Greely | B154: Delta Junction Elementary School (K-5) | C154: 300.75 | E154: =C154+D154 -> 300.75 | F154: Delta Junction | H154: Delta Junction | I154: =SUMIF($F$3:$F$509,H154,$C$3:$C$509) -> 333.15 | J154: =SUMIF($F$3:$F$509,H154,$D$3:$D$509) -> 229.43 | K154: =SUM(I154:J154) -> 562.58 | L154: Delta/Greely
A155: Delta/Greely | B155: Delta Junction Jr High School (6-8) | C155: 32.4 | D155: 93.83 | E155: =C155+D155 -> 126.23 | F155: Delta Junction | H155: Gerstle River | I155: =SUMIF($F$3:$F$509,H155,$C$3:$C$509) -> 22 | J155: =SUMIF($F$3:$F$509,H155,$D$3:$D$509) -> 10 | K155: =SUM(I155:J155) -> 32 | L155: Delta/Greely
A156: Delta/Greely | B156: Delta Junction Sr High School (9-12) | D156: 135.6 | E156: =C156+D156 -> 135.6 | F156: Delta Junction | I156: =SUMIF($F$3:$F$509,H156,$C$3:$C$509) -> 0 | J156: =SUMIF($F$3:$F$509,H156,$D$3:$D$509) -> 0 | K156: =SUM(I156:J156) -> 0 | L156: Delta/Greely
A157: Delta/Greely | B157: Gerstle River School | C157: 22 | D157: 10 | E157: =C157+D157 -> 32 | F157: Gerstle River | I157: =SUMIF($F$3:$F$509,H157,$C$3:$C$509) -> 0 | J157: =SUMIF($F$3:$F$509,H157,$D$3:$D$509) -> 0 | K157: =SUM(I157:J157) -> 0 | L157: Delta/Greely
A158: Delta/Greely | B158: TOTAL | C158: =SUM(C154:C157) -> 355.15 | D158: =SUM(D154:D157) -> 239.43 | E158: =SUM(E154:E157) -> 594.58 | K158: =SUM(K154:K157) -> 594.58
A159: Denali | B159: Anderson School | C159: 4 | D159: 3.25 | E159: =C159+D159 -> 7.25 | F159: Anderson | H159: Anderson | I159: =SUMIF($F$3:$F$509,H159,$C$3:$C$509) -> 4 | J159: =SUMIF($F$3:$F$509,H159,$D$3:$D$509) -> 3.25 | K159: 7.25 | L159: Denali
A160: Denali | B160: Cantwell School | C160: 8.75 | D160: 4 | E160: =C160+D160 -> 12.75 | F160: Cantwell | H160: Cantwell | I160: =SUMIF($F$3:$F$509,H160,$C$3:$C$509) -> 8.75 | J160: =SUMIF($F$3:$F$509,H160,$D$3:$D$509) -> 4 | K160: 12.75 | L160: Denali
A161: Denali | B161: Tri-Valley School | C161: 89.66 | D161: 67.66 | E161: =C161+D161 -> 157.32 | F161: Healy | H161: Healy | I161: =SUMIF($F$3:$F$509,H161,$C$3:$C$509) -> 89.66 | J161: =SUMIF($F$3:$F$509,H161,$D$3:$D$509) -> 67.66 | K161: 157.32 | L161: Denali
A162: Denali | B162: TOTAL | C162: =SUM(C159:C161) -> 102.41 | D162: =SUM(D159:D161) -> 74.91 | E162: =SUM(E159:E161) -> 177.32 | K162: =SUM(K159:K161) -> 177.32
A163: Dillingham | B163: Dillingham Elementary | C163: 169.5 | E163: =C163+D163 -> 169.5 | F163: Dillingham | H163: Dillingham | I163: =SUMIF($F$3:$F$509,H163,$C$3:$C$509) -> 205.95 | J163: =SUMIF($F$3:$F$509,H163,$D$3:$D$509) -> 179.65 | K163: =SUM(I163:J163) -> 385.6 | L163: Dillingham
A164: Dillingham | B164: Dillingham Middle & High School | C164: 36.45 | D164: 179.65 | E164: =C164+D164 -> 216.1 | F164: Dillingham | I164: =SUMIF($F$3:$F$509,H164,$C$3:$C$509) -> 0 | J164: =SUMIF($F$3:$F$509,H164,$D$3:$D$509) -> 0 | K164: 0 | L164: Dillingham
A165: Dillingham | B165: TOTAL | C165: =SUM(C163:C164) -> 205.95 | D165: =SUM(D163:D164) -> 179.65 | E165: =SUM(E163:E164) -> 385.6 | K165: =SUM(K163:K164) -> 385.6
A166: Fairbanks | B166: Anne Wien Elementary School | C166: 355.74 | E166: =C166+D166 -> 355.74 | F166: Fairbanks | H166: North Pole | I166: =SUMIF($F$3:$F$509,H166,$C$3:$C$509) -> 1192.53 | J166: =SUMIF($F$3:$F$509,H166,$D$3:$D$509) -> 1291.88 | K166: 2484.41 | L166: Fairbanks
A167: Fairbanks | B167: Arctic Light Elementary School | C167: 359.61 | E167: =C167+D167 -> 359.61 | F167: Ft. Wainwright | H167: Salcha | I167: 59.5 | J167: 0 | K167: 59.5 | L167: Fairbanks
A168: Fairbanks | B168: Barnette Elementary School | C168: 327 | D168: 90 | E168: 417 | F168: Fairbanks | H168: Two Rivers | I168: 54 | J168: 10 | K168: 64 | L168: Fairbanks
A169: Fairbanks | B169: Boreal Sun Charter School | C169: 158.75 | D169: 42 | E169: 200.75 | F169: None | H169: Ft. Wainwright | I169: 359.61 | J169: 0 | K169: 359.61 | L169: Fairbanks
A170: Fairbanks | B170: Chinook Montessori Charter School | C170: 113 | D170: 45 | E170: 158 | F170: None | H170: Fairbanks | I170: 3660.96 | J170: 3053.8 | K170: 6714.76 | L170: Fairbanks
A171: Fairbanks | B171: Anderson Crawford Elementary School | C171: 362.73 | D171: 0 | E171: 362.73 | F171: Eielson | H171: Eielson | I171: 362.73 | J171: 0 | K171: 362.73 | L171: Fairbanks
A172: Fairbanks | B172: Denali Elementary School | C172: 293.2 | E172: 293.2 | F172: Fairbanks | I172: 0 | J172: 0 | K172: 0 | L172: Fairbanks
A173: Fairbanks | B173: Hunter Elementary School | C173: 325.33 | E173: 325.33 | F173: Fairbanks | I173: 0 | J173: 0 | K173: 0 | L173: Fairbanks
A174: Fairbanks | B174: Hutchison High School | D174: 350.95 | E174: 350.95 | F174: Fairbanks | I174: 0 | J174: 0 | K174: 0 | L174: Fairbanks
A175: Fairbanks | B175: Ladd Elementary School | C175: 363.8 | D175: 19 | E175: 382.8 | F175: Fairbanks | I175: 0 | J175: 0 | K175: 0 | L175: Fairbanks
A176: Fairbanks | B176: Lathrop High School | D176: 781.7 | E176: 781.7 | F176: Fairbanks | I176: 0 | J176: 0 | K176: 0 | L176: Fairbanks
A177: Fairbanks | B177: Midnight Sun Elementary School | C177: 315.01 | E177: 315.01 | F177: North Pole | I177: 0 | J177: 0 | K177: =SUM(I177:J177) -> 0 | L177: Fairbanks
A178: Fairbanks | B178: North Pole Elementary School | C178: 307.07 | E178: 307.07 | F178: North Pole | I178: 0 | J178: 0 | K178: 0 | L178: Fairbanks
A179: Fairbanks | B179: North Pole High School | D179: 687.53 | E179: 687.53 | F179: North Pole | I179: 0 | J179: 0 | K179: 0 | L179: Fairbanks
A180: Fairbanks | B180: North Pole Middle School | C180: 221.15 | D180: 408.25 | E180: 629.4 | F180: North Pole | I180: 0 | J180: 0 | K180: 0 | L180: Fairbanks
A181: Fairbanks | B181: North Star Middle College | D181: 196.1 | E181: 196.1 | F181: North Pole | I181: 0 | J181: 0 | K181: 0 | L181: Fairbanks
A182: Fairbanks | B182: Pearl Creek Elementary School | C182: 383.99 | E182: 383.99 | F182: Fairbanks | I182: 0 | J182: 0 | K182: 0 | L182: Fairbanks
A183: Fairbanks | B183: Randy Smith Middle School | C183: 139.5 | D183: 269.55 | E183: 409.05 | F183: Fairbanks | I183: 0 | J183: 0 | K183: 0 | L183: Fairbanks
A184: Fairbanks | B184: Ryan Middle School | C184: 174.6 | D184: 287.65 | E184: 462.25 | F184: Fairbanks | I184: 0 | J184: 0 | K184: 0 | L184: Fairbanks
A185: Fairbanks | B185: Salcha Elementary School | C185: 59.5 | E185: 59.5 | F185: Salcha | I185: 0 | J185: 0 | K185: 0 | L185: Fairbanks
A186: Fairbanks | B186: Tanana Middle School | C186: 185.1 | D186: 335.95 | E186: 521.05 | F186: Fairbanks | I186: 0 | J186: 0 | K186: 0 | L186: Fairbanks
A187: Fairbanks | B187: Ticasuk Brown Elementary School | C187: 349.3 | E187: 349.3 | F187: North Pole | I187: 0 | J187: 0 | K187: 0 | L187: Fairbanks
A188: Fairbanks | B188: Two Rivers Elementary School | C188: 54 | D188: 10 | E188: 64 | F188: Two Rivers | I188: 0 | J188: 0 | K188: 0 | L188: Fairbanks
A189: Fairbanks | B189: University Park Elementary School | C189: 360.65 | E189: 360.65 | F189: Fairbanks | I189: 0 | J189: 0 | K189: 0 | L189: Fairbanks
A190: Fairbanks | B190: Weller Elementary School | C190: 411.15 | E190: 411.15 | F190: Fairbanks | I190: 0 | J190: 0 | K190: 0 | L190: Fairbanks
A191: Fairbanks | B191: West Valley High School | D191: 778.4 | E191: 778.4 | F191: Fairbanks | I191: 0 | J191: 0 | K191: 0 | L191: Fairbanks
A192: Fairbanks | B192: Woodriver Elementary School | C192: 340.9 | E192: 340.9 | F192: Fairbanks | I192: 0 | J192: 0 | K192: 0 | L192: Fairbanks
A193: Fairbanks | B193: Discovery Peak Charter School | C193: 153.85 | D193: 39.45 | E193: 193.3 | F193: None | I193: 0 | J193: 0 | K193: =SUM(I193:J193) -> 0 | L193: Fairbanks
A194: Fairbanks | B194: Effie Kokrine Charter School | D194: 140.6 | E194: 140.6 | F194: Fairbanks | I194: 0 | J194: 0 | K194: 0 | L194: Fairbanks
A195: Fairbanks | B195: Watershed Charter School | C195: 155.25 | D195: 44 | E195: 199.25 | F195: None | I195: 0 | J195: 0 | K195: 0 | L195: Fairbanks
A196: Fairbanks | B196: Alternative Learning Systems | C196: 10.25 | D196: 179.1 | E196: 189.35 | F196: None | I196: 0 | J196: 0 | K196: 0 | L196: Fairbanks
A197: Fairbanks | B197: Golden Heart Academy (FYF) | D197: 20 | E197: 20 | F197: None | I197: 0 | J197: 0 | K197: 0 | L197: Fairbanks
A198: Fairbanks | B198: TOTAL | C198: =SUM(C166:C197) -> 6280.43 | D198: =SUM(D166:D197) -> 4725.23 | E198: =SUM(E166:E197) -> 11005.66 | K198: =SUM(K166:K197) -> 10045.01
A199: Galena | B199: Sidney C. Huntington Elementary | C199: 47.2 | E199: =C199+D199 -> 47.2 | F199: Galena | H199: Galena | I199: =SUMIF($F$3:$F$509,H199,$C$3:$C$509) -> 47.2 | J199: =SUMIF($F$3:$F$509,H199,$D$3:$D$509) -> 221.6 | K199: =SUM(I199:J199) -> 268.8 | L199: Galena
A200: Galena | B200: Sidney C. Huntington Jr/Sr HS | D200: 42 | E200: =C200+D200 -> 42 | F200: Galena | I200: =SUMIF($F$3:$F$509,H200,$C$3:$C$509) -> 0 | J200: =SUMIF($F$3:$F$509,H200,$D$3:$D$509) -> 0 | K200: 0 | L200: Galena
... 311 more rows

Sheet Historical ADM by Area
A1: ADM by Fiscal Year | C1: 1 | D1: 2 | E1: 3 | F1: 4 | G1: 5 | H1: 6 | I1: 7 | J1: 8 | K1: 9 | L1: 10 | M1: 11 | N1: 12 | O1: 13 | P1: 14 | Q1: 15 | R1: 16 | S1: 17 | T1: 18 | U1: 19 | V1: 20 | W1: 21 | X1: 22 | Y1: 23 | Z1: 24 | AA1: 25 | AB1: 26 | AC1: 27 | AD1: 28 | AE1: 29 | AF1: 30 | AG1: 31 | AH1: 32 | AI1: 33 | AJ1: 34 | AK1: 35 | AL1: 36
A2: Type | B2: School District | C2: Attendance Area | D2: 91 ADM | E2: 92 ADM | F2: 93 ADM | G2: 94 ADM | H2: 95 ADM | I2: 96 ADM | J2: 97 ADM | K2: 98 ADM | L2: 99 ADM | M2: 2000 ADM | N2: 2001 ADM | O2: 2002 ADM | P2: 2003 ADM | Q2: 2004 ADM | R2: 2005 ADM | S2: 2006 ADM | T2: 2007 ADM | U2: 2008 ADM | V2: 2009 ADM | W2: 2010 ADM | X2: 2011 ADM | Y2: 2012 ADM | Z2: 2013 ADM | AA2: 2014 ADM | AB2: 2015 ADM | AC2: 2016 ADM | AD2: 2017 ADM | AE2: 2018 ADM | AF2: 2019 ADM | AG2: 2020 ADM | AH2: 2021 ADM | AI2: 2022 ADM | AJ2: 2023 ADM | AK2: 2024 ADM | AL2: 2025 ADM | AM2: % ADM change from Prev. Yr | AN2: 8-Yr Avg Annual ADM Change
A3: REAA | B3: ALASKA GATEWAY | C3: ALCAN BORDER | E3: 10 | F3: 7 | G3: 8 | H3: 7 | I3: 9 | J3: 7 | K3: 0 | L3: closed | M3: closed | N3: closed | O3: closed | P3: closed | Q3: closed | R3: closed | S3: closed | T3: closed | U3: closed | V3: closed | W3: closed | X3: closed | Y3: closed | Z3: closed | AA3: closed | AB3: closed | AC3: closed | AD3: closed | AE3: closed | AF3: closed | AG3: closed | AH3: closed | AI3: closed | AJ3: closed | AK3: Closed | AL3: Closed | AM3: n/a | AN3: =IFERROR(((AG3-AE3)/AE3+(AE3-AD3)/AD3+(AD3-AC3)/AC3+(AC3-AB3)/AB3+(AB3-AA3)/AA3+(AA3-Z3)/Z3+(Z3-Y3)/Y3+(Y3-X3)/X3)/8,"n/a") -> n/a
A4: REAA | B4: ALASKA GATEWAY | C4: DOT LAKE | D4: 18 | E4: 16.05 | F4: 20 | G4: 21.3 | H4: 24 | I4: 26.7 | J4: 27.75 | K4: 15 | L4: 17.65 | M4: 10.5 | N4: 13.15 | O4: 17.06 | P4: 15.25 | Q4: 17.3 | R4: 16.5 | S4: 12.05 | T4: 20.25 | U4: 10.5 | V4: 10.9 | W4: 15.75 | X4: 13.75 | Y4: 10 | Z4: 10 | AA4: 10 | AB4: 11 | AC4: 14 | AD4: 12.7 | AE4: 10 | AF4: 10.8 | AG4: 10 | AH4: 14.25 | AI4: 8 | AJ4: 14 | AK4: 10 | AL4: 12.25 | AM4: =IFERROR((AL4-AK4)/AK4,"n/a") -> 0.225 | AN4: =IFERROR(((AL4-AK4)/AK4+(AK4-AJ4)/AJ4+(AJ4-AI4)/AI4+(AI4-AH4)/AH4+(AH4-AG4)/AG4+(AG4-AF4)/AF4+(AF4-AE4)/AE4+(AE4-AD4)/AD4)/8,"n/a") -> 0.05862709047
A5: REAA | B5: ALASKA GATEWAY | C5: EAGLE | D5: 39 | E5: 31.25 | F5: 26 | G5: 37 | H5: 23.9 | I5: 19 | J5: 27 | K5: 23 | L5: 24.3 | M5: 32.5 | N5: 22.25 | O5: 22.55 | P5: 18.85 | Q5: 24.4 | R5: 26 | S5: 22 | T5: 22.7 | U5: 24.5 | V5: 16.16 | W5: 25.8 | X5: 12.05 | Y5: 15.25 | Z5: 16 | AA5: 26 | AB5: 16.75 | AC5: 13.5 | AD5: 14.25 | AE5: 26.1 | AF5: 22.85 | AG5: 14.4 | AH5: 20 | AI5: 12 | AJ5: 10.55 | AK5: 10 | AL5: 12 | AM5: =IFERROR((AL5-AK5)/AK5,"n/a") -> 0.2 | AN5: =IFERROR(((AL5-AK5)/AK5+(AK5-AJ5)/AJ5+(AJ5-AI5)/AI5+(AI5-AH5)/AH5+(AH5-AG5)/AG5+(AG5-AF5)/AF5+(AF5-AE5)/AE5+(AE5-AD5)/AD5)/8,"n/a") -> 0.04414720816
A6: REAA | B6: ALASKA GATEWAY | C6: MENTASTA LAKE | D6: 21 | E6: 19.4 | F6: 33.95 | G6: 33.5 | H6: 25.35 | I6: 33.3 | J6: 43 | K6: 39.9 | L6: 45.5 | M6: 30.7 | N6: 33.45 | O6: 37.5 | P6: 37.75 | Q6: 34 | R6: 31 | S6: 24.25 | T6: 19 | U6: 11.89 | V6: 13.75 | W6: 13.25 | X6: 34.4 | Y6: 34 | Z6: 32 | AA6: 33.15 | AB6: 30.25 | AC6: 31.25 | AD6: 34.75 | AE6: 31.25 | AF6: 31 | AG6: 29.9 | AH6: 28.5 | AI6: 30 | AJ6: 33 | AK6: 29 | AL6: 26.25 | AM6: -0.09482758621 | AN6: -0.0318042708
A7: REAA | B7: ALASKA GATEWAY | C7: NORTHWAY | D7: 99 | E7: 85.45 | F7: 79.6 | G7: 87 | H7: 83.3 | I7: 85.25 | J7: 85.4 | K7: 92 | L7: 84.5 | M7: 76.3 | N7: 74 | O7: 66.9 | P7: 65.1 | Q7: 65.7 | R7: 67.3 | S7: 57.6 | T7: 56 | U7: 46.5 | V7: 48.5 | W7: 44 | X7: 41.9 | Y7: 41.9 | Z7: 41.15 | AA7: 45.3 | AB7: 42.25 | AC7: 47.85 | AD7: 48.3 | AE7: 47 | AF7: 53.5 | AG7: 49 | AH7: 52.9 | AI7: 51.85 | AJ7: 57 | AK7: 55 | AL7: 52 | AM7: -0.05454545455 | AN7: 0.01208818456
A8: REAA | B8: ALASKA GATEWAY | C8: TANACROSS | D8: 19 | E8: 17 | F8: 11.25 | G8: 20.2 | H8: 16.25 | I8: 14.8 | J8: 17 | K8: 20 | L8: 15 | M8: 22.35 | N8: 16 | O8: 12.5 | P8: 10.25 | Q8: 12.9 | R8: 11 | S8: 13.45 | T8: 24 | U8: 26 | V8: 10.75 | W8: 12.15 | X8: 10.35 | Y8: 13.65 | Z8: 11.45 | AA8: 12.35 | AB8: 12.05 | AC8: 10.8 | AD8: 12 | AE8: 11.8 | AF8: 15.25 | AG8: 12.45 | AH8: 14.25 | AI8: 11 | AJ8: 10 | AK8: 5.75 | AL8: Closed | AM8: n/a | AN8: n/a
A9: REAA | B9: ALASKA GATEWAY | C9: TETLIN | D9: 23 | E9: 25.5 | F9: 34.1 | G9: 34 | H9: 30.95 | I9: 31 | J9: 36.4 | K9: 33 | L9: 31 | M9: 32 | N9: 27 | O9: 26.15 | P9: 27 | Q9: 33.2 | R9: 27.2 | S9: 31.25 | T9: 25.8 | U9: 24.25 | V9: 27 | W9: 16.6 | X9: 26 | Y9: 29 | Z9: 27.55 | AA9: 35.6 | AB9: 27.15 | AC9: 26.25 | AD9: 27.9 | AE9: 23 | AF9: 33.5 | AG9: 38 | AH9: 39 | AI9: 44.2 | AJ9: 37 | AK9: 34 | AL9: 26.25 | AM9: -0.2279411765 | AN9: 0.01286922436
A10: REAA | B10: ALASKA GATEWAY | C10: TOK | D10: 264 | E10: 290.8 | F10: 300.15 | G10: 284.55 | H10: 325.4 | I10: 316.8 | J10: 329.1 | K10: 291.45 | L10: 249.99 | M10: 231.9 | N10: 250.45 | O10: 265.35 | P10: 255.4 | Q10: 251.21 | R10: 224.25 | S10: 199.1 | T10: 206.35 | U10: 193.85 | V10: 200.06 | W10: 197 | X10: 196.85 | Y10: 178.4 | Z10: 167.55 | AA10: 150.15 | AB10: 165.25 | AC10: 161.25 | AD10: 162.05 | AE10: 197.4 | AF10: 173.45 | AG10: 175.2 | AH10: 164 | AI10: 167.45 | AJ10: 178.6 | AK10: 163.8 | AL10: 172.25 | AM10: 0.05158730159 | AN10: 0.01241523789
A11: REAA | B11: ALASKA GATEWAY | C11: TOTAL | D11: =SUM(D3:D10) -> 483 | E11: 495.45 | F11: 512.05 | G11: 525.55 | H11: 536.15 | I11: 535.85 | J11: 572.65 | K11: 514.35 | L11: 467.94 | M11: 436.25 | N11: 436.3 | O11: 448.01 | P11: 429.6 | Q11: 438.71 | R11: 403.25 | S11: 359.7 | T11: 374.1 | U11: =SUM(U3:U10) -> 337.49 | V11: =SUM(V3:V10) -> 327.12 | W11: 324.55 | X11: 335.3 | Y11: 322.2 | Z11: 305.7 | AA11: 312.55 | AB11: 304.7 | AC11: 304.9 | AD11: 311.95 | AE11: 346.55 | AF11: =SUM(AF3:AF10) -> 340.35 | AG11: 328.95 | AH11: 332.9 | AI11: 324.5 | AJ11: 340.15 | AK11: 307.55 | AL11: 301 | AM11: -0.02129735002 | AN11: -0.002825579167
A12: REAA | B12: ALEUTIAN REGION | C12: ATKA | D12: 26 | E12: 19 | F12: 18 | G12: 16 | H12: 18 | I12: 21 | J12: 23 | K12: 24.45 | L12: 13 | M12: 20 | N12: 19.25 | O12: 21 | P12: 19 | Q12: 16.1 | R12: 17.75 | S12: 15 | T12: 13 | U12: 13 | V12: 14 | W12: 15 | X12: 10 | Y12: 10 | Z12: 10.3 | AA12: 14 | AB12: 12 | AC12: 14 | AD12: 10 | AE12: 12 | AF12: 6 | AG12: 10 | AH12: 10 | AI12: 10 | AJ12: 11.25 | AK12: 11 | AL12: 11 | AM12: 0 | AN12: 0.05868055556
A13: REAA | B13: ALEUTIAN REGION | C13: NIKOLSKI | D13: 7 | E13: 9 | F13: 5 | J13: 11 | K13: 12 | L13: 19 | M13: 11 | N13: 15 | O13: 10.75 | P13: 13.5 | Q13: 11 | R13: 10 | S13: 10 | T13: 10 | U13: 10.45 | V13: 9.8 | W13: closed | X13: closed | Y13: closed | Z13: closed | AA13: closed | AB13: closed | AC13: closed | AD13: closed | AE13: closed | AF13: closed | AG13: closed | AH13: closed | AI13: closed | AJ13: closed | AK13: Closed | AL13: 10 | AM13: n/a | AN13: n/a
A14: REAA | B14: ALEUTIAN REGION | C14: ADAK | D14: 712 | E14: 714.45 | F14: 681.35 | G14: 495.2 | H14: 0 | I14: 0 | J14: 0 | K14: 0 | L14: 14.7 | M14: 44.15 | N14: 25.15 | O14: 23 | P14: 16.75 | Q14: 14.75 | R14: 18.25 | S14: 19 | T14: 19 | U14: 14 | V14: 13.2 | W14: 22 | X14: 20.65 | Y14: 21 | Z14: 15 | AA14: 19 | AB14: 25 | AC14: 20.7 | AD14: 14.5 | AE14: 14.55 | AF14: 12.05 | AG14: 18 | AH14: 14.95 | AI14: 12.48 | AJ14: 5 | AK14: closed | AL14: closed | AM14: n/a | AN14: n/a
A15: REAA | B15: ALEUTIAN REGION | C15: TOTAL | D15: =SUM(D12:D14) -> 745 | E15: 742.45 | F15: 704.35 | G15: 511.2 | H15: 18 | I15: 21 | J15: 34 | K15: 36.45 | L15: 46.7 | M15: 75.15 | N15: 59.4 | O15: 54.75 | P15: 49.25 | Q15: 41.85 | R15: 46 | S15: 44 | T15: 42 | U15: =SUM(U12:U14) -> 37.45 | V15: =SUM(V12:V14) -> 37 | W15: 37 | X15: 30.65 | Y15: 31 | Z15: 25.3 | AA15: 33 | AB15: 37 | AC15: 34.7 | AD15: 24.5 | AE15: 26.55 | AF15: =SUM(AF12:AF14) -> 18.05 | AG15: 28 | AH15: 24.95 | AI15: 22.48 | AJ15: 16.25 | AK15: 11 | AL15: 21 | AM15: 0.9090909091 | AN15: 0.05196519187
A16: C/B | B16: ALEUTIAN EAST | C16: AKUTAN | D16: 21.55 | E16: 25 | F16: 30 | G16: 20 | H16: 24 | I16: 20 | J16: 27 | K16: 23 | L16: 19.55 | M16: 15 | N16: 15 | O16: 15.75 | P16: 17.75 | Q16: 12.5 | R16: 14.35 | S16: 10.75 | T16: 10.75 | U16: 13.75 | V16: 7 | W16: 10.25 | X16: 8 | Y16: 8 | Z16: 14 | AA16: 13 | AB16: 17 | AC16: 16 | AD16: 10 | AE16: 12 | AF16: 18 | AG16: 20 | AH16: 17 | AI16: 19.5 | AJ16: 20 | AK16: 23.35 | AL16: 15.05 | AM16: -0.3554603854 | AN16: 0.08073132186
A17: C/B | B17: ALEUTIAN EAST | C17: COLD BAY | D17: 25 | E17: 18 | F17: 24 | G17: 17 | H17: 22 | I17: 22 | J17: 18 | K17: 20 | L17: 14.3 | M17: 17 | N17: 23 | O17: 10.5 | P17: 12 | Q17: 15 | R17: 13.75 | S17: 10 | T17: 10 | U17: 10.5 | V17: 12 | W17: 11.25 | X17: 13 | Y17: 10 | Z17: 8.5 | AA17: 11 | AB17: 4.75 | AC17: closed | AD17: closed | AE17: closed | AF17: closed | AG17: closed | AH17: closed | AI17: closed | AJ17: closed | AK17: closed | AL17: closed | AM17: n/a | AN17: n/a
A18: C/B | B18: ALEUTIAN EAST | C18: FALSE PASS | D18: 16 | E18: 20 | F18: 17 | G18: 21 | H18: 27 | I18: 25 | J18: 21 | K18: 11.4 | L18: 7.2 | M18: 16 | N18: 14.5 | O18: 16 | P18: 12.4 | Q18: 12 | R18: 10.7 | S18: 11 | T18: 4.75 | U18: 5.3 | V18: 11 | W18: 4.75 | X18: 7.5 | Y18: 7 | Z18: 10 | AA18: 6 | AB18: 15 | AC18: 10.5 | AD18: 11 | AE18: 6 | AF18: 7 | AG18: 6 | AH18: 10 | AI18: 11 | AJ18: 9 | AK18: 6 | AL18: 10 | AM18: 0.6666666667 | AN18: 0.06093073593
A19: C/B | B19: ALEUTIAN EAST | C19: KING COVE | D19: 147.65 | E19: 150 | F19: 165 | G19: 159 | H19: 154 | I19: 139 | J19: 143 | K19: 142.35 | L19: 128.8 | M19: 111.9 | N19: 123.75 | O19: 119 | P19: 105.6 | Q19: 104.66 | R19: 102.25 | S19: 92.8 | T19: 89.8 | U19: 99.5 | V19: 101.25 | W19: 97.35 | X19: 99.35 | Y19: 89.75 | Z19: 96.5 | AA19: 87 | AB19: 77.65 | AC19: 93.65 | AD19: 84.1 | AE19: 83 | AF19: 83.45 | AG19: 82.65 | AH19: 75.25 | AI19: 68.05 | AJ19: 77 | AK19: 73.65 | AL19: 58 | AM19: -0.2124915139 | AN19: -0.04086710868
A20: C/B | B20: ALEUTIAN EAST | C20: NELSON LAGOON | D20: 12 | E20: 12 | F20: 12 | G20: 11 | H20: 10 | I20: 13 | J20: 13 | K20: 14.2 | L20: 14 | M20: 15 | N20: 16 | O20: 16 | P20: 11 | Q20: 13 | R20: 15 | S20: 17.75 | T20: 17 | U20: 17 | V20: 12 | W20: 8 | X20: 6.25 | Y20: 10.9 | Z20: closed | AA20: closed | AB20: closed | AC20: closed | AD20: closed | AE20: closed | AF20: closed | AG20: closed | AH20: closed | AI20: closed | AJ20: closed | AK20: closed | AL20: closed | AM20: n/a | AN20: n/a
A21: C/B | B21: ALEUTIAN EAST | C21: SAND POINT | D21: 148.8 | E21: 145 | F21: 143 | G21: 141 | H21: 128 | I21: 136 | J21: 150 | K21: 130.4 | L21: 126.5 | M21: 124.65 | N21: 115.5 | O21: 113.5 | P21: 114 | Q21: 120.33 | R21: 112.5 | S21: 104.1 | T21: 100.7 | U21: 110.45 | V21: 105.5 | W21: 105.7 | X21: 110.9 | Y21: 101 | Z21: 102 | AA21: 95.7 | AB21: 104 | AC21: 100.75 | AD21: 109.85 | AE21: 106 | AF21: 104.85 | AG21: 112.25 | AH21: 104 | AI21: 90.3 | AJ21: 91 | AK21: 82.4 | AL21: 80.1 | AM21: -0.02791262136 | AN21: -0.03690168008
A22: C/B | B22: ALEUTIAN EAST | C22: TOTAL | D22: =SUM(D16:D21) -> 371 | E22: 370 | F22: 391 | G22: 369 | H22: 365 | I22: 355 | J22: 372 | K22: 341.35 | L22: 310.35 | M22: 299.55 | N22: 307.75 | O22: 290.75 | P22: 272.75 | Q22: 277.49 | R22: 268.55 | S22: 246.4 | T22: 233 | U22: =SUM(U16:U21) -> 256.5 | V22: =SUM(V16:V21) -> 248.75 | W22: 237.3 | X22: 245 | Y22: 226.65 | Z22: 231 | AA22: 212.7 | AB22: 218.4 | AC22: 220.9 | AD22: 214.95 | AE22: 207 | AF22: =SUM(AF16:AF21) -> 213.3 | AG22: 220.9 | AH22: 206.25 | AI22: 188.85 | AJ22: 197 | AK22: 185.4 | AL22: 163.15 | AM22: -0.1200107875 | AN22: -0.03216766574
A23: C/B | B23: ANCHORAGE | C23: ANCHORAGE | D23: =34276.5+D24 -> 39730 | E23: =37237.95+E24 -> 42927.25 | F23: =38611.45+F24 -> 44519.3 | G23: =39420.46+G24 -> 45490.61 | H23: =39465.23+H24 -> 45726.1 | I23: =39715.03+I24 -> 45998.46 | J23: =40043.05+J24 -> 46289.85 | K23: =23272.2+17452.31+K24 -> 47134.19 | L23: =554.1+335.55+509.57+445.47+567.1+479.07+553.6+493.8+350.1+565.65+235.8+461.7+360.85+478.85+414.7+491.69+415.55+475.2+241.26+601.69+270.65+477.32+525.55+454.77+508.7+438.6+264.25+399.3+520.07+375.82+386.49+380.17+452.9+0+373.05+432.35+562.62+383.75+542.67+527.2+511.52+512.7+332.8+396.12+401.8+291.7+426.85+557.45+501.44+514.75+428.22+47.65+525.72+810.4+777.35+873.3+914.75+972.15+779.65+961+2140.4+1974.35+2275.3+1646+1892.35+301.15+280.22+7.69+171.6+234.97+233.05+260.15+L24-L27-L28 -> 44877.42 | M23: =40066.61+M24-M27-M28 -> 44685.09 | N23: =40698.82+N24-N27-N28 -> 45171.16 | O23: =39894.72+O24 -> 45931.07 | P23: =40102.42+P24 -> 46163.08 | Q23: 45668.68 | R23: 46494.17 | S23: 45642.93 | T23: =480.7+312.65+466.5+402.1+556.8+453.85+300.6+468.7+403+272.43+495.25+255.2+512.35+348.2+394.45+353.6+351.2+386.25+295.65+459.35+362.9+373.4+201.1+491+366.1+516.2+427.5+370.5+369.7+408.2+409+603.8+282.35+281.1+512.35+307.25+415.85+367.85+439.45+581.5+368+646.4+430.05+363.85+563.8+443.7+477.5+579+369.38+418.5+362.4+401.5+378.4+513.35+531.9+799.75+887+604.2+899.7+1054.2+698.3+789.6+837.55+1717.6+1412.25+1847.1+827.05+2170.39+1926.45+1727.4+1877.7+43.85+351.1+266.35+475.8+295.65+160.25+29.65+16+164+450.2+241.75+64.65+180+206.15 -> 45925.3 | U23: 44304.8 | V23: 44068.51 | W23: 44702.2 | X23: 44204.21 | Y23: 44025.1 | Z23: 44018.73 | AA23: 43131.75 | AB23: 43162.36 | AC23: 43286.31 | AD23: 43045.59 | AE23: 42167.96 | AF23: 41082.46 | AG23: 40745.47 | AH23: 35454.53 | AI23: 37721.54 | AJ23: 37906.28 | AK23: 37763.95 | AL23: 36832.33 | AM23: -0.0246695592 | AN23: -0.01797155559
A24: C/B | B24: ANCHORAGE | C24: EAGLE RIVER | D24: 5453.5 | E24: 5689.3 | F24: 5907.85 | G24: 6070.15 | H24: 6260.87 | I24: 6283.43 | J24: 6246.8 | K24: =3282.64+3127.04 -> 6409.68 | L24: =2066+606.15+481.7+191.5+372+530.22+361.6+30+515.7+359.67+462.3+376.47 -> 6353.31 | M24: 6316.6 | N24: 6201.55 | O24: 6036.35 | P24: 6060.66 | Q24: anchorage | R24: anchorage | S24: anchorage | T24: anchorage | U24: anchorage | V24: anchorage | W24: anchorage | X24: anchorage | Y24: anchorage | Z24: anchorage | AA24: anchorage | AB24: anchorage | AC24: anchorage | AD24: anchorage | AE24: anchorage | AF24: anchorage | AG24: anchorage | AH24: anchorage | AI24: anchorage | AJ24: anchorage | AK24: anchorage | AL24: anchorage | AM24: n/a | AN24: n/a
A25: C/B | B25: ANCHORAGE | C25: GIRDWOOD | D25: 125 | E25: 131.65 | F25: 140.13 | G25: 154.75 | H25: 169.5 | I25: 160.3 | J25: 135.55 | K25: 141.57 | L25: 153.17 | M25: 147.5 | N25: 157.58 | O25: 144.5 | P25: 164.25 | Q25: 172.75 | R25: 167.05 | S25: 160.8 | T25: 144.3 | U25: 153 | V25: 163.95 | W25: 160.95 | X25: 163.4 | Y25: 179.95 | Z25: 180.75 | AA25: 184.75 | AB25: 191.65 | AC25: 192.9 | AD25: 190.75 | AE25: 193.69 | AF25: 182.95 | AG25: 198.96 | AH25: 143.1 | AI25: 171.4 | AJ25: 180.35 | AK25: 170.5 | AL25: 174.55 | AM25: 0.02375366569 | AN25: -0.001770976189
A26: C/B | B26: ANCHORAGE | C26: SCHOOL FOR THE DEAF | J26: 45 | K26: 40 | L26: 40 | M26: 44 | N26: 52.83 | O26: 51.5 | P26: 54.85 | Q26: 53 | R26: 60.1 | S26: 53.45 | T26: 54.5 | U26: 49.9 | V26: 44.05 | W26: 42.2 | X26: 41.43 | Y26: 37.7 | Z26: 35.87 | AA26: 35.05 | AB26: 39.99 | AC26: 37 | AD26: 32.04 | AE26: 34.12 | AF26: 26 | AG26: 30 | AH26: 20.95 | AI26: 30.4 | AJ26: 30 | AK26: 23.7 | AL26: 23.3 | AM26: -0.01687763713 | AN26: -0.01373084936
A27: C/B | B27: ANCHORAGE | C27: ELMENDORF | J27: 773.82 | K27: 773.82 | L27: 773.82 | M27: 1106.47 | N27: 1055.01 | O27: 1050.5 | P27: 1035.95 | Q27: 1096.77 | R27: 1066.12 | S27: 1034.03 | T27: =386.35+299.65+380.88 -> 1066.88 | U27: 1036.4 | V27: 1149.1 | W27: 1137.99 | X27: JBER | Y27: JBER | Z27: JBER | AA27: JBER | AB27: JBER | AC27: JBER | AD27: JBER | AE27: JBER | AF27: JBER | AG27: JBER | AH27: JBER | AI27: JBER | AJ27: JBER | AK27: JBER | AL27: JBER | AM27: n/a | AN27: n/a
A28: C/B | B28: ANCHORAGE | C28: FORT RICHARDSON | J28: 964.15 | K28: 964.15 | L28: 964.15 | M28: 591.65 | N28: 674.2 | O28: 722.28 | P28: 667.07 | Q28: 598.15 | R28: 647.05 | S28: 686.85 | T28: =376.8+282.9 -> 659.7 | U28: 641.7 | V28: 627.35 | W28: 748.1 | X28: JBER | Y28: JBER | Z28: JBER | AA28: JBER | AB28: JBER | AC28: JBER | AD28: JBER | AE28: JBER | AF28: JBER | AG28: JBER | AH28: JBER | AI28: JBER | AJ28: JBER | AK28: JBER | AL28: JBER | AM28: n/a | AN28: n/a
A29: C/B | B29: ANCHORAGE | C29: JBER | K29: =K27+K28 -> 1737.97 | L29: 1737.97 | M29: 1698.12 | N29: 1729.21 | O29: 1772.78 | P29: 1703.02 | Q29: 1694.92 | R29: 1713.17 | S29: 1720.88 | T29: 1726.58 | U29: 1678.1 | V29: 1776.45 | W29: 1886.09 | X29: 1912.66 | Y29: 1826.48 | Z29: 1880.96 | AA29: 1867.42 | AB29: 1635.46 | AC29: 1641.61 | AD29: 1584.99 | AE29: 1500.71 | AF29: 1438.92 | AG29: 1349.44 | AH29: 975.45 | AI29: 1237.44 | AJ29: 1278.93 | AK29: 1293.67 | AL29: 1039.07 | AM29: -0.1968044401 | AN29: -0.03960554431
A30: C/B | B30: ANCHORAGE | C30: TOTAL | D30: =SUM(D23:D29) -> 45308.5 | E30: =SUM(E23:E29) -> 48748.2 | F30: =SUM(F23:F29) -> 50567.28 | G30: =SUM(G23:G29) -> 51715.51 | H30: =SUM(H23:H29)-H26 -> 52156.47 | I30: 52442.19 | J30: 54410.17 | K30: 57161.38 | L30: 54859.84 | M30: 54545.43 | N30: 54988.71 | O30: 55657.48 | P30: 55794.03 | Q30: 49231.27 | R30: 50087.56 | S30: 49245.49 | T30: 49522.76 | U30: 47814 | V30: 47785.36 | W30: 48635.33 | X30: 46280.27 | Y30: 46031.53 | Z30: 46080.44 | AA30: 45183.92 | AB30: 44989.47 | AC30: 45120.82 | AD30: 44821.33 | AE30: 43862.36 | AF30: =SUM(AF23:AF29)-AF26 -> 42704.33 | AG30: 42293.87 | AH30: 36573.08 | AI30: 39130.38 | AJ30: 39365.56 | AK30: =SUM(AK23:AK29)-AK26 -> 39228.12 | AL30: =SUM(AL23:AL29)-AL26 -> 38045.95 | AM30: -0.03013578015 | AN30: -0.01879567005
A31: REAA | B31: ANNETTE ISLAND | C31: METLAKATLA | D31: 381 | E31: 423.9 | F31: 397 | G31: 407 | H31: 420 | I31: 444 | J31: 391 | K31: 396.57 | L31: 355.23 | M31: =189+179 -> 368 | N31: 325.75 | O31: 311.05 | P31: 290.65 | Q31: 287.5 | R31: 298.35 | S31: 291.29 | T31: 282.35 | U31: 288.85 | V31: 267.55 | W31: 276.75 | X31: 275.75 | Y31: 275.7 | Z31: 290.45 | AA31: 288.59 | AB31: 295.52 | AC31: 300.8 | AD31: 301.05 | AE31: 316.4 | AF31: 299.6 | AG31: 288.5 | AH31: 313.4 | AI31: 295.55 | AJ31: 295.9 | AK31: 295.25 | AL31: 267.75 | AM31: -0.09314140559 | AN31: -0.01299498398
A32: REAA | B32: ANNETTE ISLAND | C32: TOTAL | D32: =SUM(D31) -> 381 | E32: 423.9 | F32: 397 | G32: 407 | H32: 420 | I32: 444 | J32: 391 | K32: 396.57 | L32: 355.23 | M32: 368 | N32: 325.75 | O32: 311.05 | P32: 290.65 | Q32: 287.5 | R32: 298.35 | S32: 291.29 | T32: 282.35 | U32: =SUM(U31) -> 288.85 | V32: =SUM(V31) -> 267.55 | W32: 276.75 | X32: 275.75 | Y32: 275.7 | Z32: 290.45 | AA32: 288.59 | AB32: 295.52 | AC32: 300.8 | AD32: 301.05 | AE32: 316.4 | AF32: =SUM(AF31) -> 299.6 | AG32: 288.5 | AH32: 313.4 | AI32: 295.55 | AJ32: 295.9 | AK32: 295.25 | AL32: 267.75 | AM32: -0.09314140559 | AN32: -0.01299498398
A33: REAA | B33: BERING STRAIT | C33: BREVIG MISSION | D33: 59 | E33: 69 | F33: 75.4 | G33: 77 | H33: 85.55 | I33: 96.3 | J33: 94.45 | K33: 106.8 | L33: 101.55 | M33: 100.15 | N33: 98.8 | O33: 100 | P33: 99.45 | Q33: 103.4 | R33: 108.35 | S33: 107.25 | T33: 103.9 | U33: 110 | V33: 109.5 | W33: 113 | X33: 116.25 | Y33: 114.05 | Z33: 118.4 | AA33: 112.35 | AB33: 109.9 | AC33: 130.55 | AD33: 132.5 | AE33: 143.05 | AF33: 152.2 | AG33: 140 | AH33: 143.25 | AI33: 146.4 | AJ33: 155.71 | AK33: 145.3 | AL33: 144.8 | AM33: -0.003441156228 | AN33: 0.01274113834
A34: REAA | B34: BERING STRAIT | C34: DIOMEDE | D34: 56 | E34: 50.2 | F34: 59.15 | G34: 62.95 | H34: 55.55 | I34: 48.9 | J34: 57.4 | K34: 60.1 | L34: 52.2 | M34: 45.4 | N34: 49.8 | O34: 39.05 | P34: 37.6 | Q34: 41 | R34: 42 | S34: 38.75 | T34: 37.55 | U34: 31 | V34: 26.85 | W34: 32.3 | X34: 26 | Y34: 31.55 | Z34: 33.8 | AA34: 20.85 | AB34: 19.65 | AC34: 17.75 | AD34: 33.4 | AE34: 21.15 | AF34: 23.25 | AG34: 16 | AH34: 16.55 | AI34: 25.95 | AJ34: 26.5 | AK34: 20.35 | AL34: 22 | AM34: 0.08108108108 | AN34: -0.01334407484
A35: REAA | B35: BERING STRAIT | C35: ELIM | D35: 82.6 | E35: 77.25 | F35: 79.5 | G35: 95 | H35: 93.1 | I35: 95.05 | J35: 96.8 | K35: 102 | L35: 96.1 | M35: 97.35 | N35: 101 | O35: 96.1 | P35: 97 | Q35: 95.1 | R35: 82 | S35: 81.9 | T35: 85.45 | U35: 76 | V35: 75.3 | W35: 80.8 | X35: 80.25 | Y35: 88 | Z35: 85 | AA35: 85.25 | AB35: 103.9 | AC35: 97.75 | AD35: 103.2 | AE35: 110 | AF35: 104 | AG35: 112.9 | AH35: 115.3 | AI35: 104.91 | AJ35: 107.25 | AK35: 106 | AL35: 88.45 | AM35: -0.1655660377 | AN35: -0.0158560343
A36: REAA | B36: BERING STRAIT | C36: GAMBELL | D36: 136.85 | E36: 159.8 | F36: 172 | G36: 166.3 | H36: 179.15 | I36: 185.7 | J36: 185.9 | K36: 190.1 | L36: 190.95 | M36: 196 | N36: 190.05 | O36: 189 | P36: 173.2 | Q36: 171.75 | R36: 176.2 | S36: 179.5 | T36: 173.9 | U36: 182.25 | V36: 186.45 | W36: 184.7 | X36: 190 | Y36: 185.5 | Z36: 193 | AA36: 185.75 | AB36: 174.6 | AC36: 167.7 | AD36: 179.9 | AE36: 174 | AF36: 158.3 | AG36: 166 | AH36: 159.55 | AI36: 163.26 | AJ36: 153.9 | AK36: 157.1 | AL36: 146.25 | AM36: -0.06906429026 | AN36: -0.02444875218
A37: REAA | B37: BERING STRAIT | C37: GOLOVIN | D37: 36.7 | E37: 39 | F37: 44 | G37: 46.3 | H37: 51 | I37: 59.45 | J37: 51 | K37: 53 | L37: 52 | M37: 44 | N37: 47.8 | O37: 51 | P37: 50 | Q37: 49.4 | R37: 52 | S37: 49 | T37: 49 | U37: 42 | V37: 46.4 | W37: 45 | X37: 45 | Y37: 53.5 | Z37: 49 | AA37: 46 | AB37: 49 | AC37: 45.3 | AD37: 45.2 | AE37: 45 | AF37: 46 | AG37: 42.7 | AH37: 43 | AI37: 48.94 | AJ37: 41.3 | AK37: 35.55 | AL37: 36.5 | AM37: 0.02672292546 | AN37: -0.02217352112
A38: REAA | B38: BERING STRAIT | C38: KOYUK | D38: 73 | E38: 67 | F38: 76.25 | G38: 75 | H38: 79.8 | I38: 82.8 | J38: 86.9 | K38: 102.6 | L38: 98.5 | M38: 99.35 | N38: 108 | O38: 104 | P38: 119.55 | Q38: 115.5 | R38: 116.05 | S38: 111 | T38: 121.65 | U38: 110 | V38: 106.7 | W38: 101.85 | X38: 95 | Y38: 90 | Z38: 94 | AA38: 96.6 | AB38: 101.25 | AC38: 98 | AD38: 88.55 | AE38: 99.45 | AF38: 99.8 | AG38: 79 | AH38: 90.3 | AI38: 84 | AJ38: 82.01 | AK38: 82.6 | AL38: 89 | AM38: 0.07748184019 | AN38: 0.006556620154
A39: REAA | B39: BERING STRAIT | C39: SAVOONGA | D39: 133.1 | E39: 137.75 | F39: 132.2 | G39: 130.2 | H39: 143.3 | I39: 152.75 | J39: 152.4 | K39: 169.75 | L39: 185.7 | M39: 183.55 | N39: 185.65 | O39: 194.75 | P39: 198.85 | Q39: 202.2 | R39: 220.3 | S39: 217.65 | T39: 218.25 | U39: 226 | V39: 230.65 | W39: 219 | X39: 226 | Y39: 203.85 | Z39: 212.85 | AA39: 204.25 | AB39: 207.6 | AC39: 219.2 | AD39: 229.75 | AE39: 252.7 | AF39: 241.25 | AG39: 229.7 | AH39: 236.4 | AI39: 225.95 | AJ39: 223.75 | AK39: 218.1 | AL39: 216.05 | AM39: -0.009399358093 | AN39: -0.006589848235
A40: REAA | B40: BERING STRAIT | C40: SHAKTOOLIK | D40: 49 | E40: 61 | F40: 54.4 | G40: 63.7 | H40: 69.8 | I40: 70.5 | J40: 68.25 | K40: 74.6 | L40: 67.85 | M40: 71.8 | N40: 68.5 | O40: 57.3 | P40: 56.9 | Q40: 53 | R40: 55 | S40: 49.25 | T40: 44 | U40: 47 | V40: 49.85 | W40: 57.25 | X40: 55 | Y40: 64.4 | Z40: 70.8 | AA40: 70.75 | AB40: 68.1 | AC40: 81 | AD40: 79.9 | AE40: 83.65 | AF40: 84.7 | AG40: 79 | AH40: 78.65 | AI40: 68.13 | AJ40: 64.25 | AK40: 65 | AL40: 63 | AM40: -0.03076923077 | AN40: -0.02775549138
A41: REAA | B41: BERING STRAIT | C41: SHISHMAREF | D41: 158 | E41: 160.85 | F41: 164.5 | G41: 174.35 | H41: 174.9 | I41: 176.2 | J41: 175.9 | K41: 163.75 | L41: 179.75 | M41: 182.85 | N41: 180 | O41: 179 | P41: 171.95 | Q41: 173.4 | R41: 164 | S41: 173.1 | T41: 173.05 | U41: 174.9 | V41: 173.1 | W41: 180.5 | X41: 174 | Y41: 177 | Z41: 185.6 | AA41: 193.35 | AB41: 182.6 | AC41: 186.4 | AD41: 176.55 | AE41: 180 | AF41: 176 | AG41: 176.75 | AH41: 186.2 | AI41: 184.5 | AJ41: 181.3 | AK41: 171.5 | AL41: 169.45 | AM41: -0.01195335277 | AN41: -0.004679481705
A42: REAA | B42: BERING STRAIT | C42: ST. MICHAEL | D42: 99 | E42: 103.75 | F42: 96.1 | G42: 108.25 | H42: 116.2 | I42: 118.15 | J42: 121 | K42: 119.5 | L42: 124.5 | M42: 126.5 | N42: 120.55 | O42: 126 | P42: 142.8 | Q42: 136.25 | R42: 146.3 | S42: 135.35 | T42: 144.7 | U42: 140.2 | V42: 145.1 | W42: 148.95 | X42: 145.75 | Y42: 141.45 | Z42: 155 | AA42: 158.9 | AB42: 153.55 | AC42: 160.8 | AD42: 167.85 | AE42: 142.75 | AF42: 143.65 | AG42: 138.6 | AH42: 143.95 | AI42: 129.06 | AJ42: 131.85 | AK42: 110.95 | AL42: 105.48 | AM42: -0.04930148716 | AN42: -0.05367799284
A43: REAA | B43: BERING STRAIT | C43: STEBBINS | D43: 128.45 | E43: 141.7 | F43: 140.7 | G43: 150.35 | H43: 140.6 | I43: 162 | J43: 178.25 | K43: 183.6 | L43: 191.2 | M43: 196.6 | N43: 198.15 | O43: 207.65 | P43: 200.55 | Q43: 198.8 | R43: 191.3 | S43: 187.75 | T43: 191.8 | U43: 186 | V43: 192.15 | W43: 175.95 | X43: 192.75 | Y43: 169.55 | Z43: 174.6 | AA43: 185.15 | AB43: 179.4 | AC43: 169.15 | AD43: 194.25 | AE43: 196.55 | AF43: 210.15 | AG43: 196.1 | AH43: 188.9 | AI43: 206.35 | AJ43: 212.58 | AK43: 226.35 | AL43: 227.4 | AM43: 0.004638833665 | AN43: 0.02118047775
A44: REAA | B44: BERING STRAIT | C44: TELLER | D44: 68.55 | E44: 62.1 | F44: 79.1 | G44: 80.75 | H44: 83.4 | I44: 87.25 | J44: 76.2 | K44: 79.15 | L44: 71.05 | M44: 71.95 | N44: 75.15 | O44: 73.7 | P44: 75.2 | Q44: 73.75 | R44: 78.35 | S44: 77.6 | T44: 73.95 | U44: 75.45 | V44: 63.65 | W44: 66.5 | X44: 66.75 | Y44: 65.05 | Z44: 67 | AA44: 62.45 | AB44: 68.5 | AC44: 68.9 | AD44: 67.7 | AE44: 73 | AF44: 69.2 | AG44: 79.25 | AH44: 74.9 | AI44: 70 | AJ44: 65.75 | AK44: 63.65 | AL44: 62.15 | AM44: -0.02356637863 | AN44: -0.0081333751
A45: REAA | B45: BERING STRAIT | C45: UNALAKLEET | D45: 196 | E45: 216.25 | F45: 210.5 | G45: 208.25 | H45: 216.6 | I45: 222.3 | J45: 236.75 | K45: 231 | L45: 251.1 | M45: 236.45 | N45: 219.5 | O45: 203.1 | P45: 206.6 | Q45: 190.55 | R45: 179 | S45: 175.15 | T45: 171.85 | U45: 167.3 | V45: 163.25 | W45: 156.25 | X45: 159.1 | Y45: 139.65 | Z45: 153.1 | AA45: 161.9 | AB45: 160.5 | AC45: 167.85 | AD45: 174.85 | AE45: 165 | AF45: 167 | AG45: 173.35 | AH45: 178.5 | AI45: 161.29 | AJ45: 143.51 | AK45: 150.6 | AL45: 154.35 | AM45: 0.02490039841 | AN45: -0.01360328996
A46: REAA | B46: BERING STRAIT | C46: WALES | D46: 36 | E46: 40 | F46: 47.8 | G46: 50.25 | H46: 51.75 | I46: 57.25 | J46: 52.8 | K46: 59.75 | L46: 55.25 | M46: 54.55 | N46: 54 | O46: 49 | P46: 45.9 | Q46: 43.65 | R46: 36.3 | S46: 31.05 | T46: 35 | U46: 32 | V46: 33 | W46: 33 | X46: 38 | Y46: 33 | Z46: 33 | AA46: 32 | AB46: 38.05 | AC46: 35.75 | AD46: 41 | AE46: 42.35 | AF46: 44.05 | AG46: 41 | AH46: 35.9 | AI46: 41.25 | AJ46: 35.2 | AK46: 30.55 | AL46: 31.9 | AM46: 0.0441898527 | AN46: -0.02576440697
A47: REAA | B47: BERING STRAIT | C47: WHITE MOUNTAIN | D47: 44.05 | E47: 48.3 | F47: 45.05 | G47: 50.5 | H47: 60 | I47: 64.5 | J47: 72 | K47: 64 | L47: 65.2 | M47: 68.95 | N47: 63.3 | O47: 58.65 | P47: 58.3 | Q47: 56.25 | R47: 52 | S47: 54 | T47: 48.4 | U47: 46.45 | V47: 51 | W47: 47.8 | X47: 43.75 | Y47: 37 | Z47: 42.4 | AA47: 44.8 | AB47: 41 | AC47: 49 | AD47: 55.85 | AE47: 56.35 | AF47: 58 | AG47: 47.9 | AH47: 50.8 | AI47: 54.75 | AJ47: 58 | AK47: 63.65 | AL47: 63.65 | AM47: 0 | AN47: 0.01989614061
A48: REAA | B48: BERING STRAIT | C48: TOTAL | D48: =SUM(D33:D47) -> 1356.3 | E48: 1433.95 | F48: 1476.65 | G48: 1539.15 | H48: 1600.7 | I48: 1679.1 | J48: 1706 | K48: 1759.7 | L48: 1782.9 | M48: 1775.45 | N48: 1760.25 | O48: 1728.3 | P48: 1733.85 | Q48: 1704 | R48: 1699.15 | S48: 1668.3 | T48: 1672.45 | U48: =SUM(U33:U47) -> 1646.55 | V48: =SUM(V33:V47) -> 1652.95 | W48: 1642.85 | X48: 1653.6 | Y48: 1593.55 | Z48: 1667.55 | AA48: 1660.35 | AB48: 1657.6 | AC48: 1695.1 | AD48: 1770.45 | AE48: 1785 | AF48: =SUM(AF33:AF47) -> 1777.55 | AG48: 1718.25 | AH48: 1742.15 | AI48: 1714.74 | AJ48: 1682.86 | AK48: 1647.25 | AL48: 1620.43 | AM48: -0.01628168159 | AN48: -0.01089671288
A49: C/B | B49: BRISTOL BAY | C49: NAKNEK | D49: 231 | E49: 250.65 | F49: 247.35 | G49: 255.6 | H49: 254.25 | I49: 276.5 | J49: 297.45 | K49: 289 | L49: 280.65 | M49: 260.6 | N49: 226.2 | O49: 223.2 | P49: 222 | Q49: =88.35+99.25 -> 187.6 | R49: 184.4 | S49: 179 | T49: 188.1 | U49: 182.25 | V49: 142.65 | W49: 155.05 | X49: 160.05 | Y49: 149.74 | Z49: 139.65 | AA49: 138.2 | AB49: 116.5 | AC49: 118.65 | AD49: 117.95 | AE49: 114.25 | AF49: 99.9 | AG49: 102.71 | AH49: 95.33 | AI49: 96.5 | AJ49: 99.95 | AK49: 100.8 | AL49: 93.33 | AM49: -0.07410714286 | AN49: -0.02728425938
A50: C/B | B50: BRISTOL BAY | C50: SOUTH NAKNEK | D50: 22 | E50: 22 | F50: 18 | G50: 16 | H50: 15 | I50: 16 | J50: 16 | K50: 16 | L50: 15 | M50: 14 | N50: 16.85 | O50: 14 | P50: 11.6 | Q50: 7.75 | R50: closed | S50: closed | T50: closed | U50: closed | V50: closed | W50: closed | X50: closed | Y50: closed | Z50: closed | AA50: closed | AB50: closed | AC50: closed | AD50: closed | AE50: closed | AF50: closed | AG50: closed | AH50: closed | AI50: closed | AJ50: closed | AK50: closed | AL50: closed | AM50: n/a | AN50: n/a
A51: C/B | B51: BRISTOL BAY | C51: TOTAL | D51: =SUM(D49:D50) -> 253 | E51: 272.65 | F51: 265.35 | G51: 271.6 | H51: 269.25 | I51: 292.5 | J51: 313.45 | K51: 305 | L51: 295.65 | M51: 274.6 | N51: 243.05 | O51: 237.2 | P51: 233.6 | Q51: 195.35 | R51: 184.4 | S51: 179 | T51: 188.1 | U51: =SUM(U49:U50) -> 182.25 | V51: =SUM(V49:V50) -> 142.65 | W51: 155.05 | X51: 160.05 | Y51: 149.74 | Z51: 139.65 | AA51: 138.2 | AB51: 116.5 | AC51: 118.65 | AD51: 117.95 | AE51: 114.25 | AF51: =SUM(AF49:AF50) -> 99.9 | AG51: 102.71 | AH51: 95.33 | AI51: 96.5 | AJ51: 99.95 | AK51: 100.8 | AL51: 93.33 | AM51: -0.07410714286 | AN51: -0.02728425938
A52: REAA | B52: CHATHAM | C52: ANGOON | D52: 186.5 | E52: 175 | F52: 166.1 | G52: 157.35 | H52: 156 | I52: 153.8 | J52: 146.75 | K52: 145.95 | L52: 154.7 | M52: 150 | N52: 154.5 | O52: 133.6 | P52: 124.3 | Q52: 114.5 | R52: 112.7 | S52: 108 | T52: 103.32 | U52: 91 | V52: 79.5 | W52: 80.65 | X52: 77 | Y52: 72 | Z52: 65.2 | AA52: 70.4 | AB52: 79 | AC52: 68.5 | AD52: 73.5 | AE52: 78.25 | AF52: 73.9 | AG52: 64.3 | AH52: 66.5 | AI52: 63 | AJ52: 69.75 | AK52: 64.75 | AL52: 69.05 | AM52: 0.06640926641 | AN52: -0.004677488201
A53: REAA | B53: CHATHAM | C53: CORNER BAY | D53: 8 | E53: 12 | F53: closed | G53: closed | H53: closed | I53: closed | J53: closed | K53: closed | L53: closed | M53: closed | N53: closed | O53: closed | P53: closed | Q53: closed | R53: closed | S53: closed | T53: closed | U53: closed | V53: closed | W53: closed | X53: closed | Y53: closed | Z53: closed | AA53: closed | AB53: closed | AC53: closed | AD53: closed | AE53: closed | AF53: closed | AG53: closed | AH53: closed | AI53: closed | AJ53: closed | AK53: closed | AL53: closed | AM53: n/a | AN53: n/a
A54: REAA | B54: CHATHAM | C54: CUBE COVE | D54: 40.8 | E54: 67 | F54: 44.2 | G54: 31 | H54: 29 | I54: 26 | J54: 36.85 | K54: 31 | L54: 18 | M54: 19 | N54: 20 | O54: 10 | P54: 0 | Q54: closed | R54: closed | S54: closed | T54: closed | U54: closed | V54: closed | W54: closed | X54: closed | Y54: closed | Z54: closed | AA54: closed | AB54: closed | AC54: closed | AD54: closed | AE54: closed | AF54: closed | AG54: closed | AH54: closed | AI54: closed | AJ54: closed | AK54: closed | AL54: closed | AM54: n/a | AN54: n/a
A55: REAA | B55: CHATHAM | C55: ELFIN COVE | D55: 9 | E55: 11 | F55: 12 | G55: 11 | H55: 8 | I55: 11 | J55: 11 | K55: 11 | L55: 0 | M55: closed | N55: closed | O55: closed | P55: closed | Q55: closed | R55: closed | S55: closed | T55: closed | U55: closed | V55: closed | W55: closed | X55: closed | Y55: closed | Z55: closed | AA55: closed | AB55: closed | AC55: closed | AD55: closed | AE55: closed | AF55: closed | AG55: closed | AH55: closed | AI55: closed | AJ55: closed | AK55: closed | AL55: closed | AM55: n/a | AN55: n/a
A56: REAA | B56: CHATHAM | C56: EIGHT FATHOM BIGHT | D56: closed | E56: closed | F56: closed | G56: closed | H56: closed | I56: closed | J56: closed | K56: closed | L56: closed | M56: closed | N56: closed | O56: closed | P56: closed | Q56: closed | R56: closed | S56: closed | T56: closed | U56: closed | V56: closed | W56: closed | X56: closed | Y56: closed | Z56: closed | AA56: closed | AB56: closed | AC56: closed | AD56: closed | AE56: closed | AF56: closed | AG56: closed | AH56: closed | AI56: closed | AJ56: closed | AK56: closed | AL56: closed | AM56: n/a | AN56: n/a
A57: REAA | B57: CHATHAM | C57: FRESHWATER BAY | D57: 21 | E57: 11 | F57: 16.45 | G57: closed | H57: closed | I57: closed | J57: closed | K57: closed | L57: closed | M57: closed | N57: closed | O57: closed | P57: closed | Q57: closed | R57: closed | S57: closed | T57: closed | U57: closed | V57: closed | W57: closed | X57: closed | Y57: closed | Z57: closed | AA57: closed | AB57: closed | AC57: closed | AD57: closed | AE57: closed | AF57: closed | AG57: closed | AH57: closed | AI57: closed | AJ57: closed | AK57: closed | AL57: closed | AM57: n/a | AN57: n/a
A58: REAA | B58: CHATHAM | C58: GUSTAVUS | D58: 72 | E58: 67 | F58: 65 | G58: 85.5 | H58: 79.7 | I58: 83 | J58: 75.2 | K58: 73 | L58: 73.9 | M58: 61 | N58: 48 | O58: 46.25 | P58: 43.7 | Q58: 49 | R58: 37.5 | S58: 44 | T58: 42.5 | U58: 44.99 | V58: 45.5 | W58: 39.75 | X58: 57.25 | Y58: 49.75 | Z58: 52.25 | AA58: 61.1 | AB58: 64.7 | AC58: 74.65 | AD58: 70.15 | AE58: 71.5 | AF58: 65 | AG58: 63.5 | AH58: 59.5 | AI58: 58.5 | AJ58: 46.5 | AK58: 51 | AL58: 50.75 | AM58: -0.004901960784 | AN58: -0.03597454486
A59: REAA | B59: CHATHAM | C59: HOBART BAY | E59: 7 | F59: 7.65 | G59: 8 | H59: 12.25 | I59: 23 | J59: 21 | K59: 7.25 | L59: 0 | M59: closed | N59: closed | O59: closed | P59: closed | Q59: closed | R59: closed | S59: closed | T59: closed | U59: closed | V59: closed | W59: closed | X59: closed | Y59: closed | Z59: closed | AA59: closed | AB59: closed | AC59: closed | AD59: closed | AE59: closed | AF59: closed | AG59: closed | AH59: closed | AI59: closed | AJ59: closed | AK59: closed | AL59: closed | AM59: n/a | AN59: n/a
A60: REAA | B60: CHATHAM | C60: KLUKWAN | D60: 35 | E60: 35.5 | F60: 30 | G60: 24.7 | H60: 27.9 | I60: 28.5 | J60: 27 | K60: 11.8 | L60: 12.2 | M60: 12 | N60: 14 | O60: 26.5 | P60: 39.9 | Q60: 39 | R60: 32.9 | S60: 38 | T60: 33 | U60: 22.4 | V60: 15.75 | W60: 18 | X60: 14 | Y60: 15 | Z60: 16 | AA60: 13 | AB60: 13.25 | AC60: 16.5 | AD60: 13 | AE60: 21.7 | AF60: 17.9 | AG60: 14 | AH60: 13.5 | AI60: 6.85 | AJ60: 5 | AK60: 12 | AL60: 22.5 | AM60: 0.875 | AN60: 0.2191073245
A61: REAA | B61: CHATHAM | C61: TENAKEE | D61: 10 | E61: 11 | F61: 7.55 | G61: 9 | H61: 13 | I61: 12 | J61: 16.5 | K61: 13 | L61: 13.25 | M61: 15 | N61: 11 | O61: 11 | P61: 12 | Q61: 12.5 | R61: 12 | S61: 10 | T61: 14.25 | U61: 10 | V61: 9 | W61: 12 | X61: 8 | Y61: 10 | Z61: 10 | AA61: closed | AB61: 12.25 | AC61: 6.5 | AD61: closed | AE61: closed | AF61: closed | AG61: closed | AH61: closed | AI61: closed | AJ61: closed | AK61: closed | AL61: closed | AM61: n/a | AN61: n/a
A62: REAA | B62: CHATHAM | C62: TOTAL | D62: =SUM(D52:D61) -> 382.3 | E62: 396.5 | F62: 348.95 | G62: 326.55 | H62: 325.85 | I62: 337.3 | J62: 334.3 | K62: 293 | L62: 272.05 | M62: 257 | N62: 247.5 | O62: 227.35 | P62: 219.9 | Q62: 215 | R62: 195.1 | S62: 200 | T62: 193.07 | U62: =SUM(U52:U61) -> 168.39 | V62: =SUM(V52:V61) -> 149.75 | W62: 150.4 | X62: 156.25 | Y62: 146.75 | Z62: 143.45 | AA62: 144.5 | AB62: 169.2 | AC62: 166.15 | AD62: 156.65 | AE62: 171.45 | AF62: =SUM(AF52:AF61) -> 156.8 | AG62: 141.8 | AH62: 139.5 | AI62: 128.35 | AJ62: 121.25 | AK62: 127.75 | AL62: 142.3 | AM62: 0.1138943249 | AN62: -0.008824505536
A63: REAA | B63: CHUGACH | C63: CHENEGA BAY | D63: 21 | E63: 19 | F63: 21.25 | G63: 26 | H63: 13 | I63: 16 | J63: 14 | K63: 8 | L63: 10 | M63: 10.4 | N63: 14.8 | O63: 11 | P63: 11 | Q63: 11 | R63: 11 | S63: 14 | T63: 14 | U63: 16 | V63: 17 | W63: 22 | X63: 23 | Y63: 19.75 | Z63: 12 | AA63: 12.7 | AB63: 10.45 | AC63: 11 | AD63: 11 | AE63: 13 | AF63: 11 | AG63: 10 | AH63: 12.5 | AI63: 10 | AJ63: 12 | AK63: 11 | AL63: 9.4 | AM63: -0.1454545455 | AN63: -0.005215617716
A64: REAA | B64: CHUGACH | C64: ICY BAY | D64: 4 | E64: 3 | F64: 6 | G64: 6.8 | H64: 13 | I64: 13 | J64: 13 | K64: closed | L64: closed | M64: closed | N64: closed | O64: closed | P64: closed | Q64: closed | R64: closed | S64: closed | T64: closed | U64: closed | V64: closed | W64: closed | X64: closed | Y64: closed | Z64: closed | AA64: closed | AB64: closed | AC64: closed | AD64: closed | AE64: closed | AF64: closed | AG64: closed | AH64: closed | AI64: closed | AJ64: closed | AK64: closed | AL64: closed | AM64: n/a | AN64: n/a
A65: REAA | B65: CHUGACH | C65: TATITLEK | D65: 20.1 | E65: 23.25 | F65: 28 | G65: 31.85 | H65: 32 | I65: 29 | J65: 27 | K65: 33 | L65: 28 | M65: 32.5 | N65: 23.9 | O65: 29.5 | P65: 32.5 | Q65: 26 | R65: 30.3 | S65: 27 | T65: 24.95 | U65: 20.45 | V65: 19 | W65: 17 | X65: 14.1 | Y65: 13 | Z65: 15 | AA65: 13 | AB65: 14.25 | AC65: 15 | AD65: 16 | AE65: 17 | AF65: 15 | AG65: 18.5 | AH65: 18.5 | AI65: 12 | AJ65: 11 | AK65: 11 | AL65: 10 | AM65: -0.09090909091 | AN65: -0.04342593764
A66: REAA | B66: CHUGACH | C66: TWO MOON BAY | E66: 8 | F66: 9 | G66: 5.1 | H66: 10 | I66: 11 | J66: 4 | K66: closed | L66: closed | M66: closed | N66: closed | O66: closed | P66: closed | Q66: closed | R66: closed | S66: closed | T66: closed | U66: closed | V66: closed | W66: closed | X66: closed | Y66: closed | Z66: closed | AA66: closed | AB66: closed | AC66: closed | AD66: closed | AE66: closed | AF66: closed | AG66: closed | AH66: closed | AI66: closed | AJ66: closed | AK66: closed | AL66: closed | AM66: n/a | AN66: n/a
A67: REAA | B67: CHUGACH | C67: WHITTIER | D67: 68.8 | E67: 75 | F67: 68 | G67: 53 | H67: 65 | I67: 75 | J67: 99 | K67: 126 | L67: 36 | M67: 26.45 | N67: 22.4 | O67: 34 | P67: 40 | Q67: 40.85 | R67: 39.9 | S67: 44.4 | T67: 27.75 | U67: 34.05 | V67: 30.3 | W67: 24 | X67: 14 | Y67: 27.16 | Z67: 33 | AA67: 31.4 | AB67: 35.85 | AC67: 36.05 | AD67: 37 | AE67: 27 | AF67: 40.15 | AG67: 51.2 | AH67: 49.85 | AI67: 49.45 | AJ67: 39.5 | AK67: 47.3 | AL67: 48.35 | AM67: 0.0221987315 | AN67: 0.05950589736
A68: REAA | B68: CHUGACH | C68: TOTAL | D68: =SUM(D63:D67) -> 113.9 | E68: 128.25 | F68: 132.25 | G68: 122.75 | H68: 133 | I68: 144 | J68: 157 | K68: 167 | L68: 74 | M68: 69.35 | N68: 61.1 | O68: 74.5 | P68: 83.5 | Q68: 77.85 | R68: 81.2 | S68: 85.4 | T68: 66.7 | U68: =SUM(U63:U67) -> 70.5 | V68: =SUM(V63:V67) -> 66.3 | W68: 63 | X68: 51.1 | Y68: 59.91 | Z68: 60 | AA68: 57.1 | AB68: 60.55 | AC68: 62.05 | AD68: 64 | AE68: 57 | AF68: =SUM(AF63:AF67) -> 66.15 | AG68: 79.7 | AH68: 80.85 | AI68: 71.45 | AJ68: 62.5 | AK68: 69.3 | AL68: 67.75 | AM68: -0.02236652237 | AN68: 0.01441553552
A69: STATE | B69: CCS | C69: CCS | D69: 1984.74 | E69: 2079.48 | F69: 2280.47 | G69: 1475.14 | H69: 1477.15 | I69: 1580.85 | J69: 1626.47 | K69: closed | L69: closed | M69: closed | N69: closed | O69: closed | P69: closed | Q69: closed | R69: closed | S69: closed | T69: closed | U69: closed | V69: closed | W69: closed | X69: closed | Y69: closed | Z69: closed | AA69: closed | AB69: closed | AC69: closed | AD69: closed | AE69: closed | AF69: closed | AG69: closed | AH69: closed | AI69: closed | AJ69: closed | AK69: closed | AL69: closed | AM69: =IFERROR((AL69-AK69)/AK69,"n/a") -> n/a | AN69: =IFERROR(((AL69-AK69)/AK69+(AK69-AJ69)/AJ69+(AJ69-AI69)/AI69+(AI69-AH69)/AH69+(AH69-AG69)/AG69+(AG69-AF69)/AF69+(AF69-AE69)/AE69+(AE69-AD69)/AD69)/8,"n/a") -> n/a
A70: STATE | B70: CCS | C70: TOTAL | D70: =SUM(D69) -> 1984.74 | E70: 2079.48 | F70: 2280.47 | G70: 1475.14 | H70: 1477.15 | I70: 1580.85 | J70: 1626.47 | K70: 0 | L70: 0 | M70: 0 | N70: 0 | O70: 0 | P70: 0 | Q70: 0 | R70: 0 | S70: 0 | T70: 0 | U70: =SUM(U69) -> 0 | V70: =SUM(V69) -> 0 | W70: 0 | X70: 0 | Y70: 0 | Z70: 0 | AA70: 0 | AB70: 0 | AC70: 0 | AD70: 0 | AE70: 0 | AF70: =SUM(AF69) -> 0 | AG70: 0 | AH70: 0 | AI70: 0 | AJ70: 0 | AK70: 0 | AL70: 0 | AM70: n/a | AN70: n/a
A71: REAA | B71: COPPER RIVER | C71: CHISTOCHINA | D71: 38.05 | E71: 31.25 | F71: 31 | G71: 15.25 | H71: 13.3 | I71: 10.5 | J71: 6.95 | K71: 9 | L71: 10 | M71: 11 | N71: 15 | O71: 10 | P71: 10.4 | Q71: 11 | R71: 15 | S71: 16 | T71: 11 | U71: 10 | V71: 12 | W71: 11 | X71: 11.45 | Y71: closed | Z71: closed | AA71: closed | AB71: closed | AC71: closed | AD71: closed | AE71: closed | AF71: closed | AG71: closed | AH71: closed | AI71: closed | AJ71: closed | AK71: closed | AL71: closed | AM71: n/a | AN71: n/a
A72: REAA | B72: COPPER RIVER | C72: COPPER CENTER | D72: 74.55 | E72: 74 | F72: 79.45 | G72: 77.5 | H72: 69.8 | I72: 61.5 | J72: 51.45 | K72: 51.85 | L72: 38 | M72: Glennallen | N72: Glennallen | O72: Glennallen | P72: Glennallen | Q72: Glennallen | R72: Glennallen | S72: Glennallen | T72: Glennallen | U72: Glennallen | V72: Glennallen | W72: Glennallen | X72: Glennallen | Y72: Glennallen | Z72: Glennallen | AA72: Glennallen | AB72: closed | AC72: closed | AD72: closed | AE72: closed | AF72: closed | AG72: closed | AH72: closed | AI72: closed | AJ72: closed | AK72: closed | AL72: closed | AM72: n/a | AN72: n/a
A73: REAA | B73: COPPER RIVER | C73: GAKONA | D73: 30 | E73: 25 | F73: 18 | G73: 22.85 | H73: 21.75 | I73: 19.75 | J73: 26.1 | K73: 26.75 | L73: 23.1 | M73: Glennallen | N73: Glennallen | O73: Glennallen | P73: Glennallen | Q73: Glennallen | R73: Glennallen | S73: Glennallen | T73: Glennallen | U73: Glennallen | V73: closed | W73: closed | X73: closed | Y73: closed | Z73: closed | AA73: closed | AB73: closed | AC73: closed | AD73: closed | AE73: closed | AF73: closed | AG73: closed | AH73: closed | AI73: closed | AJ73: closed | AK73: closed | AL73: closed | AM73: n/a | AN73: n/a
A74: REAA | B74: COPPER RIVER | C74: GLENNALLEN | D74: 305.5 | E74: 340.35 | F74: 353.2 | G74: 345.6 | H74: 364.8 | I74: 383.8 | J74: 501.6 | K74: =152.94+237.8 -> 390.74 | L74: 336.15 | M74: =208.25+118.5+43+19.55 -> 389.3 | N74: =296.65+51.2+13 -> 360.85 | O74: =191.83+116.95+51.7+22.75 -> 383.23 | P74: =184.9+132+49.25+17 -> 383.15 | Q74: =128.15+180.45+48+17.1 -> 373.7 | R74: =180.9+127.5+55.35+14 -> 377.75 | S74: 369.75 | T74: =39+15+175+129 -> 358 | U74: 321.25 | V74: 302.65 | W74: 305.38 | X74: 291.15 | Y74: 297.8 | Z74: 304.3 | AA74: 298.25 | AB74: 285.85 | AC74: 279.55 | AD74: 279.3 | AE74: 266.28 | AF74: 251.86 | AG74: 245.24 | AH74: 205.93 | AI74: 225.94 | AJ74: 205.8 | AK74: 225.65 | AL74: 205.75 | AM74: -0.08818967427 | AN74: -0.03388163031
A75: REAA | B75: COPPER RIVER | C75: KENNY LAKE | D75: 99.85 | E75: 85.85 | F75: 97.3 | G75: 104.75 | H75: 107.8 | I75: 122.95 | J75: 135.5 | K75: 124.95 | L75: 123.8 | M75: 114.75 | N75: 117.25 | O75: 124.4 | P75: 122.67 | Q75: 132.5 | R75: 142.2 | S75: 130.9 | T75: 124.05 | U75: 129.85 | V75: 120.3 | W75: 121 | X75: 104.25 | Y75: 110.8 | Z75: 105.25 | AA75: 89.91 | AB75: 78 | AC75: 70.85 | AD75: 73.25 | AE75: 64.88 | AF75: 65.5 | AG75: 63.9 | AH75: 51.75 | AI75: 43.85 | AJ75: 57 | AK75: 58.6 | AL75: 52.55 | AM75: -0.1032423208 | AN75: -0.03090270116
A76: REAA | B76: COPPER RIVER | C76: NELCHINA | D76: 9 | E76: 8 | F76: 6 | G76: 6 | H76: 17 | I76: 16 | J76: 8.5 | K76: 12 | L76: 11 | M76: 14 | N76: 11 | O76: 11.7 | P76: closed | Q76: closed | R76: closed | S76: closed | T76: closed | U76: closed | V76: closed | W76: closed | X76: closed | Y76: closed | Z76: closed | AA76: closed | AB76: closed | AC76: closed | AD76: closed | AE76: closed | AF76: closed | AG76: closed | AH76: closed | AI76: closed | AJ76: closed | AK76: closed | AL76: closed | AM76: n/a | AN76: n/a
A77: REAA | B77: COPPER RIVER | C77: PAXSON | D77: 3 | E77: 6 | F77: closed | G77: closed | H77: closed | I77: closed | J77: closed | K77: closed | L77: closed | M77: closed | N77: closed | O77: closed | P77: closed | Q77: closed | R77: closed | S77: closed | T77: closed | U77: closed | V77: closed | W77: closed | X77: closed | Y77: closed | Z77: closed | AA77: closed | AB77: closed | AC77: closed | AD77: closed | AE77: closed | AF77: closed | AG77: closed | AH77: closed | AI77: closed | AJ77: closed | AK77: closed | AL77: closed | AM77: n/a | AN77: n/a
A78: REAA | B78: COPPER RIVER | C78: SLANA | D78: 22 | E78: 22 | F78: 22.95 | G78: 24.8 | H78: 28.8 | I78: 25 | J78: 42.5 | K78: 16 | L78: 16 | M78: 17 | N78: 10 | O78: 18 | P78: 24 | Q78: 14.95 | R78: 12 | S78: 15.75 | T78: 18.3 | U78: 17.8 | V78: 19 | W78: 16.4 | X78: 13.53 | Y78: 21.75 | Z78: 21 | AA78: 10.53 | AB78: 18.25 | AC78: 16.3 | AD78: 13.2 | AE78: 15.3 | AF78: 13 | AG78: 10 | AH78: 10.85 | AI78: 15 | AJ78: 15 | AK78: 10 | AL78: 11.75 | AM78: 0.175 | AN78: 0.01089375336
A79: REAA | B79: COPPER RIVER | C79: TOTAL | D79: =SUM(D71:D78) -> 581.95 | E79: 592.45 | F79: 607.9 | G79: 596.75 | H79: 623.25 | I79: 639.5 | J79: 772.6 | K79: 631.29 | L79: 558.05 | M79: 546.05 | N79: 514.1 | O79: 547.33 | P79: 540.22 | Q79: 532.15 | R79: 546.95 | S79: 532.4 | T79: 511.35 | U79: =SUM(U71:U78) -> 478.9 | V79: =SUM(V71:V78) -> 453.95 | W79: 453.78 | X79: 420.38 | Y79: 430.35 | Z79: 430.55 | AA79: 398.69 | AB79: 382.1 | AC79: 366.7 | AD79: 365.75 | AE79: 346.46 | AF79: =SUM(AF71:AF78) -> 330.36 | AG79: 319.14 | AH79: 268.53 | AI79: 284.79 | AJ79: 277.8 | AK79: 294.25 | AL79: 270.05 | AM79: -0.08224299065 | AN79: -0.03484707243
A80: C/B | B80: CORDOVA | C80: CORDOVA | D80: 437.9 | E80: 437.9 | F80: 502.5 | G80: 511.15 | H80: 528.15 | I80: 519.15 | J80: 534.3 | K80: =289.25+225.45 -> 514.7 | L80: 491.34 | M80: 485.45 | N80: 475.95 | O80: 461.45 | P80: 464.1 | Q80: =471.4 -> 471.4 | R80: 451.6 | S80: 446.95 | T80: 420.5 | U80: 408.9 | V80: 368.4 | W80: 360.4 | X80: 337.75 | Y80: 324.5 | Z80: 315.78 | AA80: 306.31 | AB80: 324.5 | AC80: 351.6 | AD80: 313.15 | AE80: 323.56 | AF80: 328.18 | AG80: 319.6 | AH80: 262.3 | AI80: 306.72 | AJ80: 332.34 | AK80: 356.05 | AL80: 351.8 | AM80: -0.01193652577 | AN80: 0.01929672611
A81: C/B | B81: CORDOVA | C81: TOTAL | D81: =SUM(D80) -> 437.9 | E81: 437.9 | F81: 502.5 | G81: 511.15 | H81: 528.15 | I81: 519.15 | J81: 534.3 | K81: 514.7 | L81: 491.34 | M81: 485.45 | N81: 475.95 | O81: 461.45 | P81: 464.1 | Q81: 471.4 | R81: 451.6 | S81: 446.95 | T81: 420.5 | U81: =SUM(U80) -> 408.9 | V81: =SUM(V80) -> 368.4 | W81: 360.4 | X81: 337.75 | Y81: 324.5 | Z81: 315.78 | AA81: 306.31 | AB81: 324.5 | AC81: 351.6 | AD81: 313.15 | AE81: 323.56 | AF81: =SUM(AF80) -> 328.18 | AG81: 319.6 | AH81: 262.3 | AI81: 306.72 | AJ81: 332.34 | AK81: 356.05 | AL81: 351.8 | AM81: -0.01193652577 | AN81: 0.01929672611
A82: C/B | B82: CRAIG | C82: CRAIG | D82: 303.4 | E82: 314.25 | F82: 356.45 | G82: 367 | H82: 396 | I82: 424 | J82: 422 | K82: =221+207 -> 428 | L82: 431 | M82: 412.35 | N82: 412.4 | O82: =185+94+96.75 -> 375.75 | P82: =177.2+90+100 -> 367.2 | Q82: =381.75-24 -> 357.75 | R82: 355.8 | S82: 352.75 | T82: 347.55 | U82: 331.45 | V82: 323.5 | W82: 304.05 | X82: 304.4 | Y82: 338.96 | Z82: 314.5 | AA82: 285.2 | AB82: 285.05 | AC82: 273.1 | AD82: 284.23 | AE82: 257.32 | AF82: 264.45 | AG82: 246.55 | AH82: 207.81 | AI82: 213.26 | AJ82: 229.4 | AK82: 223.13 | AL82: 196 | AM82: -0.1215883117 | AN82: -0.0423495649
A83: C/B | B83: CRAIG | C83: TOTAL | D83: =SUM(D82) -> 303.4 | E83: 314.25 | F83: 356.45 | G83: 367 | H83: 396 | I83: 424 | J83: 422 | K83: 428 | L83: 431 | M83: 412.35 | N83: 412.4 | O83: 375.75 | P83: 367.2 | Q83: 357.75 | R83: 355.8 | S83: 352.75 | T83: 347.55 | U83: =SUM(U82) -> 331.45 | V83: =SUM(V82) -> 323.5 | W83: 304.05 | X83: 304.4 | Y83: 338.96 | Z83: 314.5 | AA83: 285.2 | AB83: 285.05 | AC83: 273.1 | AD83: 284.23 | AE83: 257.32 | AF83: =SUM(AF82) -> 264.45 | AG83: 246.55 | AH83: 207.81 | AI83: 213.26 | AJ83: 229.4 | AK83: 223.13 | AL83: 196 | AM83: -0.1215883117 | AN83: -0.0423495649
A84: REAA | B84: DELTA/GREELY | C84: DELTA JUNCTION | D84: 841 | E84: 839.7 | F84: 927.9 | G84: 983.7 | H84: 964 | I84: 873 | J84: 834.7 | K84: =437.75+513.26 -> 951.01 | L84: =57.7+178+102.6+213.8+231.45 -> 783.55 | M84: =203.2+209.85+271.55+53.65 -> 738.25 | N84: 599.55 | O84: =36.1+267.4+234.8 -> 538.3 | P84: =320.98+280.6 -> 601.58 | Q84: 647.3 | R84: =812.69-R85-R86 -> 774.99 | S84: 805.7 | T84: =883.15-23 -> 860.15 | U84: 834.53 | V84: 783.59 | W84: 793.14 | X84: 764.45 | Y84: 770.85 | Z84: 740.7 | AA84: 719.54 | AB84: 691.39 | AC84: 675.88 | AD84: 717.75 | AE84: 708.35 | AF84: 727.15 | AG84: 683.13 | AH84: 503.67 | AI84: 630.74 | AJ84: 674.2 | AK84: 628.79 | AL84: 562.58 | AM84: -0.1052974761 | AN84: -0.02015702318
A85: REAA | B85: DELTA/GREELY | C85: HEALY LAKE | E85: 10 | F85: 9.5 | G85: 6 | H85: 10 | I85: 11.65 | J85: 8.95 | K85: 13 | L85: 10 | M85: 11.55 | N85: 0 | O85: 7.08 | P85: 0 | R85: 11.2 | S85: closed | T85: closed | U85: closed | V85: closed | W85: closed | X85: closed | Y85: closed | Z85: closed | AA85: closed | AB85: closed | AC85: closed | AD85: closed | AE85: closed | AF85: closed | AG85: closed | AH85: closed | AI85: closed | AJ85: closed | AK85: closed | AL85: closed | AM85: n/a | AN85: n/a
A86: REAA | B86: DELTA/GREELY | C86: GERSTLE RIVER | Q86: 20 | R86: 26.5 | S86: 27.8 | T86: 23 | U86: 25 | V86: 21.7 | W86: 19 | X86: 22 | Y86: 22 | Z86: 21 | AA86: 21 | AB86: 29 | AC86: 20.75 | AD86: 24.85 | AE86: 27 | AF86: 29 | AG86: 28 | AH86: 30 | AI86: 31 | AJ86: 30 | AK86: 33.35 | AL86: 32 | AM86: -0.04047976012 | AN86: 0.03372514712
A87: REAA | B87: DELTA/GREELY | C87: TOTAL | D87: =SUM(D84:D86) -> 841 | E87: 849.7 | F87: 937.4 | G87: 989.7 | H87: 974 | I87: 884.65 | J87: 843.65 | K87: 964.01 | L87: 793.55 | M87: 749.8 | N87: 599.55 | O87: 545.38 | P87: 601.58 | Q87: 667.3 | R87: 812.69 | S87: 833.5 | T87: 883.15 | U87: =SUM(U84:U86) -> 859.53 | V87: =SUM(V84:V86) -> 805.29 | W87: 812.14 | X87: 786.45 | Y87: 792.85 | Z87: 761.7 | AA87: 740.54 | AB87: 720.39 | AC87: 696.63 | AD87: 742.6 | AE87: 735.35 | AF87: =SUM(AF84:AF86) -> 756.15 | AG87: 711.13 | AH87: 533.67 | AI87: 661.74 | AJ87: 704.2 | AK87: 662.14 | AL87: 594.58 | AM87: -0.1020328027 | AN87: -0.01852228866
A88: C/B | B88: DENALI | C88: ANDERSON | D88: 114.6 | E88: 106.9 | F88: 119.05 | G88: 118.25 | H88: 125.3 | I88: 112.75 | J88: 113 | K88: 89.2 | L88: 96 | M88: 79.4 | N88: 62.45 | O88: 63.5 | P88: 80.5 | Q88: 87.25 | R88: 81.25 | S88: 77.35 | T88: 52.95 | U88: 56.9 | V88: 43.25 | W88: 32 | X88: 38.85 | Y88: 31.5 | Z88: 23.1 | AA88: 15.55 | AB88: 19 | AC88: 32 | AD88: 31.25 | AE88: 33.75 | AF88: 27 | AG88: 32.25 | AH88: 26.65 | AI88: 22.25 | AJ88: 18.25 | AK88: 11.87 | AL88: 7.25 | AM88: -0.3892165122 | AN88: -0.1478603738
A89: C/B | B89: DENALI | C89: CANTWELL | D89: 24 | E89: 29.5 | F89: 30.1 | G89: 26.5 | H89: 27 | I89: 26 | J89: 27 | K89: 28 | L89: 39 | M89: 31 | N89: 30.65 | O89: 27.75 | P89: 22.55 | Q89: 24.65 | R89: 25.25 | S89: 19.6 | T89: 19 | U89: 25.3 | V89: 34.4 | W89: 35 | X89: 32.45 | Y89: 22 | Z89: 22 | AA89: 19 | AB89: 15.6 | AC89: 14 | AD89: 17 | AE89: 13.5 | AF89: 13.75 | AG89: 10 | AH89: 11 | AI89: 8 | AJ89: 8 | AK89: 10 | AL89: 12.75 | AM89: 0.275 | AN89: -0.01347729748
A90: C/B | B90: DENALI | C90: HEALY | D90: 194.6 | E90: 193.2 | F90: 220.4 | G90: 230.4 | H90: 232.25 | I90: 239 | J90: 250.9 | K90: 232.65 | L90: 227.1 | M90: 216.1 | N90: 219.55 | O90: 196.25 | P90: 193.7 | Q90: 193.25 | R90: 198 | S90: 183.05 | T90: 171.15 | U90: 162.55 | V90: 155.85 | W90: 168.85 | X90: 178.75 | Y90: 176.25 | Z90: 186.01 | AA90: 174.25 | AB90: 173.67 | AC90: 159.78 | AD90: 166 | AE90: 175.8 | AF90: 182.4 | AG90: 170.55 | AH90: 126.05 | AI90: 125.69 | AJ90: 150.75 | AK90: 151.95 | AL90: 157.32 | AM90: 0.03534057256 | AN90: 0.001314417236
A91: C/B | B91: DENALI | C91: TOTAL | D91: =SUM(D88:D90) -> 333.2 | E91: 329.6 | F91: 369.55 | G91: 375.15 | H91: 384.55 | I91: 377.75 | J91: 390.9 | K91: 349.85 | L91: 362.1 | M91: 326.5 | N91: 312.65 | O91: 287.5 | P91: 296.75 | Q91: 305.15 | R91: 304.5 | S91: 280 | T91: 243.1 | U91: =SUM(U88:U90) -> 244.75 | V91: =SUM(V88:V90) -> 233.5 | W91: 235.85 | X91: 250.05 | Y91: 229.75 | Z91: 231.11 | AA91: 208.8 | AB91: 208.27 | AC91: 205.78 | AD91: 214.25 | AE91: 223.05 | AF91: =SUM(AF88:AF90) -> 223.15 | AG91: 212.8 | AH91: 163.7 | AI91: 155.94 | AJ91: 177 | AK91: 173.82 | AL91: 177.32 | AM91: 0.02013577264 | AN91: -0.01822184647
A92: C/B | B92: DILLINGHAM | C92: DILLINGHAM | D92: 480.5 | E92: 504.1 | F92: 488.05 | G92: 485.5 | H92: 496.2 | I92: 524 | J92: 541.25 | K92: =339.45+243.7 -> 583.15 | L92: 548.05 | M92: 561.8 | N92: 579.85 | O92: 540.7 | P92: 520.66 | Q92: 513.13 | R92: 531.8 | S92: 504.9 | T92: 531.43 | U92: 499.7 | V92: 495.45 | W92: 469.52 | X92: 474.2 | Y92: 462.1 | Z92: 481.25 | AA92: 482.6 | AB92: 465.3 | AC92: 444.95 | AD92: 472.45 | AE92: 475.7 | AF92: 459.35 | AG92: 438.85 | AH92: 410.6 | AI92: 424.5 | AJ92: 407.85 | AK92: 392.15 | AL92: 385.6 | AM92: -0.0167027923 | AN92: -0.02463243648
A93: C/B | B93: DILLINGHAM | C93: TOTAL | D93: =SUM(D92) -> 480.5 | E93: 504.1 | F93: 488.05 | G93: 485.5 | H93: 496.2 | I93: 524 | J93: 541.25 | K93: 583.15 | L93: 548.05 | M93: 561.8 | N93: 579.85 | O93: 540.7 | P93: 520.66 | Q93: 513.13 | R93: 531.8 | S93: 504.9 | T93: 531.43 | U93: =SUM(U92) -> 499.7 | V93: =SUM(V92) -> 495.45 | W93: 469.52 | X93: 474.2 | Y93: 462.1 | Z93: 481.25 | AA93: 482.6 | AB93: 465.3 | AC93: 444.95 | AD93: 472.45 | AE93: 475.7 | AF93: =SUM(AF92) -> 459.35 | AG93: 438.85 | AH93: 410.6 | AI93: 424.5 | AJ93: 407.85 | AK93: 392.15 | AL93: 385.6 | AM93: -0.0167027923 | AN93: -0.02463243648
A94: C/B | B94: FAIRBANKS | C94: FAIRBANKS | D94: 9506.3 | E94: 9884.7 | F94: 10454.5 | G94: 10577.5 | H94: 10451 | I94: 10797 | J94: 11047.2 | K94: =6331.45+4881.64 -> 11213.09 | L94: =504.88+446.5+1447.74+599.23+815.1+511.3+1206.7+556.53+446.3+232.8+341.6+488.45+475.9+406.86+881.35+629.7+563.9-L99 -> 9925.14 | M94: =15366.65-M95-M96-M97-M98-42-M99 -> 9830.55 | N94: 9704.64 | O94: 9960.61 | P94: =9387.38 -> 9387.38 | Q94: =9062.76 -> 9062.76 | R94: 9280.97 | S94: 8906.51 | T94: =468.3+369.05+155+399.7+317.7+349.05+370.8+333.95+1275.97+373.25+420.3+391.65+374.35+505+531.95+474.45+1218.03+468.25+97.65+194.93+73.83+40 -> 9203.16 | U94: 8514.68 | V94: 8533.08 | W94: 8639.6 | X94: 8609.69 | Y94: 8737.91 | Z94: 8661.09 | AA94: 8552.96 | AB94: 8397.35 | AC94: 8440 | AD94: 8335.32 | AE94: 8296.82 | AF94: 8132.06 | AG94: 8044.41 | AH94: 6402.31 | AI94: 7016.39 | AJ94: 7216.11 | AK94: 6978.25 | AL94: 6714.76 | AM94: -0.0377587504 | AN94: -0.02321571385
A95: C/B | B95: FAIRBANKS | C95: NORTH POLE | D95: 3134.6 | E95: 3208.6 | F95: 3055.5 | G95: 3078.5 | H95: 3189 | I95: 3222 | J95: 3245.55 | K95: =1659.33+1621.5 -> 3280.83 | L95: =490.34+414.65+470.35+241.5+541.7+1024.8 -> 3183.34 | M95: 3092.36 | N95: 2925.59 | O95: 2487.81 | P95: 2856.44 | Q95: 2912.24 | R95: 2907.02 | S95: 2952.84 | T95: =576.3+513.45+882.4+440.08+524.45 -> 2936.68 | U95: 2962.69 | V95: 3035.84 | W95: 3082.55 | X95: 2988.64 | Y95: 2808.92 | Z95: 2910.67 | AA95: 2876.01 | AB95: 2910.04 | AC95: 2867.93 | AD95: 2853.3 | AE95: 2701.06 | AF95: 2571.64 | AG95: 2422.39 | AH95: 1777.83 | AI95: 2153.03 | AJ95: 2207.92 | AK95: 2240.04 | AL95: 2484.41 | AM95: 0.1090918019 | AN95: -0.008151745993
A96: C/B | B96: FAIRBANKS | C96: SALCHA | D96: 102.8 | E96: 89.2 | F96: 81 | G96: 73 | H96: 66.5 | I96: 85.5 | J96: 75.2 | K96: 86.63 | L96: 80.3 | M96: 76 | N96: 73.35 | O96: 79.95 | P96: 71.65 | Q96: 84.7 | R96: 98.2 | S96: 89.19 | T96: 99.5 | U96: 85.79 | V96: 97 | W96: 101 | X96: 88 | Y96: 83 | Z96: 84 | AA96: 76.01 | AB96: 68.8 | AC96: 77.65 | AD96: 73.25 | AE96: 69.24 | AF96: 81.9 | AG96: 78 | AH96: 43 | AI96: 64 | AJ96: 66.4 | AK96: 68.05 | AL96: 59.5 | AM96: -0.1256429096 | AN96: 0.00710498063
A97: C/B | B97: FAIRBANKS | C97: TWO RIVERS | D97: 112.5 | E97: 113.1 | F97: 109.5 | G97: 126 | H97: 118.5 | I97: 128.5 | J97: 118.5 | K97: 128.25 | L97: 119 | M97: 104.85 | N97: 103.2 | O97: 86.7 | P97: 98.65 | Q97: 96.35 | R97: 122.05 | S97: 113.05 | T97: 91.15 | U97: 107.12 | V97: 99.23 | W97: 92.55 | X97: 92.5 | Y97: 88.2 | Z97: 87.45 | AA97: 97.45 | AB97: 87.42 | AC97: 98.8 | AD97: 94.95 | AE97: 86.35 | AF97: 71.95 | AG97: 74.65 | AH97: 41.15 | AI97: 66.4 | AJ97: 65.45 | AK97: 61 | AL97: 64 | AM97: 0.04918032787 | AN97: -0.01101012113
A98: C/B | B98: FAIRBANKS | C98: EIELSON | D98: 1389.6 | E98: 1587.6 | F98: 1550 | G98: 1553 | H98: 1581.5 | I98: 1583 | J98: 1645.2 | K98: =1038.6+600.4 -> 1639 | L98: =533.49+435.7+574.05 -> 1543.24 | M98: =488.05+615.88+567.25 -> 1671.18 | N98: 1657.15 | O98: 1600.66 | P98: 1572.16 | Q98: 1513.23 | R98: 1428.1 | S98: 1342.75 | T98: =347.25+596.25+378.65 -> 1322.15 | U98: 1150.4 | V98: 1102.2 | W98: 1107.15 | X98: 1092.88 | Y98: 1016.09 | Z98: 972.7 | AA98: 948.03 | AB98: 853.24 | AC98: 875.96 | AD98: 876.5 | AE98: 860.42 | AF98: 812.75 | AG98: 858.53 | AH98: 733.22 | AI98: 849.64 | AJ98: 861.52 | AK98: 780.1 | AL98: 362.73 | AM98: -0.5350211511 | AN98: -0.07751842891
A99: C/B | B99: FAIRBANKS | C99: FT. WAINWRIGHT | L99: 629.7 | M99: 549.71 | N99: 639.36 | O99: 687.9 | P99: 702.2 | Q99: 504.08 | R99: 498.7 | S99: 414.54 | T99: 509.15 | U99: 532.28 | V99: 531.15 | W99: 522.25 | X99: 475.36 | Y99: 569.53 | Z99: 569.3 | AA99: 530.05 | AB99: 524.51 | AC99: 535.57 | AD99: 535.36 | AE99: 530.26 | AF99: 446.32 | AG99: 413.49 | AH99: 360.99 | AI99: 422.81 | AJ99: 464.53 | AK99: 428.4 | AL99: 359.61 | AM99: -0.1605742297 | AN99: -0.04209730243
A100: C/B | B100: FAIRBANKS | C100: TOTAL | D100: =SUM(D94:D99) -> 14245.8 | E100: 14883.2 | F100: 15250.5 | G100: 15408 | H100: 15406.5 | I100: 15816 | J100: 16131.65 | K100: 16347.8 | L100: 15480.72 | M100: 15324.65 | N100: 15103.29 | O100: 14903.63 | P100: 14688.48 | Q100: 14173.36 | R100: 14335.04 | S100: 13818.88 | T100: 14161.79 | U100: =SUM(U94:U99) -> 13352.96 | V100: =SUM(V94:V99) -> 13398.5 | W100: 13545.1 | X100: 13347.07 | Y100: 13303.65 | Z100: 13285.21 | AA100: 13080.51 | AB100: 12841.36 | AC100: 12895.91 | AD100: 12768.68 | AE100: 12544.15 | AF100: =SUM(AF94:AF99) -> 12116.62 | AG100: 11891.47 | AH100: 9358.5 | AI100: 10572.27 | AJ100: 10881.93 | AK100: 10555.84 | AL100: 10045.01 | AM100: -0.04839311699 | AN100: -0.02532851101
A101: C/B | B101: GALENA | C101: GALENA | D101: 121.4 | E101: 142.3 | F101: 128.45 | G101: 133.1 | H101: 142 | I101: 149.1 | J101: 161 | K101: =110+96 -> 206 | L101: 237 | M101: =122+45 -> 167 | N101: 177 | O101: =90.15+86.35 -> 176.5 | P101: =87+76 -> 163 | Q101: 222.6 | R101: 205.85 | S101: 123.2 | T101: 226.55 | U101: 233.15 | V101: 222.25 | W101: 270.5 | X101: 293.35 | Y101: 294.3 | Z101: 310.45 | AA101: 285.25 | AB101: 300.7 | AC101: 313.95 | AD101: 310.2 | AE101: 316.1 | AF101: 317.25 | AG101: 285.8 | AH101: 141.5 | AI101: 225.31 | AJ101: 268 | AK101: 262.25 | AL101: 268.8 | AM101: 0.02497616778 | AN101: 0.02548955206
A102: C/B | B102: GALENA | C102: TOTAL | D102: =SUM(D101) -> 121.4 | E102: 142.3 | F102: 128.45 | G102: 133.1 | H102: 142 | I102: 149.1 | J102: 161 | K102: 206 | L102: 237 | M102: 167 | N102: 177 | O102: 176.5 | P102: 163 | Q102: 222.6 | R102: 205.85 | S102: 123.2 | T102: 226.55 | U102: =SUM(U101) -> 233.15 | V102: =SUM(V101) -> 222.25 | W102: 270.5 | X102: 293.35 | Y102: 294.3 | Z102: 310.45 | AA102: 285.25 | AB102: 300.7 | AC102: 313.95 | AD102: 310.2 | AE102: 316.1 | AF102: =SUM(AF101) -> 317.25 | AG102: 285.8 | AH102: 141.5 | AI102: 225.31 | AJ102: 268 | AK102: 262.25 | AL102: 268.8 | AM102: 0.02497616778 | AN102: 0.02548955206
A103: C/B | B103: HAINES | C103: HAINES | D103: 380 | E103: 413.8 | F103: 413.4 | G103: 394.05 | H103: 403.15 | I103: 426.9 | J103: 436.4 | K103: 425.4 | L103: 424.75 | M103: =182.5+135.25+67.55 -> 385.3 | N103: =375.15 -> 375.15 | O103: =178.25+128.55+52.4 -> 359.2 | P103: =300.95 -> 300.95 | Q103: =135.89+153.1 -> 288.99 | R103: 265.47 | S103: 256.4 | T103: =171.15+98.25 -> 269.4 | U103: 286.4 | V103: 272.25 | W103: 282.09 | X103: 278.15 | Y103: 285.7 | Z103: 264.05 | AA103: 250.75 | AB103: 258.54 | AC103: 257.31 | AD103: 240.55 | AE103: 252.97 | AF103: 247.35 | AG103: 258.65 | AH103: 201.4 | AI103: 233.97 | AJ103: 244.1 | AK103: 237.75 | AL103: 228.53 | AM103: -0.03878023134 | AN103: -0.0007527200806
A104: C/B | B104: HAINES | C104: MOSQUITO LAKE | D104: 20 | E104: 20.1 | F104: 18.9 | G104: 15 | H104: 10 | I104: 8 | J104: 8.5 | K104: 13 | L104: 9 | M104: 16.4 | N104: 10.5 | O104: 10 | P104: 11 | Q104: 14 | R104: 11.1 | S104: 14 | T104: 10.35 | U104: 14.65 | V104: 18 | W104: 14 | X104: 15 | Y104: 14.45 | Z104: 10 | AA104: 9 | AB104: closed | AC104: closed | AD104: closed | AE104: closed | AF104: closed | AG104: closed | AH104: closed | AI104: closed | AJ104: closed | AK104: closed | AL104: closed | AM104: n/a | AN104: n/a
A105: C/B | B105: HAINES | C105: HOMESHORE | D105: 15 | E105: 14 | F105: closed | G105: closed | H105: closed | I105: closed | J105: closed | K105: closed | L105: closed | M105: closed | N105: closed | O105: closed | P105: closed | Q105: closed | R105: closed | S105: closed | T105: closed | U105: closed | V105: closed | W105: closed | X105: closed | Y105: closed | Z105: closed | AA105: closed | AB105: closed | AC105: closed | AD105: closed | AE105: closed | AF105: closed | AG105: closed | AH105: closed | AI105: closed | AJ105: closed | AK105: closed | AL105: closed | AM105: n/a | AN105: n/a
A106: C/B | B106: HAINES | C106: TOTAL | D106: =SUM(D103:D105) -> 415 | E106: 447.9 | F106: 432.3 | G106: 409.05 | H106: 413.15 | I106: 434.9 | J106: 444.9 | K106: 438.4 | L106: 433.75 | M106: 401.7 | N106: 385.65 | O106: 369.2 | P106: 311.95 | Q106: 302.99 | R106: 276.57 | S106: 270.4 | T106: 279.75 | U106: =SUM(U103:U105) -> 301.05 | V106: =SUM(V103:V105) -> 290.25 | W106: 296.09 | X106: 293.15 | Y106: 300.15 | Z106: 274.05 | AA106: 259.75 | AB106: 258.54 | AC106: 257.31 | AD106: 240.55 | AE106: 252.97 | AF106: =SUM(AF103:AF105) -> 247.35 | AG106: 258.65 | AH106: 201.4 | AI106: 233.97 | AJ106: 244.1 | AK106: 237.75 | AL106: 228.53 | AM106: -0.03878023134 | AN106: -0.0007527200806
A107: C/B | B107: HOONAH | C107: HOONAH | D107: 234 | E107: 230 | F107: 269 | G107: 267 | H107: 259.4 | I107: 273.7 | J107: 271 | K107: 260.15 | L107: 230.85 | M107: 236.75 | N107: 226.9 | O107: 211.3 | P107: 188.4 | Q107: 179.4 | R107: 171.7 | S107: 166.5 | T107: 152.95 | U107: 131.4 | V107: 123.45 | W107: 106.07 | X107: 120.7 | Y107: 113.75 | Z107: 114.3 | AA107: 101.8 | AB107: 112.2 | AC107: 115.45 | AD107: 107.75 | AE107: 117.25 | AF107: 112.95 | AG107: 124.75 | AH107: 128.89 | AI107: 121.65 | AJ107: 111.09 | AK107: 107.1 | AL107: 107.1 | AM107: 0 | AN107: 0.001281936426
A108: C/B | B108: HOONAH | C108: TOTAL | D108: =SUM(D107) -> 234 | E108: 230 | F108: 269 | G108: 267 | H108: 259.4 | I108: 273.7 | J108: 271 | K108: 260.15 | L108: 230.85 | M108: 236.75 | N108: 226.9 | O108: 211.3 | P108: 188.4 | Q108: 179.4 | R108: 171.7 | S108: 166.5 | T108: 152.95 | U108: =SUM(U107) -> 131.4 | V108: =SUM(V107) -> 123.45 | W108: 106.07 | X108: 120.7 | Y108: 113.75 | Z108: 114.3 | AA108: 101.8 | AB108: 112.2 | AC108: 115.45 | AD108: 107.75 | AE108: 117.25 | AF108: =SUM(AF107) -> 112.95 | AG108: 124.75 | AH108: 128.89 | AI108: 121.65 | AJ108: 111.09 | AK108: 107.1 | AL108: 107.1 | AM108: 0 | AN108: 0.001281936426
A109: C/B | B109: HYDABURG | C109: HYDABURG | D109: 108.4 | E109: 119 | F109: 115.8 | G109: 109.2 | H109: 107.5 | I109: 104 | J109: 117 | K109: 123 | L109: 110.5 | M109: 107.85 | N109: 102.85 | O109: 100.1 | P109: 92.2 | Q109: 86.85 | R109: 74.5 | S109: 72.5 | T109: 79.6 | U109: 75.45 | V109: 66.63 | W109: 51.85 | X109: 62.65 | Y109: 44 | Z109: 53.45 | AA109: 66.1 | AB109: 70 | AC109: 81.4 | AD109: 67.65 | AE109: 73.7 | AF109: 81.35 | AG109: 81.35 | AH109: 67.9 | AI109: 64.65 | AJ109: 60 | AK109: 65 | AL109: 69.5 | AM109: 0.06923076923 | AN109: 0.007583618717
A110: C/B | B110: HYDABURG | C110: TOTAL | D110: =SUM(D109) -> 108.4 | E110: 119 | F110: 115.8 | G110: 109.2 | H110: 107.5 | I110: 104 | J110: 117 | K110: 123 | L110: 110.5 | M110: 107.85 | N110: 102.85 | O110: 100.1 | P110: 92.2 | Q110: 86.85 | R110: 74.5 | S110: 72.5 | T110: 79.6 | U110: =SUM(U109) -> 75.45 | V110: =SUM(V109) -> 66.63 | W110: 51.85 | X110: 62.65 | Y110: 44 | Z110: 53.45 | AA110: 66.1 | AB110: 70 | AC110: 81.4 | AD110: 67.65 | AE110: 73.7 | AF110: =SUM(AF109) -> 81.35 | AG110: 81.35 | AH110: 67.9 | AI110: 64.65 | AJ110: 60 | AK110: 65 | AL110: 69.5 | AM110: 0.06923076923 | AN110: 0.007583618717
A111: REAA | B111: IDITAROD | C111: ANVIK | D111: 21 | E111: 23 | F111: 22.95 | G111: 26 | H111: 21.45 | I111: 26.4 | J111: 20.35 | K111: 29 | L111: 27.85 | M111: 26 | N111: 25.95 | O111: 22.18 | P111: 23.75 | Q111: 24 | R111: 27.5 | S111: 24.75 | T111: 24.4 | U111: 17.5 | V111: 17.95 | W111: 21 | X111: 14 | Y111: 17.65 | Z111: 22.11 | AA111: 18.25 | AB111: 12.2 | AC111: 11.98 | AD111: 17 | AE111: 18.6 | AF111: 14 | AG111: 12.65 | AH111: 17.95 | AI111: 15 | AJ111: 12 | AK111: 11 | AL111: 12 | AM111: 0.09090909091 | AN111: -0.02342750833
A112: REAA | B112: IDITAROD | C112: GRAYLING | D112: 56.8 | E112: 62 | F112: 63 | G112: 63.75 | H112: 60.95 | I112: 70.35 | J112: 67.85 | K112: 75 | L112: 68.9 | M112: 70 | N112: 57.85 | O112: 61 | P112: 52 | Q112: 60.1 | R112: 44.4 | S112: 42.25 | T112: 43.65 | U112: 42.8 | V112: 40.95 | W112: 43.05 | X112: 44.3 | Y112: 41.6 | Z112: 34.8 | AA112: 34.1 | AB112: 48 | AC112: 43.95 | AD112: 40.7 | AE112: 45.55 | AF112: 47.5 | AG112: 49 | AH112: 47.5 | AI112: 44 | AJ112: 33.05 | AK112: 37.75 | AL112: 30.9 | AM112: -0.1814569536 | AN112: -0.02485682569
A113: REAA | B113: IDITAROD | C113: HOLY CROSS | D113: 59.1 | E113: 58.65 | F113: 72.35 | G113: 71.05 | H113: 69.35 | I113: 71 | J113: 69.25 | K113: 76.55 | L113: 58.45 | M113: 55.5 | N113: 60 | O113: 62.61 | P113: 56.2 | Q113: 52.4 | R113: 55.25 | S113: 43.54 | T113: 48.2 | U113: 44.35 | V113: 49.9 | W113: 42 | X113: 40.8 | Y113: 45.25 | Z113: 44.45 | AA113: 40 | AB113: 41 | AC113: 37.35 | AD113: 31.5 | AE113: 27.7 | AF113: 27.95 | AG113: 24 | AH113: 23.25 | AI113: 18.5 | AJ113: 24.05 | AK113: 19.5 | AL113: 16.75 | AM113: -0.141025641 | AN113: -0.06483741848
A114: REAA | B114: IDITAROD | C114: LAKE MINCHUMINA | F114: 9 | G114: 8 | H114: 10 | I114: 11 | J114: 13 | K114: 13 | L114: 6 | M114: 2 | N114: 0 | O114: closed | P114: closed | Q114: closed | R114: closed | S114: closed | T114: closed | U114: closed | V114: closed | W114: closed | X114: closed | Y114: closed | Z114: closed | AA114: closed | AB114: closed | AC114: closed | AD114: closed | AE114: closed | AF114: closed | AG114: closed | AH114: closed | AI114: closed | AJ114: closed | AK114: closed | AL114: closed | AM114: n/a | AN114: n/a
A115: REAA | B115: IDITAROD | C115: LIME VILLAGE | D115: 6.975 | E115: 7 | F115: 7.35 | G115: 8.5 | H115: 12 | I115: 7.4 | J115: 17 | K115: 17 | L115: 18.35 | M115: 14 | N115: 13 | O115: 15 | P115: 14.95 | Q115: 12 | R115: 13.85 | S115: 10.25 | T115: 11 | U115: closed | V115: closed | W115: closed | X115: closed | Y115: closed | Z115: closed | AA115: closed | AB115: closed | AC115: closed | AD115: closed | AE115: closed | AF115: closed | AG115: closed | AH115: closed | AI115: closed | AJ115: closed | AK115: closed | AL115: closed | AM115: n/a | AN115: n/a
A116: REAA | B116: IDITAROD | C116: MCGRATH | D116: 149.85 | E116: 167.5 | F116: 161.55 | G116: 142.6 | H116: 148 | I116: 139.7 | J116: 135.91 | K116: 121.9 | L116: 114 | M116: 109 | N116: 103.1 | O116: 92.9 | P116: 86.1 | Q116: 75.9 | R116: 62.63 | S116: 56.97 | T116: 53 | U116: 53.2 | V116: 43.85 | W116: 46.57 | X116: 51.63 | Y116: 58 | Z116: 48.2 | AA116: 59.5 | AB116: 59.15 | AC116: 49.95 | AD116: 49.5 | AE116: 35.6 | AF116: 33 | AG116: 32 | AH116: 32.5 | AI116: 29 | AJ116: 31.5 | AK116: 42 | AL116: 36.4 | AM116: -0.1333333333 | AN116: -0.02375065376
A117: REAA | B117: IDITAROD | C117: NIKOLAI | D117: 18 | E117: 17 | F117: 20 | G117: 16 | H117: 22 | I117: 15 | J117: 15 | K117: 19 | L117: 16 | M117: 13 | N117: 15.5 | O117: 20 | P117: 22 | Q117: 17.05 | R117: 20.85 | S117: 18.25 | T117: 16.25 | U117: 10.25 | V117: 19.85 | W117: 19.7 | X117: 18 | Y117: 11 | Z117: 10 | AA117: 10.75 | AB117: 14.55 | AC117: 15.7 | AD117: 14 | AE117: 11 | AF117: 11.4 | AG117: 14 | AH117: 11 | AI117: 13.2 | AJ117: 14 | AK117: 9 | AL117: 12.2 | AM117: 0.3555555556 | AN117: 0.01186014278
A118: REAA | B118: IDITAROD | C118: SHAGELUK | D118: 30.35 | E118: 44.1 | F118: 43 | G118: 42.75 | H118: 43.05 | I118: 43 | J118: 44 | K118: 45.85 | L118: 39 | M118: 46.4 | N118: 36 | O118: 35 | P118: 33.85 | Q118: 36 | R118: 34.45 | S118: 31 | T118: 34.25 | U118: 19.95 | V118: 12 | W118: 17 | X118: 14.55 | Y118: 11.2 | Z118: 12.25 | AA118: 14.1 | AB118: 15 | AC118: 16 | AD118: 15.8 | AE118: 12.7 | AF118: 22 | AG118: 23 | AH118: 22.05 | AI118: 26.25 | AJ118: 22.1 | AK118: 27.3 | AL118: 29.1 | AM118: 0.06593406593 | AN118: 0.1092300333
A119: REAA | B119: IDITAROD | C119: TAKOTNA | D119: 8 | E119: 6 | F119: 14 | G119: 12.3 | H119: 27.05 | I119: 35.7 | J119: 33.5 | K119: 60.6 | L119: 14 | M119: 16 | N119: 15 | O119: 28 | P119: 21 | Q119: 16 | R119: 14 | S119: 14 | T119: 13 | U119: 14 | V119: 12 | W119: 13.25 | X119: 13 | Y119: 10 | Z119: 10 | AA119: 10 | AB119: 18 | AC119: 16 | AD119: 15.4 | AE119: 21 | AF119: 21 | AG119: 15.4 | AH119: 14 | AI119: 12 | AJ119: 11.3 | AK119: 10 | AL119: 10.5 | AM119: 0.05 | AN119: -0.03252176474
A120: REAA | B120: IDITAROD | C120: TELIDA | D120: 3 | E120: 3 | F120: 5 | G120: 8 | H120: 4 | I120: 3 | J120: closed | K120: closed | L120: closed | M120: closed | N120: closed | O120: closed | P120: closed | Q120: closed | R120: closed | S120: closed | T120: closed | U120: closed | V120: closed | W120: closed | X120: closed | Y120: closed | Z120: closed | AA120: closed | AB120: closed | AC120: closed | AD120: closed | AE120: closed | AF120: closed | AG120: closed | AH120: closed | AI120: closed | AJ120: closed | AK120: closed | AL120: closed | AM120: n/a | AN120: n/a
A121: REAA | B121: IDITAROD | C121: TOTAL | D121: =SUM(D111:D120) -> 353.075 | E121: 388.25 | F121: 418.2 | G121: 398.95 | H121: 417.85 | I121: 422.55 | J121: 415.86 | K121: 457.9 | L121: 362.55 | M121: 351.9 | N121: 326.4 | O121: 336.69 | P121: 309.85 | Q121: 293.45 | R121: 272.93 | S121: 241.01 | T121: 243.75 | U121: =SUM(U111:U120) -> 202.05 | V121: =SUM(V111:V120) -> 196.5 | W121: 202.57 | X121: 196.28 | Y121: 194.7 | Z121: 181.81 | AA121: 186.7 | AB121: 207.9 | AC121: 190.93 | AD121: 183.9 | AE121: 172.15 | AF121: =SUM(AF111:AF120) -> 176.85 | AG121: =SUM(AG111:AG120) -> 170.05 | AH121: =SUM(AH111:AH120) -> 168.25 | AI121: =SUM(AI111:AI120) -> 157.95 | AJ121: 148 | AK121: 156.55 | AL121: 147.85 | AM121: -0.05557329927 | AN121: -0.02595543845
A122: C/B | B122: JUNEAU | C122: JUNEAU | D122: 5124.3 | E122: 5247.3 | F122: 5412.7 | G122: 5394.45 | H122: 5399.75 | I122: 5515.35 | J122: 5586.45 | K122: =3051.24+2611.45 -> 5662.69 | L122: 5632.4 | M122: =5630.94-60-38.15 -> 5532.79 | N122: 5395.93 | O122: 5366.05 | P122: 5380.68 | Q122: 5272.82 | R122: 5253.05 | S122: 5063.2 | T122: 5072.45 | U122: 4892.48 | V122: 4802.29 | W122: 4835.92 | X122: 4797.73 | Y122: 4759.15 | Z122: 4766.73 | AA122: 4649.12 | AB122: 4625.25 | AC122: 4591.76 | AD122: 4641.69 | AE122: 4522.71 | AF122: 4592.58 | AG122: 4570.26 | AH122: 3592.7 | AI122: 4008.25 | AJ122: 4031.89 | AK122: 3898.06 | AL122: 3712.76 | AM122: -0.04753646686 | AN122: -0.02351331823
A123: C/B | B123: JUNEAU | C123: TOTAL | D123: =SUM(D122) -> 5124.3 | E123: 5247.3 | F123: 5412.7 | G123: 5394.45 | H123: 5399.75 | I123: 5515.35 | J123: 5586.45 | K123: 5662.69 | L123: 5632.4 | M123: 5532.79 | N123: 5395.93 | O123: 5366.05 | P123: 5380.68 | Q123: 5272.82 | R123: 5253.05 | S123: 5063.2 | T123: 5072.45 | U123: =SUM(U122) -> 4892.48 | V123: =SUM(V122) -> 4802.29 | W123: 4835.92 | X123: 4797.73 | Y123: 4759.15 | Z123: 4766.73 | AA123: 4649.12 | AB123: 4625.25 | AC123: 4591.76 | AD123: 4641.69 | AE123: 4522.71 | AF123: =SUM(AF122) -> 4592.58 | AG123: 4570.26 | AH123: 3592.7 | AI123: 4008.25 | AJ123: 4031.89 | AK123: 3898.06 | AL123: 3712.76 | AM123: -0.04753646686 | AN123: -0.02351331823
A124: C/B | B124: KAKE | C124: KAKE | D124: 178.7 | E124: 185.05 | F124: 177 | G124: 175.25 | H124: 185 | I124: 191 | J124: 199.9 | K124: 194.4 | L124: 185.8 | M124: 166.7 | N124: 165 | O124: 171.62 | P124: 151.85 | Q124: 155.15 | R124: 141.75 | S124: 116 | T124: 103.55 | U124: 101.45 | V124: 93.35 | W124: 88.5 | X124: 85.4 | Y124: 92.6 | Z124: 105.33 | AA124: 104 | AB124: 109.7 | AC124: 107.65 | AD124: 96 | AE124: 102.6 | AF124: 104 | AG124: 103.25 | AH124: 92.14 | AI124: 103 | AJ124: 102.9 | AK124: 107.5 | AL124: 108.1 | AM124: 0.005581395349 | AN124: 0.01684487716
A125: C/B | B125: KAKE | C125: TOTAL | D125: =SUM(D124) -> 178.7 | E125: 185.05 | F125: 177 | G125: 175.25 | H125: 185 | I125: 191 | J125: 199.9 | K125: 194.4 | L125: 185.8 | M125: 166.7 | N125: 165 | O125: 171.62 | P125: 151.85 | Q125: 155.15 | R125: 141.75 | S125: 116 | T125: 103.55 | U125: =SUM(U124) -> 101.45 | V125: =SUM(V124) -> 93.35 | W125: 88.5 | X125: 85.4 | Y125: 92.6 | Z125: 105.33 | AA125: 104 | AB125: 109.7 | AC125: 107.65 | AD125: 96 | AE125: 102.6 | AF125: =SUM(AF124) -> 104 | AG125: 103.25 | AH125: 92.14 | AI125: 103 | AJ125: 102.9 | AK125: 107.5 | AL125: 108.1 | AM125: 0.005581395349 | AN125: 0.01684487716
A126: REAA | B126: KASHUNAMIUT | C126: CHEVAK | D126: 181.7 | E126: 191.15 | F126: 191.65 | G126: 207.6 | H126: 229.9 | I126: 244 | J126: 246.95 | K126: 269.85 | L126: 279 | M126: 298.2 | N126: 314 | O126: 321.8 | P126: 350.4 | Q126: 362.25 | R126: 354.65 | S126: 330.55 | T126: 339.2 | U126: 325.55 | V126: 312.5 | W126: 301.75 | X126: 305.95 | Y126: 311.65 | Z126: 302.33 | AA126: 316.7 | AB126: 317.15 | AC126: 331.6 | AD126: 342.35 | AE126: 320.6 | AF126: 317.95 | AG126: 302.15 | AH126: 306.85 | AI126: 307.3 | AJ126: 310.9 | AK126: 309.05 | AL126: 305.15 | AM126: -0.01261931726 | AN126: -0.01391546476
A127: REAA | B127: KASHUNAMIUT | C127: TOTAL | D127: =SUM(D126) -> 181.7 | E127: 191.15 | F127: 191.65 | G127: 207.6 | H127: 229.9 | I127: 244 | J127: 246.95 | K127: 269.85 | L127: 279 | M127: 298.2 | N127: 314 | O127: 321.8 | P127: 350.4 | Q127: 362.25 | R127: 354.65 | S127: 330.55 | T127: 339.2 | U127: =SUM(U126) -> 325.55 | V127: =SUM(V126) -> 312.5 | W127: 301.75 | X127: 305.95 | Y127: 311.65 | Z127: 302.33 | AA127: 316.7 | AB127: 317.15 | AC127: 331.6 | AD127: 342.35 | AE127: 320.6 | AF127: =SUM(AF126) -> 317.95 | AG127: 302.15 | AH127: 306.85 | AI127: 307.3 | AJ127: 310.9 | AK127: 309.05 | AL127: 305.15 | AM127: -0.01261931726 | AN127: -0.01391546476
A128: C/B | B128: KENAI PENINSULA | C128: ANCHOR POINT | D128: 211.12 | E128: 211.25 | F128: 213.3 | G128: 230.6 | H128: 249.35 | I128: 262 | J128: 242.75 | K128: 248.9 | L128: 236.85 | M128: homer | N128: homer | O128: homer | P128: homer | Q128: homer | R128: homer | S128: homer | T128: homer | U128: homer | V128: homer | W128: homer | X128: homer | Y128: homer | Z128: homer | AA128: homer | AB128: homer | AC128: homer | AD128: homer | AE128: homer | AF128: homer | AG128: homer | AH128: homer | AI128: homer | AJ128: homer | AK128: homer | AL128: homer | AM128: n/a | AN128: n/a
A129: C/B | B129: KENAI PENINSULA | C129: BELUGA | D129: 3 | G129: 8 | H129: 6 | K129: 36 | L129: closed | M129: closed | N129: closed | O129: closed | P129: closed | Q129: closed | R129: closed | S129: closed | T129: closed | U129: closed | V129: closed | W129: closed | X129: closed | Y129: closed | Z129: closed | AA129: closed | AB129: closed | AC129: closed | AD129: closed | AE129: closed | AF129: closed | AG129: closed | AH129: closed | AI129: closed | AJ129: closed | AK129: closed | AL129: closed | AM129: n/a | AN129: n/a
A130: C/B | B130: KENAI PENINSULA | C130: COOPER LANDING | D130: 30 | E130: 41 | F130: 45.85 | G130: 48.35 | H130: 41.35 | I130: 39.5 | J130: 37 | K130: 37 | L130: 35 | M130: 36.35 | N130: 34.5 | O130: 32.1 | P130: 21.1 | Q130: 13 | R130: 12 | S130: 11 | T130: 10.75 | U130: 11.25 | V130: 11 | W130: 6.25 | X130: 10 | Y130: 10 | Z130: 11.55 | AA130: 17 | AB130: 18.7 | AC130: 14.65 | AD130: 18 | AE130: 15 | AF130: 13.9 | AG130: 13 | AH130: 11 | AI130: 13 | AJ130: 19.25 | AK130: 20 | AL130: 15.9 | AM130: -0.205 | AN130: 0.004744262033
A131: C/B | B131: KENAI PENINSULA | C131: ENGLISH BAY | D131: 60 | E131: 55.95 | F131: 50 | G131: Nanwalek | H131: Nanwalek | I131: Nanwalek | J131: Nanwalek | K131: Nanwalek | L131: Nanwalek | M131: Nanwalek | N131: Nanwalek | O131: Nanwalek | P131: Nanwalek | Q131: Nanwalek | R131: Nanwalek | S131: Nanwalek | T131: Nanwalek | U131: Nanwalek | V131: Nanwalek | W131: Nanwalek | X131: Nanwalek | Y131: Nanwalek | Z131: Nanwalek | AA131: Nanwalek | AB131: Nanwalek | AC131: Nanwalek | AD131: Nanwalek | AE131: Nanwalek | AF131: nanwalek | AG131: nanwalek | AH131: nanwalek | AI131: nanwalek | AJ131: nanwalek | AK131: nanwalek | AL131: nanwalek | AM131: n/a | AN131: n/a
A132: C/B | B132: KENAI PENINSULA | C132: HOMER | D132: =1214.9+D128+D137+D144 -> 1651.67 | E132: =1237.95+E128+E137+E144 -> 1680.2 | F132: =1238.75+F128+F137+F144 -> 1679.7 | G132: =1280.6+G128+G137+G144 -> 1731.55 | H132: =1314.2+H128+H137+H144 -> 1807.35 | I132: =1339.6+I128+I137+I144 -> 1835.25 | J132: =1387.29+J128+J137+J144 -> 1840.19 | K132: =599.8+834+K128+K137+K144 -> 1872.45 | L132: =310.2+221.55+536.75+213.25+L128+L137+L144 -> 1712.35 | M132: =1778.86-M134 -> 1709.11 | N132: 1637.88 | O132: 1545 | P132: 1557.07 | Q132: 1528.95 | R132: 1564.13 | S132: 1523.78 | T132: =120.9+213.8+496.23+122.25+196.43+36.25+223.85+36.7+66 -> 1512.41 | U132: 1468.71 | V132: 1473.57 | W132: 1440.87 | X132: 1439.43 | Y132: 1442.13 | Z132: 1444.62 | AA132: 1436.01 | AB132: 1442.26 | AC132: 1413.12 | AD132: 1495.31 | AE132: 1525.78 | AF132: 1526.7 | AG132: 1462.89 | AH132: 1211.26 | AI132: 1384.49 | AJ132: 1434.28 | AK132: 1421.3 | AL132: 1463.27 | AM132: 0.02952930416 | AN132: 0.0008292106073
A133: C/B | B133: KENAI PENINSULA | C133: HOPE | D133: 23.45 | E133: 30 | F133: 29 | G133: 31.5 | H133: 44.65 | I133: 32.8 | J133: 32 | K133: 20.4 | L133: 25.8 | M133: 17.75 | N133: 15 | O133: 11.95 | P133: 14 | Q133: 18.55 | R133: 14 | S133: 11.2 | T133: 15.15 | U133: 9 | V133: 10.15 | W133: 15.5 | X133: 13 | Y133: 12 | Z133: 16.8 | AA133: 17.25 | AB133: 22 | AC133: 16 | AD133: 17 | AE133: 17 | AF133: 17 | AG133: 16 | AH133: 26.4 | AI133: 19 | AJ133: 20.25 | AK133: 18.5 | AL133: 19.4 | AM133: =IFERROR((AL133-AK133)/AK133,"n/a") -> 0.04864864865 | AN133: =IFERROR(((AL133-AK133)/AK133+(AK133-AJ133)/AJ133+(AJ133-AI133)/AI133+(AI133-AH133)/AH133+(AH133-AG133)/AG133+(AG133-AF133)/AF133+(AF133-AE133)/AE133+(AE133-AD133)/AD133)/8,"n/a") -> 0.04236147619
A134: C/B | B134: KENAI PENINSULA | C134: KACHEMAK | E134: 59 | F134: 56.2 | G134: 63.3 | H134: 55.7 | I134: 54 | J134: 58.35 | K134: 66.5 | L134: 65 | M134: 69.75 | N134: 67 | O134: 64 | P134: 79 | Q134: 73.15 | R134: 81.65 | S134: 88 | T134: 81.75 | U134: 86 | V134: 83 | W134: 82.7 | X134: 84.4 | Y134: 75 | Z134: 64 | AA134: 63 | AB134: 57.75 | AC134: 49 | AD134: 48 | AE134: 46.31 | AF134: 43 | AG134: 37.45 | AH134: 30.2 | AI134: 31 | AJ134: 30 | AK134: 28.75 | AL134: 29.68 | AM134: 0.03234782609 | AN134: -0.0555539048
A135: C/B | B135: KENAI PENINSULA | C135: KASILOF | D135: 262.75 | E135: 280 | F135: 264.6 | G135: 273.75 | H135: 272.5 | I135: 281.95 | J135: 272.76 | K135: 295.7 | L135: 278.65 | M135: soldotna | N135: soldotna | O135: soldotna | P135: soldotna | Q135: soldotna | R135: soldotna | S135: soldotna | T135: soldotna | U135: soldotna | V135: soldotna | W135: soldotna | X135: soldotna | Y135: soldotna | Z135: soldotna | AA135: soldotna | AB135: soldotna | AC135: soldotna | AD135: soldotna | AE135: soldotna | AF135: soldotna | AG135: soldotna | AH135: soldotna | AI135: soldotna | AJ135: soldotna | AK135: soldotna | AL135: soldotna | AM135: n/a | AN135: n/a
A136: C/B | B136: KENAI PENINSULA | C136: KENAI | D136: 1568.33 | E136: 1691.35 | F136: 1736.65 | G136: 1722.55 | H136: 1731.1 | I136: 1767.25 | J136: 1788 | K136: =925.65+831.5 -> 1757.15 | L136: =376.85+413.23+159.45+283.19+512.95+30.05 -> 1775.72 | M136: 1747.53 | N136: 1754.95 | O136: 1718.81 | P136: 1652.71 | Q136: 1606.63 | R136: 1785.71 | S136: 1655.61 | T136: =526.35+387.7+233.4+210.5+86.55+178 -> 1622.5 | U136: 1797.72 | V136: 1839.38 | W136: 1838.86 | X136: 1848.41 | Y136: 1845.21 | Z136: 1869.86 | AA136: 1831.15 | AB136: 1810.34 | AC136: 1825.09 | AD136: 1770.21 | AE136: 1795.92 | AF136: 1817.82 | AG136: 1737.96 | AH136: 1410.61 | AI136: 1664.39 | AJ136: 1722.13 | AK136: 1730.68 | AL136: 1790.59 | AM136: 0.03461645134 | AN136: 0.006076732314
A137: C/B | B137: KENAI PENINSULA | C137: MCNEIL CANYON | D137: 195.9 | E137: 194 | F137: 196.65 | G137: 183.9 | H137: 203.8 | I137: 197.7 | J137: 184.4 | K137: 153.6 | L137: 150.95 | M137: homer | N137: homer | O137: homer | P137: homer | Q137: homer | R137: homer | S137: homer | T137: homer | U137: homer | V137: homer | W137: homer | X137: homer | Y137: homer | Z137: homer | AA137: homer | AB137: homer | AC137: homer | AD137: homer | AE137: homer | AF137: homer | AG137: homer | AH137: homer | AI137: homer | AJ137: homer | AK137: homer | AL137: homer | AM137: n/a | AN137: n/a
A138: C/B | B138: KENAI PENINSULA | C138: MOOSE PASS | D138: 27 | E138: 35.85 | F138: 31.15 | G138: 34 | H138: 35 | I138: 39 | J138: 37 | K138: 37.8 | L138: 34.4 | M138: 42.35 | N138: 40 | O138: 46 | P138: 42.3 | Q138: 35.7 | R138: 34.85 | S138: 31.8 | T138: 28.65 | U138: 28.05 | V138: 29.4 | W138: 15.75 | X138: 15.85 | Y138: 18 | Z138: 17 | AA138: 16.1 | AB138: 13.75 | AC138: 10 | AD138: 11 | AE138: 13.95 | AF138: 17 | AG138: 20.75 | AH138: 18 | AI138: 15 | AJ138: 18.15 | AK138: 23 | AL138: 17 | AM138: -0.2608695652 | AN138: 0.0780699156
A139: C/B | B139: KENAI PENINSULA | C139: NANWALEK | G139: 46 | H139: 45.4 | I139: 53 | J139: 59 | K139: 56.7 | L139: 59 | M139: 53.25 | N139: 48 | O139: 70 | P139: 75.7 | Q139: 63 | R139: 63 | S139: 58 | T139: 56.75 | U139: 62.95 | V139: 70 | W139: 70.85 | X139: 79.75 | Y139: 78.25 | Z139: 80.13 | AA139: 78.8 | AB139: 77.3 | AC139: 77.1 | AD139: 82.75 | AE139: 77.2 | AF139: 75.45 | AG139: 78.28 | AH139: 72.4 | AI139: 83.8 | AJ139: 80.85 | AK139: 81 | AL139: 60 | AM139: -0.2592592593 | AN139: -0.03281160507
A140: C/B | B140: KENAI PENINSULA | C140: NIKISKI | D140: 1044.05 | E140: 1086.95 | F140: 1101.55 | G140: 1118.5 | H140: 1121.8 | I140: 1126.8 | J140: 1137.35 | K140: =624.7+538.7 -> 1163.4 | L140: =323.45+245.6+533.35 -> 1102.4 | M140: =221.6+520.65+306.05 -> 1048.3 | N140: 989.52 | O140: 962.23 | P140: 956.8 | Q140: 876.75 | R140: 816.88 | S140: 768.73 | T140: =395.75+383.35 -> 779.1 | U140: 762.8 | V140: 727.6 | W140: 742.45 | X140: 773.99 | Y140: 744.29 | Z140: 728.96 | AA140: 744.75 | AB140: 755.76 | AC140: 719.44 | AD140: 734.89 | AE140: 711.65 | AF140: 678.68 | AG140: 659.78 | AH140: 439.85 | AI140: 565.99 | AJ140: 549.3 | AK140: 555.7 | AL140: 485.79 | AM140: -0.1258052906 | AN140: -0.03700024543
A141: C/B | B141: KENAI PENINSULA | C141: NIKOLAEVSK | D141: 160.95 | E141: 162.5 | F141: 149.1 | G141: 162.9 | H141: 159.25 | I141: 134.9 | J141: 136.05 | K141: 146.65 | L141: 144.85 | M141: 130.25 | N141: 114.75 | O141: 118.9 | P141: 100.05 | Q141: 89 | R141: 69.35 | S141: 65.5 | T141: 59.95 | U141: 55.45 | V141: 73.3 | W141: 72.5 | X141: 70.75 | Y141: 70.5 | Z141: 71 | AA141: 72.1 | AB141: 64 | AC141: 66 | AD141: 65.5 | AE141: 77.85 | AF141: 78.5 | AG141: 48.75 | AH141: 21 | AI141: 16.25 | AJ141: 29.5 | AK141: 23.65 | AL141: 19 | AM141: -0.1966173362 | AN141: -0.06963011681
A142: C/B | B142: KENAI PENINSULA | C142: NINILCHIK | D142: 159.35 | E142: 162.65 | F142: 179.35 | G142: 194.75 | H142: 201.75 | I142: 223.05 | J142: 243 | K142: 236.65 | L142: 234.3 | M142: 212.35 | N142: 198.63 | O142: 204.44 | P142: 185.45 | Q142: 181.75 | R142: 198.3 | S142: 169.4 | T142: 157.75 | U142: 174.5 | V142: 167 | W142: 169.87 | X142: 185.3 | Y142: 164.65 | Z142: 143.59 | AA142: 139.3 | AB142: 155.9 | AC142: 139.6 | AD142: 123 | AE142: 100.5 | AF142: 108.05 | AG142: 112.3 | AH142: 81.9 | AI142: 99.53 | AJ142: 114.75 | AK142: 109.7 | AL142: 106.83 | AM142: -0.02616226071 | AN142: -0.00514525303
A143: C/B | B143: KENAI PENINSULA | C143: PORT GRAHAM | D143: 34 | E143: 34.9 | F143: 35 | G143: 38 | H143: 36 | I143: 35 | J143: 40 | K143: 37.4 | L143: 43.25 | M143: 36.8 | N143: 29 | O143: 34 | P143: 32 | Q143: 29.1 | R143: 29.45 | S143: 21 | T143: 20 | U143: 25 | V143: 20 | W143: 15 | X143: 20 | Y143: 21.4 | Z143: 19 | AA143: 20 | AB143: 27 | AC143: 26.6 | AD143: 36.5 | AE143: 33 | AF143: 37.15 | AG143: 33.95 | AH143: 30.6 | AI143: 27.7 | AJ143: 27 | AK143: 30 | AL143: 29 | AM143: -0.03333333333 | AN143: -0.0246511075
A144: C/B | B144: KENAI PENINSULA | C144: RAZDOLNA | D144: 29.75 | E144: 37 | F144: 31 | G144: 36.45 | H144: 40 | I144: 35.95 | J144: 25.75 | K144: 36.15 | L144: 42.8 | M144: homer | N144: homer | O144: homer | P144: homer | Q144: homer | R144: homer | S144: homer | T144: homer | U144: homer | V144: homer | W144: homer | X144: homer | Y144: homer | Z144: homer | AA144: homer | AB144: homer | AC144: homer | AD144: homer | AE144: homer | AF144: homer | AG144: homer | AH144: homer | AI144: homer | AJ144: homer | AK144: homer | AL144: homer | AM144: n/a | AN144: n/a
A145: C/B | B145: KENAI PENINSULA | C145: SELDOVIA | D145: 97.45 | E145: 90.5 | F145: 85.1 | G145: 96.6 | H145: 84.95 | I145: 98.05 | J145: 90.65 | K145: 96 | L145: 87.95 | M145: 78.75 | N145: 80.05 | O145: 85.95 | P145: 76.17 | Q145: 72.4 | R145: 62.75 | S145: 71.25 | T145: 66.7 | U145: 65.4 | V145: 61.4 | W145: 46 | X145: 49.2 | Y145: 43.5 | Z145: 40.75 | AA145: 48 | AB145: 40.5 | AC145: 45.65 | AD145: 32 | AE145: 34.47 | AF145: 31.53 | AG145: 32 | AH145: 45 | AI145: 48 | AJ145: 53.4 | AK145: 26.2 | AL145: 24.11 | AM145: -0.07977099237 | AN145: 0.0003855948571
A146: C/B | B146: KENAI PENINSULA | C146: SEWARD | D146: 750.2 | E146: 796.75 | F146: 809.3 | G146: 843.15 | H146: 880.5 | I146: 899.75 | J146: 876.15 | K146: =420.2+433.95 -> 854.15 | L146: =409.9+440.6 -> 850.5 | M146: =410+423.28 -> 833.28 | N146: 807.8 | O146: 767.95 | P146: 760.65 | Q146: 704.2 | R146: 743.35 | S146: 638.6 | T146: =272.15+237.2 -> 509.35 | U146: 566.2 | V146: 549.74 | W146: 550.75 | X146: 530.63 | Y146: 536.33 | Z146: 572.9 | AA146: 570.4 | AB146: 590.75 | AC146: 607.25 | AD146: 597.41 | AE146: 579.23 | AF146: 560.59 | AG146: 566.23 | AH146: 452.8 | AI146: 484.34 | AJ146: 479.78 | AK146: 485.27 | AL146: 467.84 | AM146: -0.03591814866 | AN146: -0.02713886801
A147: C/B | B147: KENAI PENINSULA | C147: SOLDOTNA | D147: =2901.2+D148+D135 -> 3453.8 | E147: =2819.8+E148+E135 -> 3413.75 | F147: =2918.2+F148+F135 -> 3495.55 | G147: =2940.75+G148+G135 -> 3569 | H147: =3086.1+H148+H135 -> 3744.95 | I147: =3100.6+I148+I135 -> 3764.9 | J147: =3184.36+J148+J135 -> 3803.07 | K147: =1325.83+1895.25+K148+K135 -> 3842.23 | L147: =422.85+420.75+631.75+383.25+576.25+581.4+L148+L135 -> 3607.15 | M147: 3483.56 | N147: 3370.39 | O147: 3382.67 | P147: 3269.71 | Q147: 3171.97 | R147: 3214.27 | S147: 3210.56 | T147: =453.1+385.85+488.37+277.93+572.4+486+183.4+170.1+161 -> 3178.15 | U147: 3077 | V147: 3027.83 | W147: 2924.01 | X147: 2820.47 | Y147: 2881.37 | Z147: 2827.44 | AA147: 2808.45 | AB147: 2904.27 | AC147: 2898.77 | AD147: 2859.9 | AE147: 2823.78 | AF147: 2763.04 | AG147: 2755.22 | AH147: 2022.59 | AI147: 2522.87 | AJ147: 2581.14 | AK147: 2496.56 | AL147: 2451.99 | AM147: -0.01785256513 | AN147: -0.01038180868
A148: C/B | B148: KENAI PENINSULA | C148: STERLING | D148: 289.85 | E148: 313.95 | F148: 312.75 | G148: 354.5 | H148: 386.35 | I148: 382.35 | J148: 345.95 | K148: 325.45 | L148: 312.25 | M148: soldotna | N148: soldotna | O148: soldotna | P148: soldotna | Q148: soldotna | R148: soldotna | S148: soldotna | T148: soldotna | U148: soldotna | V148: soldotna | W148: soldotna | X148: soldotna | Y148: soldotna | Z148: soldotna | AA148: soldotna | AB148: soldotna | AC148: soldotna | AD148: soldotna | AE148: soldotna | AF148: soldotna | AG148: soldotna | AH148: soldotna | AI148: soldotna | AJ148: soldotna | AK148: soldotna | AL148: soldotna | AM148: n/a | AN148: n/a
A149: C/B | B149: KENAI PENINSULA | C149: TYONEK | D149: 42 | E149: 42.4 | F149: 30.45 | G149: 34.05 | H149: 39.6 | I149: 43 | J149: 37.45 | K149: 42.11 | L149: 40.3 | M149: 50 | N149: 44.9 | O149: 44.25 | P149: 42.75 | Q149: 39.6 | R149: 42 | S149: 50 | T149: 44.75 | U149: 31.8 | V149: 36.3 | W149: 30 | X149: 34.5 | Y149: 38.65 | Z149: 39.25 | AA149: 35.7 | AB149: 31.5 | AC149: 39 | AD149: 29 | AE149: 28.25 | AF149: 30.4 | AG149: 21 | AH149: 23.15 | AI149: 25 | AJ149: 26.8 | AK149: 17 | AL149: 21.5 | AM149: 0.2647058824 | AN149: -0.01320470009
A150: C/B | B150: KENAI PENINSULA | C150: FRITZ CREEK | D150: 51.6 | E150: 65.55 | F150: 75.05 | G150: 103.85 | H150: 108.65 | I150: 134.45 | J150: 126.7 | K150: 111.25 | L150: 108.5 | M150: 135.25 | N150: 138.3 | O150: 135.55 | P150: 137 | Q150: 137 | R150: 129.75 | S150: 126.35 | T150: 127.1 | U150: 116 | V150: 117.5 | W150: 99.5 | X150: 96.45 | Y150: 102.45 | Z150: 98.78 | AA150: 103.75 | AB150: 111.1 | AC150: 104.25 | AD150: 99.8 | AE150: 97 | AF150: 101 | AG150: 111 | AH150: 105.4 | AI150: 118 | AJ150: 109 | AK150: 120.45 | AL150: 136.5 | AM150: 0.1332503113 | AN150: 0.04291375502
A151: C/B | B151: KENAI PENINSULA | C151: WINDY BAY | D151: 12.05 | E151: closed | F151: closed | G151: closed | H151: closed | I151: closed | J151: closed | K151: closed | L151: closed | M151: closed | N151: closed | O151: closed | P151: closed | Q151: closed | R151: closed | S151: closed | T151: closed | U151: closed | V151: closed | W151: closed | X151: closed | Y151: closed | Z151: closed | AA151: closed | AB151: closed | AC151: closed | AD151: closed | AE151: closed | AF151: closed | AG151: closed | AH151: closed | AI151: closed | AJ151: closed | AK151: closed | AL151: closed | AM151: n/a | AN151: n/a
A152: C/B | B152: KENAI PENINSULA | C152: TOTAL | D152: =SUM(D128:D151) -> 10158.27 | E152: =SUM(E128:E151) -> 10485.5 | F152: 10607.3 | G152: 10925.25 | H152: 11296 | I152: 11440.65 | J152: 11413.57 | K152: 11473.64 | L152: 10947.97 | M152: 9684.63 | N152: 9370.67 | O152: 9223.8 | P152: 9002.46 | Q152: 8640.75 | R152: 8861.44 | S152: 8500.78 | T152: 8270.81 | U152: 8337.83 | V152: 8297.17 | W152: 8120.86 | X152: 8072.13 | Y152: 8083.73 | Z152: 8045.63 | AA152: 8001.76 | AB152: 8122.88 | AC152: 8051.52 | AD152: 8020.27 | AE152: 7976.89 | AF152: =SUM(AF128:AF151) -> 7899.81 | AG152: 7706.56 | AH152: 6002.16 | AI152: 7118.36 | AJ152: 7295.58 | AK152: 7187.76 | AL152: 7138.4 | AM152: -0.006867229846 | AN152: -0.008935003153
A153: C/B | B153: KETCHIKAN | C153: KETCHIKAN | D153: 2693.25 | E153: 2663.5 | F153: 2690.1 | G153: 2735.38 | H153: 2728.93 | I153: 2850.4 | J153: 2856.25 | K153: =1464.7+1266.4 -> 2731.1 | L153: 2396.55 | M153: 2449.1 | N153: 2326.13 | O153: 2259.68 | P153: 2249.55 | Q153: 1988.47 | R153: 2281.6 | S153: 2088.42 | T153: 2225.3 | U153: 2067.7 | V153: 2059.63 | W153: 2088.18 | X153: 2071.16 | Y153: 2092.1 | Z153: 2091.65 | AA153: 2114.28 | AB153: 2143.7 | AC153: 2166.62 | AD153: 2228.24 | AE153: 2227.18 | AF153: 2180.45 | AG153: 2155.84 | AH153: 1905.27 | AI153: 2030.75 | AJ153: 1964.23 | AK153: 1917.17 | AL153: 1891.45 | AM153: -0.01341560738 | AN153: -0.01915544795
A154: C/B | B154: KETCHIKAN | C154: TOTAL | D154: =SUM(D153) -> 2693.25 | E154: =SUM(E153) -> 2663.5 | F154: 2690.1 | G154: 2735.38 | H154: 2728.93 | I154: 2850.4 | J154: 2856.25 | K154: 2731.1 | L154: 2396.55 | M154: 2449.1 | N154: 2326.13 | O154: 2259.68 | P154: 2249.55 | Q154: 1988.47 | R154: 2281.6 | S154: 2088.42 | T154: 2225.3 | U154: 2067.7 | V154: 2059.63 | W154: 2088.18 | X154: 2071.16 | Y154: 2092.1 | Z154: 2091.65 | AA154: 2114.28 | AB154: 2143.7 | AC154: 2166.62 | AD154: 2228.24 | AE154: 2227.18 | AF154: =SUM(AF153) -> 2180.45 | AG154: 2155.84 | AH154: 1905.27 | AI154: 2030.75 | AJ154: 1964.23 | AK154: 1917.17 | AL154: 1891.45 | AM154: -0.01341560738 | AN154: -0.01915544795
A155: C/B | B155: KLAWOCK | C155: KLAWOCK | D155: 201.9 | E155: 211.85 | F155: 202 | G155: 210 | H155: 206.95 | I155: 220.15 | J155: 210.3 | K155: 220.85 | L155: 196 | M155: 205 | N155: 194.9 | O155: 174 | P155: 158.9 | Q155: 147.68 | R155: 159.6 | S155: 135.6 | T155: 140.45 | U155: 135.5 | V155: 125.1 | W155: 136.55 | X155: 136.8 | Y155: 135.85 | Z155: 130.5 | AA155: 136.35 | AB155: 122.95 | AC155: 114.55 | AD155: 128.15 | AE155: 125.5 | AF155: 114.65 | AG155: 128.3 | AH155: 116.5 | AI155: 119.45 | AJ155: 123.9 | AK155: 133 | AL155: 126.35 | AM155: -0.05 | AN155: 0.0007469104954
A156: C/B | B156: KLAWOCK | C156: TOTAL | D156: =SUM(D155) -> 201.9 | E156: =SUM(E155) -> 211.85 | F156: 202 | G156: 210 | H156: 206.95 | I156: 220.15 | J156: 210.3 | K156: 220.85 | L156: 196 | M156: 205 | N156: 194.9 | O156: 174 | P156: 158.9 | Q156: 147.68 | R156: 159.6 | S156: 135.6 | T156: 140.45 | U156: 135.5 | V156: 125.1 | W156: 136.55 | X156: 136.8 | Y156: 135.85 | Z156: 130.5 | AA156: 136.35 | AB156: 122.95 | AC156: 114.55 | AD156: 128.15 | AE156: 125.5 | AF156: =SUM(AF155) -> 114.65 | AG156: 128.3 | AH156: 116.5 | AI156: 119.45 | AJ156: 123.9 | AK156: 133 | AL156: 126.35 | AM156: -0.05 | AN156: 0.0007469104954
A157: C/B | B157: KODIAK ISLAND | C157: AKHIOK | D157: 25.8 | E157: 26.75 | F157: 22.9 | G157: 30.38 | H157: 20.5 | I157: 21.1 | J157: 20 | K157: 32.85 | L157: 31.2 | M157: 18.5 | N157: 14 | O157: 14 | P157: 16.45 | Q157: 16.45 | R157: 16 | S157: 15 | T157: 11 | U157: 14 | V157: 16 | W157: 18 | X157: 14.8 | Y157: 17 | Z157: 19.25 | AA157: 22 | AB157: 26 | AC157: 23.8 | AD157: 27 | AE157: 19 | AF157: 13.9 | AG157: 16 | AH157: 11 | AI157: 14 | AJ157: 12.25 | AK157: 14 | AL157: 13 | AM157: -0.07142857143 | AN157: -0.06337279601
A158: C/B | B158: KODIAK ISLAND | C158: BIG SANDY LAKE | D158: 5.7 | E158: 12.05 | F158: 8.3 | G158: 12 | H158: 14.9 | I158: 22.5 | J158: 19 | K158: 21 | L158: 14.1 | M158: 16 | N158: closed | O158: closed | P158: closed | Q158: closed | R158: closed | S158: closed | T158: closed | U158: closed | V158: closed | W158: closed | X158: closed | Y158: closed | Z158: closed | AA158: closed | AB158: closed | AC158: closed | AD158: closed | AE158: closed | AF158: closed | AG158: closed | AH158: closed | AI158: closed | AJ158: closed | AK158: closed | AL158: closed | AM158: n/a | AN158: n/a
A159: C/B | B159: KODIAK ISLAND | C159: CHINIAK | D159: 30.5 | E159: 29.95 | F159: 28.35 | G159: 33.2 | H159: 32.8 | I159: 30.63 | J159: 23.31 | K159: 25.5 | L159: 24.55 | M159: 20.5 | N159: 22 | O159: 18 | P159: 17 | Q159: 12 | R159: 11 | S159: 12.2 | T159: 13.3 | U159: 11.4 | V159: closed | W159: closed | X159: 10 | Y159: 15 | Z159: 12 | AA159: 11.3 | AB159: 13 | AC159: 21 | AD159: 25.85 | AE159: 18.2 | AF159: 23 | AG159: 19 | AH159: 19.1 | AI159: 17 | AJ159: 19.65 | AK159: 19 | AL159: 16 | AM159: -0.1578947368 | AN159: -0.04323632932
A160: C/B | B160: KODIAK ISLAND | C160: DANGER BAY | D160: 17.5 | E160: 13.18 | F160: 16 | G160: 20 | H160: 13.4 | I160: 18.9 | J160: 19.6 | K160: 15.65 | L160: 0 | N160: 10 | O160: 10.1 | P160: 10 | Q160: 10.25 | R160: 3.15 | S160: closed | T160: closed | U160: 12 | V160: 11.3 | W160: 10 | X160: 10.6 | Y160: 13 | Z160: closed | AA160: closed | AB160: closed | AC160: 14 | AD160: 10 | AE160: closed | AF160: closed | AG160: closed | AH160: closed | AI160: closed | AJ160: closed | AK160: closed | AL160: closed | AM160: n/a | AN160: n/a
A161: C/B | B161: KODIAK ISLAND | C161: KARLUK | D161: 22 | E161: 18 | F161: 16.48 | G161: 13 | H161: 7.9 | I161: 14.5 | J161: 13 | K161: 9.5 | L161: 7 | M161: 0 | N161: 10 | O161: 10 | P161: 0 | S161: 10.95 | T161: 11.5 | U161: 13 | V161: 12 | W161: 13 | X161: 15 | Y161: 16 | Z161: 12 | AA161: 11 | AB161: 10 | AC161: 7 | AD161: 10 | AE161: 9 | AF161: 7 | AG161: closed | AH161: closed | AI161: closed | AJ161: closed | AK161: closed | AL161: closed | AM161: n/a | AN161: n/a
A162: C/B | B162: KODIAK ISLAND | C162: KODIAK | D162: 2127.43 | E162: 2225.2 | F162: 2261.65 | G162: 2428.63 | H162: 2392.05 | I162: 2543.13 | J162: 2550.1 | K162: =1409.85+1119.15 -> 2529 | L162: =431.85+261.1+273.2+375.05+364.19+725.7 -> 2431.09 | M162: 2483.75 | N162: 2513 | O162: 2550.74 | P162: 2501.5 | Q162: 2420.58 | R162: =(339.05+826.3+375.15+291.7+299.05+289.2) -> 2420.45 | S162: 2437.82 | T162: =318+818.4+344.55+265.25+303.85+317.47 -> 2367.52 | U162: 2395.35 | V162: 2349.84 | W162: 2338.04 | X162: 2305.62 | Y162: 2239.53 | Z162: 2244.45 | AA162: 2238.54 | AB162: 2190.61 | AC162: 2144.76 | AD162: 2109.97 | AE162: 2094.43 | AF162: 2094 | AG162: 2071.91 | AH162: 1926.58 | AI162: 1939.66 | AJ162: 1932.47 | AK162: 1848.12 | AL162: 1758.3 | AM162: -0.04860074021 | AN162: -0.02217871011
A163: C/B | B163: KODIAK ISLAND | C163: LARSEN BAY | D163: 21.65 | E163: 28.1 | F163: 32.7 | G163: 21.8 | H163: 26.4 | I163: 19.75 | J163: 17.65 | K163: 34.5 | L163: 23.75 | M163: 18.8 | N163: 17 | O163: 24 | P163: 24.2 | Q163: 15 | R163: 18.5 | S163: 17.5 | T163: 17 | U163: 21 | V163: 13 | W163: 11 | X163: 15.75 | Y163: 11 | Z163: 11.65 | AA163: 14 | AB163: 16.85 | AC163: 15 | AD163: 16 | AE163: 13.75 | AF163: closed | AG163: closed | AH163: closed | AI163: closed | AJ163: closed | AK163: closed | AL163: closed | AM163: n/a | AN163: n/a
A164: C/B | B164: KODIAK ISLAND | C164: OLD HARBOR | D164: 64.3 | E164: 77.35 | F164: 78.4 | G164: 86.38 | H164: 91.4 | I164: 91.15 | J164: 94.45 | K164: 83.15 | L164: 70.9 | M164: 67.75 | N164: 61 | O164: 64 | P164: 62.45 | Q164: 57.3 | R164: 55.3 | S164: 58.75 | T164: 55 | U164: 50 | V164: 45 | W164: 45.85 | X164: 42.45 | Y164: 37.5 | Z164: 34.3 | AA164: 31.1 | AB164: 31.35 | AC164: 34.65 | AD164: 30.25 | AE164: 27.5 | AF164: 29.5 | AG164: 23 | AH164: 28.35 | AI164: 32 | AJ164: 27.2 | AK164: 36.5 | AL164: 38.3 | AM164: 0.04931506849 | AN164: 0.04550781538
A165: C/B | B165: KODIAK ISLAND | C165: OUZINKIE | D165: 36.75 | E165: 41 | F165: 41.05 | G165: 42.5 | H165: 44.5 | I165: 46.1 | J165: 42.2 | K165: 42 | L165: 53 | M165: 49 | N165: 50.85 | O165: 51 | P165: 50.75 | Q165: 45.3 | R165: 53 | S165: 44 | T165: 44 | U165: 46.4 | V165: 34.2 | W165: 30.75 | X165: 29 | Y165: 33.55 | Z165: 43 | AA165: 33 | AB165: 33.8 | AC165: 29.45 | AD165: 19 | AE165: 20 | AF165: 19 | AG165: 16 | AH165: 15.55 | AI165: 15 | AJ165: 13.8 | AK165: 13 | AL165: 16 | AM165: 0.2307692308 | AN165: -0.01574496457
A166: C/B | B166: KODIAK ISLAND | C166: PORT LIONS | D166: 52.25 | E166: 53.5 | F166: 58.1 | G166: 59.93 | H166: 67.6 | I166: 64 | J166: 62.7 | K166: 58.15 | L166: 62.75 | M166: 58 | N166: 44.5 | O166: 43 | P166: 48 | Q166: 44 | R166: 47 | S166: 39.25 | T166: 35 | U166: 38 | V166: 32 | W166: 35.45 | X166: 36 | Y166: 26 | Z166: 23.05 | AA166: 20.45 | AB166: 20 | AC166: 18.5 | AD166: 12 | AE166: 6.25 | AF166: 10.3 | AG166: 12 | AH166: 15 | AI166: 14 | AJ166: 17.8 | AK166: 19.9 | AL166: 24.5 | AM166: 0.2311557789 | AN166: 0.1422221361
A167: C/B | B167: KODIAK ISLAND | C167: TOTAL | D167: =SUM(D157:D166) -> 2403.88 | E167: =SUM(E157:E166) -> 2525.08 | F167: 2563.93 | G167: 2747.82 | H167: 2711.45 | I167: 2871.76 | J167: 2862.01 | K167: 2851.3 | L167: 2718.34 | M167: 2732.3 | N167: 2742.35 | O167: 2784.84 | P167: 2730.35 | Q167: 2620.88 | R167: 2624.4 | S167: 2635.47 | T167: 2554.32 | U167: 2601.15 | V167: 2513.34 | W167: 2502.09 | X167: 2479.22 | Y167: 2408.58 | Z167: 2399.7 | AA167: 2381.39 | AB167: 2341.61 | AC167: 2308.16 | AD167: 2260.07 | AE167: 2208.13 | AF167: =SUM(AF157:AF166) -> 2196.7 | AG167: 2157.91 | AH167: 2015.58 | AI167: 2031.66 | AJ167: 2023.17 | AK167: =SUM(AK157:AK166) -> 1950.52 | AL167: =SUM(AL157:AL166) -> 1866.1 | AM167: -0.04328076615 | AN167: -0.02339553943
A168: REAA | B168: KUSPUK | C168: ANIAK | D168: 189.6 | E168: 184.3 | F168: 180 | G168: 168.95 | H168: 176.2 | I168: 185.85 | J168: 189.05 | K168: 173.25 | L168: =78.25+9+23+64.05 -> 174.3 | M168: =59.9+33+85 -> 177.9 | N168: 173.35 | O168: =61.4+32+54.75 -> 148.15 | P168: =37.5+34.95+59.55 -> 132 | Q168: =60.45+74.95 -> 135.4 | R168: =(56.7+71.75) -> 128.45 | S168: 138.1 | T168: =56+72 -> 128 | U168: 119.35 | V168: 112.5 | W168: 112.75 | X168: 122.2 | Y168: 129.2 | Z168: 129.25 | AA168: 122.95 | AB168: 128.4 | AC168: 136.05 | AD168: 139.45 | AE168: 126.6 | AF168: 105.55 | AG168: 134.7 | AH168: 114.4 | AI168: 114.55 | AJ168: 88.55 | AK168: 89.35 | AL168: 85.15 | AM168: -0.04700615557 | AN168: -0.04957349112
A169: REAA | B169: KUSPUK | C169: CHUATHBALUK | D169: 38.15 | E169: 34.05 | F169: 31.35 | G169: 35 | H169: 35.25 | I169: 38.25 | J169: 33.65 | K169: 38.65 | L169: 34.45 | M169: 40.5 | N169: 38.8 | O169: 35 | P169: 32.25 | Q169: 33.55 | R169: 37 | S169: 32.25 | T169: 29.25 | U169: 31 | V169: 31 | W169: 27.4 | X169: 31.75 | Y169: 32.2 | Z169: 22.65 | AA169: 28.05 | AB169: 34 | AC169: 22 | AD169: 19 | AE169: 18 | AF169: 18.25 | AG169: 21.1 | AH169: 22 | AI169: 23.95 | AJ169: 23.55 | AK169: 21 | AL169: 18 | AM169: -0.1428571429 | AN169: -0.00239084668
A170: REAA | B170: KUSPUK | C170: CROOKED CREEK | D170: 22.7 | E170: 24.95 | F170: 28.85 | G170: 31.6 | H170: 37.25 | I170: 34.85 | J170: 42.7 | K170: 39.25 | L170: 43.55 | M170: 44.25 | N170: 37.6 | O170: 35.25 | P170: 49 | Q170: 49.35 | R170: 45.1 | S170: 45.4 | T170: 42.4 | U170: 41 | V170: 39.5 | W170: 33.25 | X170: 33.8 | Y170: 25.6 | Z170: 17.6 | AA170: 20 | AB170: 15 | AC170: 20 | AD170: 18.2 | AE170: 22.2 | AF170: 17 | AG170: 18.5 | AH170: 27 | AI170: 25.3 | AJ170: 23.65 | AK170: 21.5 | AL170: 24.2 | AM170: 0.1255813953 | AN170: 0.05496658616
A171: REAA | B171: KUSPUK | C171: RED DEVIL | D171: 8 | E171: 15 | F171: 13.25 | G171: 25.75 | H171: 15.05 | I171: 17.9 | J171: 13 | K171: 11.5 | L171: 19.55 | M171: 15.4 | N171: 10 | O171: 14 | P171: 14.15 | Q171: 11.75 | R171: 10 | S171: 10.8 | T171: 15 | U171: 13 | V171: 5 | W171: closed | X171: closed | Y171: closed | Z171: closed | AA171: closed | AB171: closed | AC171: closed | AD171: closed | AE171: closed | AF171: closed | AG171: closed | AH171: closed | AI171: closed | AJ171: closed | AK171: closed | AL171: closed | AM171: n/a | AN171: n/a
A172: REAA | B172: KUSPUK | C172: SLEETMUTE | D172: 15.1 | E172: 25.75 | F172: 22.25 | G172: 22.25 | H172: 21.25 | I172: 28.7 | J172: 23.3 | K172: 17.4 | L172: 22.5 | M172: 23.4 | N172: 19.8 | O172: 23 | P172: 25 | Q172: 15.25 | R172: 21.5 | S172: 16 | T172: 18.1 | U172: 17.45 | V172: 12 | W172: 13 | X172: 15.8 | Y172: 15 | Z172: 18.25 | AA172: 14 | AB172: 17 | AC172: 14.85 | AD172: 10.6 | AE172: 17 | AF172: 12 | AG172: 16.4 | AH172: 18 | AI172: 14.35 | AJ172: 13 | AK172: 17.5 | AL172: 17 | AM172: -0.02857142857 | AN172: 0.09932644561
A173: REAA | B173: KUSPUK | C173: STONY RIVER | D173: 14.3 | E173: 17.8 | F173: 14.3 | G173: 14.5 | H173: 11.15 | I173: 16.05 | J173: 17.25 | K173: 13.6 | L173: 12.75 | M173: 17.1 | N173: 11.4 | O173: 11 | P173: 16 | Q173: 15.2 | R173: 14.4 | S173: 17.15 | T173: 13 | U173: 23.55 | V173: 19 | W173: 20 | X173: 18.95 | Y173: 10 | Z173: 7.85 | AA173: 6.35 | AB173: 14 | AC173: 13 | AD173: 15.5 | AE173: 14 | AF173: 9 | AG173: 14 | AH173: 14 | AI173: 14.7 | AJ173: 11 | AK173: 10.45 | AL173: 0 | AM173: -1 | AN173: -0.1437577719
A174: REAA | B174: KUSPUK | C174: UPPER KALSKAG | D174: 73.95 | E174: 52.6 | F174: 87.45 | G174: 95.2 | H174: 95 | I174: 91 | J174: 84.15 | K174: 102 | L174: =70.19+27 -> 97.19 | M174: L. kalskag | N174: L. kalskag | O174: L. kalskag | P174: L. kalskag | Q174: L. kalskag | R174: L. kalskag | S174: L. kalskag | T174: L. kalskag | U174: L. kalskag | V174: L. kalskag | W174: L.Kalskag | X174: L.Kalskag | Y174: L.Kalskag | Z174: L.Kalskag | AA174: 141.75 | AB174: 137.5 | AC174: 141.45 | AD174: 137.8 | AE174: 157.25 | AF174: 145 | AG174: 157.45 | AH174: 155.35 | AI174: 153 | AJ174: 141.1 | AK174: 145.3 | AL174: 135.5 | AM174: -0.06744666208 | AN174: 0.0006480263849
A175: REAA | B175: KUSPUK | C175: LOWER KALSKAG | D175: =65+D174 -> 138.95 | E175: =59+E174 -> 111.6 | F175: =50.3+F174 -> 137.75 | G175: =50.5+G174 -> 145.7 | H175: =53.15+H174 -> 148.15 | I175: =55.75+I174 -> 146.75 | J175: =70.6+J174 -> 154.75 | K175: =75.38+K174 -> 177.38 | L175: =70+L174 -> 167.19 | M175: =64.1+31+80.2 -> 175.3 | N175: 179.2 | O175: =55.1+32.5+79 -> 166.6 | P175: =56.05+17+85.25 -> 158.3 | Q175: =86.6+27+50 -> 163.6 | R175: =(84.45+12+61.15) -> 157.6 | S175: 155.3 | T175: =72.95+11.75+66.15 -> 150.85 | U175: 138.05 | V175: 121.65 | W175: 134.5 | X175: 126.05 | Y175: 133.5 | Z175: 139.8 | AA175: U.Kalskag | AB175: U.Kalskag | AC175: U.Kalskag | AD175: U.Kalskag | AE175: U.Kalskag | AF175: U.Kalskag | AG175: U.Kalskag | AH175: U.Kalskag | AI175: U.Kalskag | AJ175: U.Kalskag | AK175: U. Kalskag | AL175: U. Kalskag | AM175: n/a | AN175: n/a
A176: REAA | B176: KUSPUK | C176: TOTAL | D176: =SUM(D168:D175) -> 500.75 | E176: =SUM(E168:E175) -> 466.05 | F176: 515.2 | G176: 538.95 | H176: 539.3 | I176: 559.35 | J176: 557.85 | K176: 573.03 | L176: 571.48 | M176: 493.85 | N176: 470.15 | O176: 433 | P176: 426.7 | Q176: 424.1 | R176: 414.05 | S176: 415 | T176: 396.6 | U176: 383.4 | V176: 340.65 | W176: 340.9 | X176: 348.55 | Y176: 345.5 | Z176: 335.4 | AA176: 333.1 | AB176: 345.9 | AC176: 347.35 | AD176: 340.55 | AE176: 355.05 | AF176: =SUM(AF168:AF175) -> 306.8 | AG176: 362.15 | AH176: 350.75 | AI176: 345.85 | AJ176: 300.85 | AK176: 305.1 | AL176: 279.85 | AM176: -0.0827597509 | AN176: -0.01963794169
A177: C/B | B177: LAKE & PENINSULA | C177: CHIGNIK BAY | D177: 34.45 | E177: 39.55 | F177: 31.85 | G177: 32.25 | H177: 21.3 | I177: 21.75 | J177: 29.5 | K177: 17 | L177: 18.05 | M177: 14.55 | N177: 11.2 | O177: 11.1 | P177: 18.4 | Q177: 14.5 | R177: 16.5 | S177: 15 | T177: 11.5 | U177: 11 | V177: 12 | W177: 15 | X177: 18.2 | Y177: 14.14 | Z177: 10.75 | AA177: closed | AB177: 15.6 | AC177: 14 | AD177: 15 | AE177: 12.5 | AF177: 13.4 | AG177: 10 | AH177: 12 | AI177: 10.45 | AJ177: 6 | AK177: closed | AL177: closed | AM177: n/a | AN177: n/a
A178: C/B | B178: LAKE & PENINSULA | C178: CHIGNIK LAGOON | D178: 15.3 | E178: 19.95 | F178: 27.85 | G178: 25.6 | H178: 27.75 | I178: 33.9 | J178: 35.9 | K178: 30 | L178: 37.6 | M178: 23.5 | N178: 28.5 | O178: 26.6 | P178: 22 | Q178: 19 | R178: 19.05 | S178: 13 | T178: 11.3 | U178: 15.75 | V178: 15.68 | W178: 15 | X178: 14.6 | Y178: 11 | Z178: 11.95 | AA178: 11 | AB178: 10 | AC178: 11 | AD178: 10 | AE178: 10.6 | AF178: 10.55 | AG178: 12 | AH178: 13 | AI178: 15.95 | AJ178: 14.25 | AK178: 17.1 | AL178: 14 | AM178: -0.1812865497 | AN178: 0.0518888207
A179: C/B | B179: LAKE & PENINSULA | C179: CHIGNIK LAKE | D179: 32.3 | E179: 36.2 | F179: 43 | G179: 55 | H179: 53 | I179: 54.75 | J179: 49.25 | K179: 46.75 | L179: 50.5 | M179: 44 | N179: 41.9 | O179: 41 | P179: 38 | Q179: 35.8 | R179: 31.65 | S179: 33.95 | T179: 36.2 | U179: 28.2 | V179: 23.3 | W179: 18.05 | X179: 19.6 | Y179: 21.65 | Z179: 15.95 | AA179: 17.35 | AB179: 15.4 | AC179: 11.5 | AD179: 19.08 | AE179: 15.5 | AF179: 10.6 | AG179: 11.85 | AH179: 13.55 | AI179: 13.65 | AJ179: 16 | AK179: 20 | AL179: 22 | AM179: 0.1 | AN179: 0.0358957038
A180: C/B | B180: LAKE & PENINSULA | C180: EGEGIK | D180: 17.15 | E180: 25 | F180: 18 | G180: 25 | H180: 26 | I180: 18.55 | J180: 17 | K180: 20.85 | L180: 17.45 | M180: 22 | N180: 17.25 | O180: 12.75 | P180: 10 | Q180: 11 | R180: 13.7 | S180: 11.25 | T180: 10.5 | U180: 10 | V180: 12 | W180: 12 | X180: 10 | Y180: 10 | Z180: 14.25 | AA180: 11.65 | AB180: 10.15 | AC180: closed | AD180: closed | AE180: closed | AF180: closed | AG180: closed | AH180: closed | AI180: closed | AJ180: closed | AK180: closed | AL180: closed | AM180: n/a | AN180: n/a
A181: C/B | B181: LAKE & PENINSULA | C181: IGIUGIG | D181: 5 | E181: 6 | F181: 8 | G181: 11 | H181: 13 | I181: 14 | J181: 15 | K181: 16 | L181: 16 | M181: 13.5 | N181: 15 | O181: 14 | P181: 14.5 | Q181: 13 | R181: 15 | S181: 15.15 | T181: 16.95 | U181: 12 | V181: 13 | W181: 13 | X181: 14.35 | Y181: 11 | Z181: 18.701 | AA181: 14.5 | AB181: 14 | AC181: 18.75 | AD181: 18 | AE181: 18 | AF181: 17.85 | AG181: 18 | AH181: 19.25 | AI181: 23 | AJ181: 24.95 | AK181: 20 | AL181: 20 | AM181: 0 | AN181: 0.0188381853
A182: C/B | B182: LAKE & PENINSULA | C182: IVANOF BAY | D182: 6.35 | E182: 8.7 | F182: 12.8 | G182: 11 | H182: 14 | I182: 10 | J182: 11 | K182: 11 | L182: 13.5 | M182: 10 | N182: closed | O182: closed | P182: closed | Q182: closed | R182: closed | S182: closed | T182: closed | U182: closed | V182: closed | W182: closed | X182: closed | Y182: closed | Z182: closed | AA182: closed | AB182: closed | AC182: closed | AD182: closed | AE182: closed | AF182: closed | AG182: closed | AH182: closed | AI182: closed | AJ182: closed | AK182: closed | AL182: closed | AM182: n/a | AN182: n/a
A183: C/B | B183: LAKE & PENINSULA | C183: KOKHANOK | D183: 38.85 | E183: 36.55 | F183: 40 | G183: 45.5 | H183: 48.2 | I183: 48.7 | J183: 58 | K183: 58.75 | L183: 66.75 | M183: 58.05 | N183: 55 | O183: 47 | P183: 45.05 | Q183: 39.95 | R183: 39.7 | S183: 46.25 | T183: 42.95 | U183: 44.35 | V183: 46.05 | W183: 35 | X183: 33.5 | Y183: 22.95 | Z183: 25.5 | AA183: 27.2 | AB183: 24 | AC183: 26.5 | AD183: 31.95 | AE183: 30.75 | AF183: 29.5 | AG183: 30.25 | AH183: 40.7 | AI183: 38 | AJ183: 28 | AK183: 32.9 | AL183: 35.15 | AM183: 0.06838905775 | AN183: 0.02582015987
A184: C/B | B184: LAKE & PENINSULA | C184: LEVELOCK | D184: 23 | E184: 18 | F184: 22.55 | G184: 26 | H184: 28.13 | I184: 25.25 | J184: 25 | K184: 22 | L184: 22 | M184: 22 | N184: 28.05 | O184: 18.8 | P184: 16.5 | Q184: 20.65 | R184: 19 | S184: 20.35 | T184: 19.8 | U184: 18 | V184: 26.25 | W184: 19.75 | X184: 16.75 | Y184: 22.6 | Z184: 18.6 | AA184: 17.65 | AB184: 27 | AC184: 24.85 | AD184: 22.35 | AE184: 17.05 | AF184: 17.4 | AG184: 18 | AH184: 10 | AI184: 11.25 | AJ184: 10.15 | AK184: 11.25 | AL184: 12 | AM184: 0.06666666667 | AN184: -0.05303837735
A185: C/B | B185: LAKE & PENINSULA | C185: NEWHALEN | D185: 73.35 | E185: 77 | F185: 78.6 | G185: 81.75 | H185: 89.8 | I185: 82.5 | J185: 96.6 | K185: 101.2 | L185: 93 | M185: 83 | N185: 68.35 | O185: 78.55 | P185: 78.05 | Q185: 72.48 | R185: 78.6 | S185: 68.45 | T185: 76.7 | U185: 71.25 | V185: 76.75 | W185: 74.07 | X185: 67.5 | Y185: 66.8 | Z185: 59.65 | AA185: 54.25 | AB185: 49.65 | AC185: 51.45 | AD185: 58.65 | AE185: 54.75 | AF185: 69.95 | AG185: 76.6 | AH185: 73.3 | AI185: 74.75 | AJ185: 74.55 | AK185: 84.45 | AL185: 70.3 | AM185: -0.1675547661 | AN185: 0.03068306513
A186: C/B | B186: LAKE & PENINSULA | C186: NONDALTON | D186: 59 | E186: 57 | F186: 62 | G186: 61.45 | H186: 65.55 | I186: 66.65 | J186: 73.1 | K186: 75.2 | L186: 79.9 | M186: 71.7 | N186: 69.25 | O186: 64.4 | P186: 59 | Q186: 61 | R186: 51 | S186: 48.6 | T186: 51.75 | U186: 41.9 | V186: 37 | W186: 32.9 | X186: 28.75 | Y186: 33 | Z186: 38.3 | AA186: 30.6 | AB186: 25 | AC186: 35 | AD186: 26.5 | AE186: 26 | AF186: 23 | AG186: 23.5 | AH186: 27.5 | AI186: 23 | AJ186: 17 | AK186: 19.2 | AL186: 20.8 | AM186: 0.08333333333 | AN186: -0.01925768429
A187: C/B | B187: LAKE & PENINSULA | C187: PEDRO BAY | D187: 12 | E187: 22.05 | F187: 20.75 | G187: 18.65 | H187: 9 | I187: 17 | J187: 10.25 | K187: 12 | L187: 18 | M187: 12 | N187: 14.35 | O187: 14 | P187: 12.6 | Q187: 17 | R187: 17.85 | S187: 16 | T187: 13 | U187: 13 | V187: 12 | W187: 10.95 | X187: 9 | Y187: closed | Z187: closed | AA187: closed | AB187: closed | AC187: closed | AD187: closed | AE187: closed | AF187: closed | AG187: closed | AH187: closed | AI187: closed | AJ187: closed | AK187: closed | AL187: closed | AM187: n/a | AN187: n/a
A188: C/B | B188: LAKE & PENINSULA | C188: PERRYVILLE | D188: 36.95 | E188: 36.7 | F188: 33 | G188: 34 | H188: 35 | I188: 28.85 | J188: 36.85 | K188: 36.8 | L188: 39.1 | M188: 35 | N188: 28.7 | O188: 33.25 | P188: 28.75 | Q188: 39.85 | R188: 34.57 | S188: 36.1 | T188: 29.25 | U188: 28.9 | V188: 25.25 | W188: 21 | X188: 22.2 | Y188: 22.44 | Z188: 24.25 | AA188: 25.6 | AB188: 27 | AC188: 22.5 | AD188: 16 | AE188: 19 | AF188: 23.6 | AG188: 23.25 | AH188: 22.95 | AI188: 19 | AJ188: 20 | AK188: 20 | AL188: 22.6 | AM188: 0.13 | AN188: 0.05154872726
A189: C/B | B189: LAKE & PENINSULA | C189: PILOT POINT | D189: 13 | E189: 17.3 | F189: 22 | G189: 23 | H189: 25.95 | I189: 27 | J189: 25.5 | K189: 28.5 | L189: 26.85 | M189: 23.85 | N189: 22.2 | O189: 16.5 | P189: 23.7 | Q189: 20.45 | R189: 17 | S189: 12 | T189: 10.75 | U189: 18.9 | V189: 14 | W189: 11.5 | X189: 12.85 | Y189: 12.08 | Z189: 15 | AA189: 10 | AB189: 13.5 | AC189: 12 | AD189: 12 | AE189: 13 | AF189: 12.95 | AG189: 12.75 | AH189: 13.65 | AI189: 15 | AJ189: 8 | AK189: closed | AL189: closed | AM189: n/a | AN189: n/a
A190: C/B | B190: LAKE & PENINSULA | C190: PORT ALSWORTH | D190: 19 | E190: 15 | F190: 11.5 | G190: 14 | H190: 24.4 | I190: 21.5 | J190: 16 | K190: 12.85 | L190: 15 | M190: 17.8 | N190: 18.93 | O190: 15.85 | P190: 16 | Q190: 19 | R190: 22.5 | S190: 25 | T190: 21.05 | U190: 29 | V190: 34 | W190: 41 | X190: 33.95 | Y190: 33 | Z190: 38.7 | AA190: 55.8 | AB190: 54.25 | AC190: 64.05 | AD190: 57.5 | AE190: 53.75 | AF190: 53 | AG190: 54.2 | AH190: 47.95 | AI190: 39 | AJ190: 41 | AK190: 37.4 | AL190: 37.2 | AM190: -0.005347593583 | AN190: -0.05004577588
A191: C/B | B191: LAKE & PENINSULA | C191: PORT HEIDEN | D191: 27.5 | E191: 31.7 | F191: 30.95 | G191: 33.2 | H191: 26.55 | I191: 27.25 | J191: 24.6 | K191: 34.05 | L191: 34.15 | M191: 30 | N191: 40 | O191: 34 | P191: 30 | Q191: 31.55 | R191: 22.45 | S191: 25.32 | T191: 26.75 | U191: 25.5 | V191: 21.4 | W191: 24 | X191: 23 | Y191: 28.28 | Z191: 26 | AA191: 20 | AB191: 19 | AC191: 17 | AD191: 15.25 | AE191: 22.25 | AF191: 19.55 | AG191: 18.5 | AH191: 18.7 | AI191: 16.7 | AJ191: 26.1 | AK191: 24.25 | AL191: 26.75 | AM191: 0.1030927835 | AN191: 0.09786304838
A192: C/B | B192: LAKE & PENINSULA | C192: TOTAL | D192: =SUM(D177:D191) -> 413.2 | E192: =SUM(E177:E191) -> 446.7 | F192: 462.85 | G192: 497.4 | H192: 507.63 | I192: 497.65 | J192: 523.55 | K192: 522.95 | L192: 547.85 | M192: 480.95 | N192: 458.68 | O192: 427.8 | P192: 412.55 | Q192: 415.23 | R192: 398.57 | S192: 386.42 | T192: 378.45 | U192: 367.75 | V192: 368.68 | W192: 343.22 | X192: 324.25 | Y192: 308.94 | Z192: 317.601 | AA192: 295.6 | AB192: 304.55 | AC192: 308.6 | AD192: 302.28 | AE192: 293.15 | AF192: =SUM(AF177:AF191) -> 301.35 | AG192: 308.9 | AH192: 312.55 | AI192: 299.75 | AJ192: 286 | AK192: 286.55 | AL192: 280.8 | AM192: -0.02006630605 | AN192: -0.008791243385
A193: REAA | B193: LOWER KUSKOKWIM | C193: AKIUK | D193: 63 | E193: 69 | F193: 74 | G193: 70 | H193: 70.5 | I193: 67.8 | J193: 69 | K193: 85.65 | L193: 77 | M193: kasigluk | N193: kasigluk | O193: kasigluk | P193: kasigluk | Q193: kasigluk | R193: kasigluk | S193: kasigluk | T193: kasigluk | U193: kasigluk | V193: kasigluk | W193: kasigluk | X193: Kasigluk | Y193: Kasigluk | Z193: Kasigluk | AA193: Kasigluk | AB193: Kasigluk | AC193: Kasigluk | AD193: Kasigluk | AE193: Kasigluk | AF193: Kasigluk | AG193: Kasigluk | AH193: Kasigluk | AI193: Kasigluk | AJ193: Kasigluk | AK193: Kasigluk | AL193: Kasigluk | AM193: n/a | AN193: n/a
A194: REAA | B194: LOWER KUSKOKWIM | C194: AKULA | D194: 70.25 | E194: 69.35 | F194: 70.7 | G194: 70.6 | H194: 72.65 | I194: 77 | J194: 93 | K194: 67 | L194: 89.5 | M194: kasigluk | N194: kasigluk | O194: kasigluk | P194: kasigluk | Q194: kasigluk | R194: kasigluk | S194: kasigluk | T194: kasigluk | U194: kasigluk | V194: kasigluk | W194: kasigluk | X194: Kasigluk | Y194: Kasigluk | Z194: Kasigluk | AA194: Kasigluk | AB194: Kasigluk | AC194: Kasigluk | AD194: Kasigluk | AE194: Kasigluk | AF194: Kasigluk | AG194: Kasigluk | AH194: Kasigluk | AI194: Kasigluk | AJ194: Kasigluk | AK194: Kasigluk | AL194: Kasigluk | AM194: n/a | AN194: n/a
A195: REAA | B195: LOWER KUSKOKWIM | C195: ATMAUTLUAK | D195: 80.75 | E195: 81.3 | F195: 80.4 | G195: 76.5 | H195: 76.5 | I195: 72.25 | J195: 84.35 | K195: 78.05 | L195: 84.45 | M195: 88.7 | N195: 86.35 | O195: 74.1 | P195: 78.3 | Q195: 76.05 | R195: 82.4 | S195: 91.4 | T195: 90.6 | U195: 88.5 | V195: 92.6 | W195: 96 | X195: 98.35 | Y195: 106.1 | Z195: 108.25 | AA195: 105.3 | AB195: 100.5 | AC195: 109.85 | AD195: 109.35 | AE195: 107.95 | AF195: 110.8 | AG195: 99.15 | AH195: 98.1 | AI195: 89 | AJ195: 90.95 | AK195: 103.55 | AL195: 105.15 | AM195: 0.01545147272 | AN195: -0.002374934793
A196: REAA | B196: LOWER KUSKOKWIM | C196: BETHEL | D196: 999.9 | E196: 1014.8 | F196: 1079.25 | G196: 1125 | H196: 1124.1 | I196: 1227.6 | J196: 1245.4 | K196: =813.65+468.95 -> 1282.6 | L196: =504.2+351.1+447.05 -> 1302.35 | M196: =229+417.2+455.5+148.45 -> 1250.15 | N196: =457.55+245.78+370.9+175.2 -> 1249.43 | O196: =472.3+339.75+254.33+185.65 -> 1252.03 | P196: 1272.02 | Q196: 1344.75 | R196: 1344.18 | S196: 1298.3 | T196: =499.25+325.25+311.8+142.6+34.8+18 -> 1331.7 | U196: 1256.35 | V196: 1239.05 | W196: 1247.2 | X196: 1220.2 | Y196: 1234.8 | Z196: 1258.75 | AA196: 1284.35 | AB196: 1234.4 | AC196: 1225.1 | AD196: 1218.7 | AE196: 1235.3 | AF196: 1102.8 | AG196: 1093.15 | AH196: 1080.1 | AI196: 1043 | AJ196: 1015.1 | AK196: 961.95 | AL196: 919.05 | AM196: -0.04459691252 | AN196: -0.03404793386
A197: REAA | B197: LOWER KUSKOKWIM | C197: CHEFORNAK | D197: 85.8 | E197: 94 | F197: 93.7 | G197: 98.28 | H197: 110.5 | I197: 125.6 | J197: 130 | K197: 123.9 | L197: 135.95 | M197: 133.95 | N197: 133.75 | O197: 127.15 | P197: 147.1 | Q197: 148.05 | R197: 156 | S197: 163.1 | T197: 164.25 | U197: 165.75 | V197: 155 | W197: 176 | X197: 163.2 | Y197: 170 | Z197: 156.85 | AA197: 151.95 | AB197: 146.8 | AC197: 152.8 | AD197: 145.2 | AE197: 146.7 | AF197: 142.95 | AG197: 154.2 | AH197: 147.7 | AI197: 148.7 | AJ197: 145.65 | AK197: 133.2 | AL197: 135.8 | AM197: =IFERROR((AL197-AK197)/AK197,"n/a") -> 0.01951951952 | AN197: =IFERROR(((AL197-AK197)/AK197+(AK197-AJ197)/AJ197+(AJ197-AI197)/AI197+(AI197-AH197)/AH197+(AH197-AG197)/AG197+(AG197-AF197)/AF197+(AF197-AE197)/AE197+(AE197-AD197)/AD197)/8,"n/a") -> -0.00729824745
A198: REAA | B198: LOWER KUSKOKWIM | C198: EEK | D198: 60.75 | E198: 68.2 | F198: 65.65 | G198: 57.5 | H198: 59.05 | I198: 72.15 | J198: 78.45 | K198: 83.95 | L198: 76.2 | M198: 85.25 | N198: 85.8 | O198: 81.4 | P198: 76 | Q198: 88.05 | R198: 86.5 | S198: 84.2 | T198: 88.7 | U198: 88.5 | V198: 88 | W198: 86 | X198: 87.45 | Y198: 87.5 | Z198: 103.6 | AA198: 101.3 | AB198: 109.05 | AC198: 101.7 | AD198: 104.5 | AE198: 109.5 | AF198: 105.75 | AG198: 112.8 | AH198: 111.95 | AI198: 101.8 | AJ198: 107.4 | AK198: 99.85 | AL198: 97.5 | AM198: -0.02353530295 | AN198: -0.007094673341
A199: REAA | B199: LOWER KUSKOKWIM | C199: GOODNEWS BAY | D199: 49.1 | E199: 51.95 | F199: 51.45 | G199: 61.4 | H199: 66.7 | I199: 65.55 | J199: 82.6 | K199: 83.45 | L199: 79.7 | M199: 70.4 | N199: 68.2 | O199: 70.55 | P199: 63.5 | Q199: 57.5 | R199: 66.85 | S199: 69 | T199: 61.5 | U199: 50.6 | V199: 63.5 | W199: 53 | X199: 57.15 | Y199: 47 | Z199: 52.7 | AA199: 53.75 | AB199: 56.65 | AC199: 51.95 | AD199: 53.1 | AE199: 60.95 | AF199: 63.3 | AG199: 71.65 | AH199: 67.55 | AI199: 64.15 | AJ199: 78.9 | AK199: 72.6 | AL199: 72.15 | AM199: -0.006198347107 | AN199: 0.04432873756
A200: REAA | B200: LOWER KUSKOKWIM | C200: KASIGLUK | D200: =D194+D193 -> 133.25 | E200: 138.35 | F200: 144.7 | G200: 140.6 | H200: 143.15 | I200: 144.8 | J200: 162 | K200: 152.65 | L200: 166.5 | M200: =65.8+99.75 -> 165.55 | N200: =69.2+103.6 -> 172.8 | O200: =66+89.65 -> 155.65 | P200: =69.95+96.95 -> 166.9 | Q200: =60.5+96 -> 156.5 | R200: =(57+89.8) -> 146.8 | S200: 151.95 | T200: =69.3+87 -> 156.3 | U200: 180.8 | V200: 185.05 | W200: 182 | X200: 186.7 | Y200: 190.1 | Z200: 190.9 | AA200: 194.15 | AB200: 192.5 | AC200: 186.25 | AD200: 199.15 | AE200: 212.5 | AF200: 211.45 | AG200: 213.95 | AH200: 194.1 | AI200: 197.05 | AJ200: 198.75 | AK200: 193.75 | AL200: 183.75 | AM200: -0.05161290323 | AN200: -0.008975796416
... 166 more rows
